Workbook

Sheet Front Page

Sheet TOC

Sheet Overview - 2018

Sheet Result Tendency

Sheet Overview - The Calculation

Sheet Total Consumption
Q24: 31954 | R24: 31237
O25: ='Key figures'!H146 -> 14.6885961 | P25: ='Key figures'!I146 -> 22.31009358 | Q25: 31953.8866 | R25: 34360.24534
O26: ='Key figures'!H3 -> 7.674359598 | P26: ='Key figures'!I3 -> 6.810875376
K32: 500000 | L32: 5
F37: ='Key figures'!H113 -> 500
F44: ='Key figures'!I113 -> 500

Sheet Share of Consumption
P23: ='Total Consumption'!O25 -> 14.6885961 | Q23: ='Total Consumption'!P25 -> 22.31009358
P24: ='Total Consumption'!O26 -> 7.674359598 | Q24: ='Total Consumption'!P26 -> 6.810875376 | R24: 31237
Q25: 31953.8866 | R25: 34360.24534
D44: ='Key figures'!A6 -> Industry | E44: ='Key figures'!H6 -> 0.17 | F44: ='Key figures'!I6 -> 0.1093991606
D45: ='Key figures'!A7 -> Transport | E45: ='Key figures'!H7 -> 0.1031036006 | F45: ='Key figures'!I7 -> 0.1031036006
D46: ='Key figures'!A8 -> Other | E46: ='Key figures'!H8 -> 0.7268963994 | F46: ='Key figures'!I8 -> 0.7874972388

Sheet Share of Consumption - Deeper

Sheet Consumption - Transport
Q24: 31954 | R24: 31237
Q25: 31953.8866 | R25: 34360.24534
O26: ='Total Consumption'!O25 -> 14.6885961 | P26: ='Total Consumption'!P25 -> 22.31009358
O27: ='Total Consumption'!O26 -> 7.674359598 | P27: ='Total Consumption'!P26 -> 6.810875376
O36: 4
H37: 91.99816666 | L37: 3
E38: 1
L43: 4 | O43: 4
C46: ='Key figures'!A19 -> Coal | E46: ='Key figures'!H19 -> 0 | F46: ='Key figures'!I19 -> 0
C47: ='Key figures'!A20 -> Oil products | E47: ='Key figures'!H20 -> 0.99 | F47: ='Key figures'!I20 -> 0.99
C48: ='Key figures'!A21 -> Natural Gas | E48: ='Key figures'!H21 -> 0 | F48: ='Key figures'!I21 -> 0
C49: ='Key figures'!A22 -> Geothermal, Solar, Wind, etc. | E49: ='Key figures'!H22 -> 0 | F49: ='Key figures'!I22 -> 0
C50: ='Key figures'!A23 -> Biofuels and Waste | E50: ='Key figures'!H23 -> 0 | F50: ='Key figures'!I23 -> 0
C51: ='Key figures'!A24 -> Electricity | E51: ='Key figures'!H24 -> 0.01 | F51: ='Key figures'!I24 -> 0.01
C52: ='Key figures'!A25 -> Heat | E52: ='Key figures'!H25 -> 0 | F52: ='Key figures'!I25 -> 0

Sheet Consumption - Industry
Q24: 31954 | R24: 31237
Q25: 31953.8866 | R25: 34360.24534
N26: ='Total Consumption'!O25 -> 14.6885961 | O26: ='Total Consumption'!P25 -> 22.31009358
N27: ='Total Consumption'!O26 -> 7.674359598 | O27: ='Total Consumption'!P26 -> 6.810875376
O36: 4
H37: 91.99816666 | L37: 3
E38: 1
E43: 5 | H43: 86.99816666 | L43: 4 | O43: 4
C46: ='Key figures'!A10 -> Coal | E46: ='Key figures'!H10 -> 0.1953558809 | F46: ='Key figures'!I10 -> 0.1953558809
C47: ='Key figures'!A11 -> Crude Oil | E47: ='Key figures'!H11 -> 0 | F47: ='Key figures'!I11 -> 0
C48: ='Key figures'!A12 -> Oil products | E48: ='Key figures'!H12 -> 0.008076728925 | F48: ='Key figures'!I12 -> 0.008076728925
C49: ='Key figures'!A13 -> Natural Gas | E49: ='Key figures'!H13 -> 0.07319535588 | F49: ='Key figures'!I13 -> 0.07319535588
C50: ='Key figures'!A14 -> Geothermal, Solar, Wind, etc. | E50: ='Key figures'!H14 -> 0 | F50: ='Key figures'!I14 -> 0
C51: ='Key figures'!A15 -> Biofuels and Waste | E51: ='Key figures'!H15 -> 0.6486622918 | F51: ='Key figures'!I15 -> 0.6486622918
C52: ='Key figures'!A16 -> Electricity | E52: ='Key figures'!H16 -> 0.07470974255 | F52: ='Key figures'!I16 -> 0.07470974255
C53: ='Key figures'!A17 -> Heat | E53: ='Key figures'!H17 -> 0 | F53: ='Key figures'!I17 -> 0

Sheet Consumption - Other
N10: ='Total Consumption'!O25 -> 14.6885961 | O10: ='Total Consumption'!P25 -> 22.31009358
N11: ='Total Consumption'!O26 -> 7.674359598 | O11: ='Total Consumption'!P26 -> 6.810875376
Q24: 31954 | R24: 31237
Q25: 31953.8866 | R25: 34360.24534
E35: 35 | I35: 24 | L35: 4 | P35: 13 | S35: 6 | V35: 1 | X35: 17
E41: 36 | I41: 25 | L41: 2 | P41: 9 | S41: 7 | V41: 1 | X41: 20
D45: ='Key figures'!A27 -> Coal | F45: ='Key figures'!H27 -> -7.86163522e-05 | G45: ='Key figures'!I27 -> -7.86163522e-05
D46: ='Key figures'!A28 -> Oil products | F46: ='Key figures'!H28 -> 0.01210691824 | G46: ='Key figures'!I28 -> 0.01210691824
D47: ='Key figures'!A29 -> Natural Gas | F47: ='Key figures'!H29 -> 0 | G47: ='Key figures'!I29 -> 0
D48: ='Key figures'!A30 -> Geothermal, Solar, Wind, etc. | F48: ='Key figures'!H30 -> 0 | G48: ='Key figures'!I30 -> 0
D49: ='Key figures'!A31 -> Biofuels and Waste | F49: ='Key figures'!H31 -> 0.9695754717 | G49: ='Key figures'!I31 -> 0.9695754717
D50: ='Key figures'!A32 -> Electricity | F50: ='Key figures'!H32 -> 0.01839622642 | G50: ='Key figures'!I32 -> 0.01839622642
D51: ='Key figures'!A33 -> Heat | F51: ='Key figures'!H33 -> 0 | G51: ='Key figures'!I33 -> 0

Sheet Conversion
F17: 0.2
Q19: 12500
Q20: 22913.98299 | R20: 0
F22: 0.2
H36: 167000
E68: 3 | I68: 91.7246696 | M68: 5 | Q68: 0.2753303965
H102: 4475

Sheet Conversion - Heat
Q24: 31954 | R24: 31237
Q25: 31953.8866 | R25: 34360.24534
M28: ='Total Consumption'!O25 -> 14.6885961 | N28: ='Total Consumption'!P25 -> 22.31009358
M29: ='Total Consumption'!O26 -> 7.674359598 | N29: ='Total Consumption'!P26 -> 6.810875376
F32: 15 | H32: 68 | M32: 17
F39: 22 | H39: 55 | M39: 23
C41: heat plants | D41: ='Key figures'!H49 -> 0.001 | E41: ='Key figures'!I49 -> 0.001
C43: CHP plants | D43: ='Key figures'!H48 -> 0.999 | E43: ='Key figures'!I48 -> 0.999

Sheet CHP - Fuel
N8: ='Total Consumption'!O25 -> 14.6885961 | O8: ='Total Consumption'!P25 -> 22.31009358
N9: ='Total Consumption'!O26 -> 7.674359598 | O9: ='Total Consumption'!P26 -> 6.810875376
Q24: 31954 | R24: 31237
Q25: 31953.8866 | R25: 34360.24534
H32: 68 | L32: 17 | M32: =L32 -> 17
E33: 15
F39: 22 | H39: 55 | L39: 23 | M39: =L39 -> 23
C44: ='Key figures'!A73 -> Coal | D44: ='Key figures'!H80 -> 0.34889 | E44: ='Key figures'!I80 -> 0.99878
C45: ='Key figures'!A74 -> Crude Oil | D45: ='Key figures'!H81 -> 1e-05 | E45: ='Key figures'!I81 -> 1e-05
C46: ='Key figures'!A75 -> Oil products | D46: ='Key figures'!H82 -> 0.0001 | E46: ='Key figures'!I82 -> 0.0001
C47: ='Key figures'!A76 -> Natural Gas | D47: ='Key figures'!H83 -> 0.11 | E47: ='Key figures'!I83 -> 0.0001
C48: ='Key figures'!A77 -> Nuclear | D48: ='Key figures'!H84 -> 0.001 | E48: ='Key figures'!I84 -> 0.001
C49: ='Key figures'!A78 -> Biofuels and Waste | D49: ='Key figures'!H85 -> 0.54 | E49: ='Key figures'!I85 -> 1e-05
E56: 0
I57: 0 | L57: 0 | P57: 0
E63: 0 | I63: 0 | L63: 0 | P63: 0
C66: CHP plants | E66: ='Key figures'!H102 -> 0 | F66: ='Key figures'!I102 -> 0
E90: 14 | I90: 5 | L90: 31 | P90: 1 | S90: 1 | U90: 48
E96: 12 | I96: 10 | L96: 38 | P96: 2 | S96: 1 | U96: 37

Sheet Heat Plants - Fuel
O9: ='Total Consumption'!O25 -> 14.6885961 | P9: ='Total Consumption'!P25 -> 22.31009358
O10: ='Total Consumption'!O26 -> 7.674359598 | P10: ='Total Consumption'!P26 -> 6.810875376
Q24: 31954 | R24: 31237
Q25: 31953.8866 | R25: 34360.24534
H32: 68 | L32: 17 | M32: =L32 -> 17
E33: 15
F39: 22 | H39: 55 | L39: 23 | M39: =L39 -> 23
C44: ='Key figures'!A73 -> Coal | D44: ='Key figures'!H87 -> 0.0188 | E44: ='Key figures'!I87 -> 0.9986
C45: ='Key figures'!A74 -> Crude Oil | D45: ='Key figures'!H88 -> 0.0001 | E45: ='Key figures'!I88 -> 0.0001
C46: ='Key figures'!A75 -> Oil products | D46: ='Key figures'!H89 -> 0.0001 | E46: ='Key figures'!I89 -> 0.0001
C47: ='Key figures'!A76 -> Natural Gas | D47: ='Key figures'!H90 -> 0.36 | E47: ='Key figures'!I90 -> 0.0001
C48: ='Key figures'!A77 -> Nuclear | D48: ='Key figures'!H91 -> 0.001 | E48: ='Key figures'!I91 -> 0.001
C49: ='Key figures'!A78 -> Biofuels and Waste | D49: ='Key figures'!H92 -> 0.62 | E49: ='Key figures'!I92 -> 0.0001
E56: 0
I57: 0 | L57: 0 | P57: 0
E63: 0 | I63: 0 | L63: 0 | P63: 0
C66: Heat plants | E66: ='Key figures'!H103 -> 0 | F66: ='Key figures'!I103 -> 0
E90: 14 | I90: 5 | L90: 31 | P90: 1 | S90: 1 | U90: 48
E96: 12 | I96: 10 | L96: 38 | P96: 2 | S96: 1 | U96: 37

Sheet Conversion - Electricity
P23: ='Total Consumption'!O25 -> 14.6885961 | Q23: ='Total Consumption'!P25 -> 22.31009358
P24: ='Total Consumption'!O26 -> 7.674359598 | Q24: ='Total Consumption'!P26 -> 6.810875376 | R24: 31237
Q25: 31953.8866 | R25: 34360.24534
F32: 15 | H32: 68 | M32: 17 | Q32: ='Key figures'!H60 -> 0
F39: 22 | H39: 55 | M39: 23 | Q39: ='Key figures'!I60 -> 0
C41: ='Key figures'!A57 -> Hydro | D41: ='Key figures'!H57 -> 0.308681672 | E41: ='Key figures'!I57 -> 0.308681672
C42: ='Key figures'!A58 -> Geothermal, Solar, Wind, etc. | D42: ='Key figures'!H58 -> 0.01286173633 | E42: ='Key figures'!I58 -> 0.01286173633
C43: ='Key figures'!A59 -> Fuel based plants | D43: ='Key figures'!H59 -> 0.6784565916 | E43: ='Key figures'!I59 -> 0.6784565916

Sheet Electricity - Fuel
N8: ='Total Consumption'!O25 -> 14.6885961 | O8: ='Total Consumption'!P25 -> 22.31009358
N9: ='Total Consumption'!O26 -> 7.674359598 | O9: ='Total Consumption'!P26 -> 6.810875376
Q24: 31954 | R24: 31237
Q25: 31953.8866 | R25: 34360.24534
H32: 68 | L32: 17 | M32: =L32 -> 17
E33: 15
F39: 22 | H39: 55 | L39: 23 | M39: =L39 -> 23
C44: ='Key figures'!A73 -> Coal | D44: ='Key figures'!H73 -> 0 | E44: ='Key figures'!I73 -> 0
C45: ='Key figures'!A74 -> Crude Oil | D45: ='Key figures'!H74 -> 0 | E45: ='Key figures'!I74 -> 0
C46: ='Key figures'!A75 -> Oil products | D46: ='Key figures'!H75 -> 0.4292134831 | E46: ='Key figures'!I75 -> 0.4292134831
C47: ='Key figures'!A76 -> Natural Gas | D47: ='Key figures'!H76 -> 0.5359550562 | E47: ='Key figures'!I76 -> 0.5359550562
C48: ='Key figures'!A77 -> Nuclear | D48: ='Key figures'!H77 -> 0 | E48: ='Key figures'!I77 -> 0
C49: ='Key figures'!A78 -> Biofuels and Waste | D49: ='Key figures'!H78 -> 0.03483146067 | E49: ='Key figures'!I78 -> 0.03483146067
E56: 0
I57: 0 | L57: 0 | P57: 0
E63: 0 | I63: 0 | L63: 0 | P63: 0
C66: ='Key figures'!A98 -> Coal fired power plants | E66: ='Key figures'!H98 -> 0 | F66: ='Key figures'!I98 -> 0
C67: ='Key figures'!A99 -> Oilfired power plants | E67: ='Key figures'!H99 -> 0 | F67: ='Key figures'!I99 -> 0
C68: ='Key figures'!A100 -> Natural gas fired power plants | E68: ='Key figures'!H100 -> 0 | F68: ='Key figures'!I100 -> 0
C69: ='Key figures'!A101 -> Biomass-fired power plants | E69: ='Key figures'!H101 -> 0 | F69: ='Key figures'!I101 -> 0
E90: 14 | I90: 5 | L90: 31 | P90: 1 | S90: 1 | U90: 48
E96: 12 | I96: 10 | L96: 38 | P96: 2 | S96: 1 | U96: 37

Sheet Results - Scenerio

Sheet Key figures (hidden)
A1: Key Figures for Data sheets
B2: 1995 | C2: 2000 | D2: 2005 | E2: 2010 | F2: 2015 | G2: 2018 | H2: 2030 | I2: 2050 | K2: Scroller values
A3: CO2-emissions | B3: ='1995 e2g-balance'!$AB5+'1995 e2g-balance'!$AB14 -> 2.386203746 | C3: ='2000 e2g-balance'!$AB5+'2000 e2g-balance'!$AB14 -> 2.60022689 | D3: ='2005 e2g-balance'!$AB5+'2005 e2g-balance'!$AB14 -> 4.760851827 | E3: ='2010 e2g-balance'!$AB5+'2010 e2g-balance'!$AB14 -> 5.81540255 | F3: ='2015 e2g-balance'!$AB5+'2015 e2g-balance'!$AB14 -> 10.04743121 | G3: ='2018 e2g-balance'!$AB5+'2018 e2g-balance'!$AB14 -> 10.31420266 | H3: ='2030 e2g-balance'!AB5+'2030 e2g-balance'!AB14 -> 7.674359598 | I3: ='2050 e2g-balance'!AB5+'2050 e2g-balance'!AB14 -> 6.810875376
A4: Total final consumption | B4: =('Data 1995'!$L22-'Data 1995'!$L30)*0.041872*-1 -> -410.3456 | C4: =('Data 2000'!$L22-'Data 2000'!$L30)*0.041872*-1 -> -505.143808 | D4: =('Data 2005'!$L22-'Data 2005'!$L30)*0.041872*-1 -> -562.801552 | E4: =('Data 2010'!$L22-'Data 2010'!$L30)*0.041872*-1 -> -620.417424 | F4: =('Data 2015'!$L22-'Data 2015'!$L30)*0.041872*-1 -> -715.131888 | G4: =('Data 2018'!$L22-'Data 2018'!$L30)*0.041872*-1 -> -758.218176 | H4: =K4*10*-1 -> -500 | I4: =L4*10*-1 -> -500 | K4: 50 | L4: 50
A5: Share of consumption
A6: Industry | B6: =IFERROR('Data 1995'!$L$23/$B$4*0.041872*-1,0.00001) -> 0.1042857143 | C6: =IFERROR(('Data 2000'!$L$23/C4*0.041872*-1),0.0001) -> 0.1017075597 | D6: =IFERROR(('Data 2005'!$L$23/D4*0.041872*-1),0.0001) -> 0.09790938174 | E6: =IFERROR(('Data 2010'!$L$23/E4*0.041872*-1),0.0001) -> 0.09529594385 | F6: =IFERROR(('Data 2015'!$L$23/F4*0.041872*-1),0.001) -> 0.1067978219 | G6: =IFERROR(('Data 2018'!$L$23/G4*0.041872*-1),0.0001) -> 0.1093991606 | H6: =K6/100 -> 0.17 | I6: =L6/100 -> 0.1093991606 | K6: 17 | L6: =G6*100 -> 10.93991606
A7: Transport | B7: =IFERROR('Data 1995'!$L$24/$B$4*0.041872*-1,0.0001) -> 0.03020408163 | C7: =IFERROR('Data 2000'!$L$24/C4*0.041872*-1,0.0001) -> 0.03970490716 | D7: =IFERROR('Data 2005'!$L$24/D4*0.041872*-1,0.00001) -> 0.06740569898 | E7: =IFERROR('Data 2010'!$L$24/E4*0.041872*-1,0.0001) -> 0.07842343254 | F7: =IFERROR('Data 2015'!$L$24/F4*0.041872*-1,0.0001) -> 0.1111891797 | G7: =IFERROR('Data 2018'!$L$24/G4*0.041872*-1,0.0001) -> 0.1031036006 | H7: 0.1031036006 | I7: 0.1031036006 | K7: =G7*100 -> 10.31036006 | L7: =G7*100 -> 10.31036006
A8: Other | B8: =IFERROR('Data 1995'!$L$31/$B$4*0.041872*-1,0.00001) -> 0.8639795918 | C8: =IFERROR('Data 2000'!$L$31/C4*0.041872*-1,0.0001) -> 0.8585046419 | D8: =IFERROR('Data 2005'!$L$31/D4*0.041872*-1,0.0001) -> 0.8346849193 | E8: =IFERROR('Data 2010'!$L$31/E4*0.041872*-1,0.001) -> 0.8262806236 | F8: =IFERROR('Data 2015'!$L$31/F4*0.041872*-1,0.0001) -> 0.779553838 | G8: =IFERROR('Data 2018'!$L$31/G4*0.041872*-1,0.0001) -> 0.7874972388 | H8: 0.7268963994 | I8: 0.7874972388 | K8: =100-K7-K6 -> 72.68963994 | L8: =100-L7-L6 -> 78.74972388
A9: Share of energyforms Industry
A10: Coal | B10: =IFERROR('Data 1995'!$B$23/'Data 1995'!$L23,0.0001) -> 0.002935420744 | C10: =IFERROR('Data 2000'!$B$23/'Data 2000'!$L23,0.0001) -> 0.02444987775 | D10: =IFERROR('Data 2005'!$B$23/'Data 2005'!$L23,0.001) -> 0.005319148936 | E10: =IFERROR('Data 2010'!$B$23/'Data 2010'!$L23,0.0001) -> 0 | F10: =IFERROR('Data 2015'!$B$23/'Data 2015'!$L23,0.0001) -> 0.08662280702 | G10: =IFERROR('Data 2018'!$B$23/'Data 2018'!$L23,0.00001) -> 0.1953558809 | H10: =K10/100 -> 0.1953558809 | I10: =L10/100 -> 0.1953558809 | K10: =100-SUM(K11:K17) -> 19.53558809 | L10: =100-SUM(L11:L17) -> 19.53558809
A11: Crude Oil | B11: =IFERROR('Data 1995'!$C$23/'Data 1995'!$L$23,0.0001) -> 0 | C11: =IFERROR('Data 2000'!$C$23/'Data 2000'!$L$23,0.00001) -> 0 | D11: =IFERROR('Data 2005'!$C$23/'Data 2005'!$L$23,0.0001) -> 0 | E11: =IFERROR('Data 2010'!$C$23/'Data 2010'!$L$23,0.0001) -> 0 | F11: =IFERROR('Data 2015'!$C$23/'Data 2015'!$L$23,0.0001) -> 0 | G11: =IFERROR('Data 2018'!$C$23/'Data 2018'!$L$23,0.0001) -> 0 | H11: =K11/100 -> 0 | I11: =L11/100 -> 0 | K11: =$G11*100 -> 0 | L11: =$G11*100 -> 0
A12: Oil products | B12: =IFERROR('Data 1995'!$D$23/'Data 1995'!$L23,0.0001) -> 0.1095890411 | C12: =IFERROR('Data 2000'!$D$23/'Data 2000'!$L23,0.0001) -> 0.08883455583 | D12: =IFERROR('Data 2005'!$D$23/'Data 2005'!$L23,0.001) -> 0.06838905775 | E12: =IFERROR('Data 2010'!$D$23/'Data 2010'!$L23,0.00001) -> 0.04532577904 | F12: =IFERROR('Data 2015'!$D$23/'Data 2015'!$L23,0.00001) -> 0.1019736842 | G12: =IFERROR('Data 2018'!$D$23/'Data 2018'!$L23,0.0001) -> 0.008076728925 | H12: 0.008076728925 | I12: 0.008076728925 | K12: =$G12*100 -> 0.8076728925 | L12: 0.8076728925
A13: Natural Gas | B13: =IFERROR('Data 1995'!$E23/'Data 1995'!$L23,0.0001) -> 0 | C13: =IFERROR('Data 2000'!$E23/'Data 2000'!$L23,0.0001) -> 0 | D13: =IFERROR('Data 2005'!$E23/'Data 2005'!$L23,0.0001) -> 0.04179331307 | E13: =IFERROR('Data 2010'!$E23/'Data 2010'!$L23,0.00001) -> 0.07082152975 | F13: =IFERROR('Data 2015'!$E23/'Data 2015'!$L23,0.0001) -> 0.07565789474 | G13: =IFERROR('Data 2018'!$E23/'Data 2018'!$L23,0.0001) -> 0.07319535588 | H13: 0.07319535588 | I13: 0.07319535588 | K13: 7.319535588 | L13: 7.319535588
A14: Geothermal, Solar, Wind, etc. | B14: =IFERROR('Data 1995'!$H23/'Data 1995'!$L23,0.0001) -> 0 | C14: =IFERROR('Data 2000'!$H23/'Data 2000'!$L23,0.0001) -> 0 | D14: =IFERROR('Data 2005'!$H23/'Data 2005'!$L23,0.0001) -> 0 | E14: =IFERROR('Data 2010'!$H23/'Data 2010'!$L23,0.00001) -> 0 | F14: =IFERROR('Data 2015'!$H23/'Data 2015'!$L23,0.00001) -> 0 | G14: =IFERROR('Data 2018'!$H23/'Data 2018'!$L23,0.0001) -> 0 | H14: 0 | I14: 0 | K14: 0 | L14: 0
A15: Biofuels and Waste | B15: =IFERROR('Data 1995'!$I23/'Data 1995'!$L23,0.001) -> 0.8532289628 | C15: =IFERROR('Data 2000'!$I23/'Data 2000'!$L23,0.0001) -> 0.8598207009 | D15: =IFERROR('Data 2005'!$I23/'Data 2005'!$L23,0.0001) -> 0.8373860182 | E15: =IFERROR('Data 2010'!$I23/'Data 2010'!$L23,0.0001) -> 0.8208215297 | F15: =IFERROR('Data 2015'!$I23/'Data 2015'!$L23,0.0001) -> 0.6710526316 | G15: =IFERROR('Data 2018'!$I23/'Data 2018'!$L23,0.00001) -> 0.6486622918 | H15: 0.6486622918 | I15: 0.6486622918 | K15: 64.86622918 | L15: 64.86622918
A16: Electricity | B16: =IFERROR('Data 1995'!$J23/'Data 1995'!$L23,0.0001) -> 0.03424657534 | C16: =IFERROR('Data 2000'!$J23/'Data 2000'!$L23,0.0001) -> 0.02689486553 | D16: =IFERROR('Data 2005'!$J23/'Data 2005'!$L23,0.0001) -> 0.04711246201 | E16: =IFERROR('Data 2010'!$J23/'Data 2010'!$L23,0.000001) -> 0.06303116147 | F16: =IFERROR('Data 2015'!$J23/'Data 2015'!$L23,0.00001) -> 0.06414473684 | G16: =IFERROR('Data 2018'!$J23/'Data 2018'!$L23,0.00001) -> 0.07470974255 | H16: 0.07470974255 | I16: 0.07470974255 | K16: 7.470974255 | L16: 7.470974255
A17: Heat | B17: =IFERROR('Data 1995'!$K23/'Data 1995'!$L23,0.0001) -> 0 | C17: =IFERROR('Data 2000'!$K23/'Data 2000'!$L23,0.00001) -> 0 | D17: =IFERROR('Data 2005'!$K23/'Data 2005'!$L23,0.0001) -> 0 | E17: =IFERROR('Data 2010'!$K23/'Data 2010'!$L23,0.000001) -> 0 | F17: =IFERROR('Data 2015'!$K23/'Data 2015'!$L23,0.0001) -> 0 | G17: =IFERROR('Data 2018'!$K23/'Data 2018'!$L23,0.00001) -> 0 | H17: 0 | I17: 0 | K17: 0 | L17: 0
A18: Share of energyforms Transport
A19: Coal | B19: =IFERROR('Data 1995'!$B24/'Data 1995'!$L24,0.0001) -> 0 | C19: =IFERROR('Data 2000'!$B24/'Data 2000'!$L24,0.0001) -> 0 | D19: =IFERROR('Data 2005'!$B24/'Data 2005'!$L24,0.0001) -> 0 | E19: =IFERROR('Data 2010'!$B24/'Data 2010'!$L24,0.00001) -> 0 | F19: =IFERROR('Data 2015'!$B24/'Data 2015'!$L24,0.0001) -> 0 | G19: =IFERROR('Data 2018'!$B24/'Data 2018'!$L24,0.00001) -> 0 | H19: =K19/100 -> 0 | I19: =L19/100 -> 0 | K19: =$G19*100 -> 0 | L19: =$G19*100 -> 0
A20: Oil products | B20: =IFERROR('Data 1995'!$D24/'Data 1995'!$L24,0.0001) -> 1 | C20: =IFERROR('Data 2000'!$D24/'Data 2000'!$L24,0.0001) -> 1 | D20: =IFERROR('Data 2005'!$D24/'Data 2005'!$L24,0.0001) -> 1 | E20: =IFERROR('Data 2010'!$D24/'Data 2010'!$L24,0.000001) -> 1 | F20: =IFERROR('Data 2015'!$D24/'Data 2015'!$L24,0.00001) -> 1 | G20: =IFERROR('Data 2018'!$D24/'Data 2018'!$L24,0.0001) -> 1 | H20: =K20/100 -> 0.99 | I20: =L20/100 -> 0.99 | K20: =100-K19-SUM(K21:K25) -> 99 | L20: =100-L19-SUM(L21:L25) -> 99
A21: Natural Gas | B21: =IFERROR('Data 1995'!$E24/'Data 1995'!$L24,0.0001) -> 0 | C21: =IFERROR('Data 2000'!$E24/'Data 2000'!$L24,0.0001) -> 0 | D21: =IFERROR('Data 2005'!$E24/'Data 2005'!$L24,0.00001) -> 0 | E21: =IFERROR('Data 2010'!$E24/'Data 2010'!$L24,0.00001) -> 0 | F21: =IFERROR('Data 2015'!$E24/'Data 2015'!$L24,0.00001) -> 0 | G21: =IFERROR('Data 2018'!$E24/'Data 2018'!$L24,0.0001) -> 0 | H21: 0 | I21: 0 | K21: =$G21*100 -> 0 | L21: =$G21*100 -> 0
A22: Geothermal, Solar, Wind, etc. | B22: =IFERROR('Data 1995'!$H24/'Data 1995'!$L24,0.0001) -> 0 | C22: =IFERROR('Data 2000'!$H24/'Data 2000'!$L24,0.00001) -> 0 | D22: =IFERROR('Data 2005'!$H24/'Data 2005'!$L24,0.0001) -> 0 | E22: =IFERROR('Data 2010'!$H24/'Data 2010'!$L24,0.000001) -> 0 | F22: =IFERROR('Data 2015'!$H24/'Data 2015'!$L24,0.00001) -> 0 | G22: =IFERROR('Data 2018'!$H24/'Data 2018'!$L24,0.00001) -> 0 | H22: 0 | I22: 0 | K22: 0 | L22: 0
A23: Biofuels and Waste | B23: =IFERROR('Data 1995'!$I24/'Data 1995'!$L24,0.0001) -> 0 | C23: =IFERROR('Data 2000'!$I24/'Data 2000'!$L24,0.0001) -> 0 | D23: =IFERROR('Data 2005'!$I24/'Data 2005'!$L24,0.00001) -> 0 | E23: =IFERROR('Data 2010'!$I24/'Data 2010'!$L24,0.00001) -> 0 | F23: =IFERROR('Data 2015'!$I24/'Data 2015'!$L24,0.00001) -> 0 | G23: =IFERROR('Data 2018'!$I24/'Data 2018'!$L24,0.00001) -> 0 | H23: 0 | I23: 0 | K23: 0 | L23: 0
A24: Electricity | B24: =IFERROR('Data 1995'!$J24/'Data 1995'!$L24,0.0001) -> 0 | C24: =IFERROR('Data 2000'!$J24/'Data 2000'!$L24,0.00001) -> 0 | D24: =IFERROR('Data 2005'!$J24/'Data 2005'!$L24,0.00001) -> 0 | E24: =IFERROR('Data 2010'!$J24/'Data 2010'!$L24,0.00001) -> 0 | F24: =IFERROR('Data 2015'!$J24/'Data 2015'!$L24,0.0001) -> 0 | G24: =IFERROR('Data 2018'!$J24/'Data 2018'!$L24,0.00001) -> 0 | H24: 0.01 | I24: 0.01 | K24: 1 | L24: 1
A25: Heat | B25: =IFERROR('Data 1995'!$K24/'Data 1995'!$L24,0.0001) -> 0 | C25: =IFERROR('Data 2000'!$K24/'Data 2000'!$L24,0.0001) -> 0 | D25: =IFERROR('Data 2005'!$K24/'Data 2005'!$L24,0.00001) -> 0 | E25: =IFERROR('Data 2010'!$K24/'Data 2010'!$L24,0.00001) -> 0 | F25: =IFERROR('Data 2015'!$K24/'Data 2015'!$L24,0.00001) -> 0 | G25: =IFERROR('Data 2018'!$K24/'Data 2018'!$L24,0.0001) -> 0 | H25: 0 | I25: 0 | K25: 0 | L25: 0
A26: Share of energyforms Other
A27: Coal | B27: =IFERROR('Data 1995'!$B25/'Data 1995'!$L25,0.0001) -> 0 | C27: =IFERROR('Data 2000'!$B25/'Data 2000'!$L25,0.0001) -> 0 | D27: =IFERROR('Data 2005'!$B25/'Data 2005'!$L25,0.00001) -> 0 | E27: =IFERROR('Data 2010'!$B25/'Data 2010'!$L25,0.00001) -> 0 | F27: =IFERROR('Data 2015'!$B25/'Data 2015'!$L25,0.00001) -> 0 | G27: =IFERROR('Data 2018'!$B25/'Data 2018'!$L25,0.0001) -> 0 | H27: =K27/100 -> -7.86163522e-05 | I27: =L27/100 -> -7.86163522e-05 | K27: =100-SUM(K28:K33) -> -0.00786163522 | L27: =100-SUM(L28:L33) -> -0.00786163522
A28: Oil products | B28: =IFERROR('Data 1995'!$D25/'Data 1995'!$L25,0.0001) -> 0.02222806787 | C28: =IFERROR('Data 2000'!$D25/'Data 2000'!$L25,0.0001) -> 0.01005240081 | D28: =IFERROR('Data 2005'!$D25/'Data 2005'!$L25,0.0001) -> 0.01634796394 | E28: =IFERROR('Data 2010'!$D25/'Data 2010'!$L25,0.00001) -> 0.01593806922 | F28: =IFERROR('Data 2015'!$D25/'Data 2015'!$L25,0.0001) -> 0.00873655914 | G28: =IFERROR('Data 2018'!$D25/'Data 2018'!$L25,0.00001) -> 0.01210691824 | H28: =K28/100 -> 0.01210691824 | I28: =L28/100 -> 0.01210691824 | K28: =$G28*100 -> 1.210691824 | L28: =$G28*100 -> 1.210691824
A29: Natural Gas | B29: =IFERROR('Data 1995'!$E25/'Data 1995'!$L25,0.0001) -> 0 | C29: =IFERROR('Data 2000'!$E25/'Data 2000'!$L25,0.00001) -> 0 | D29: =IFERROR('Data 2005'!$E25/'Data 2005'!$L25,0.0001) -> 0 | E29: =IFERROR('Data 2010'!$E25/'Data 2010'!$L25,0.00001) -> 0 | F29: =IFERROR('Data 2015'!$E25/'Data 2015'!$L25,0.00001) -> 0 | G29: =IFERROR('Data 2018'!$E25/'Data 2018'!$L25,0.0001) -> 0 | H29: 0 | I29: 0 | K29: =$G29*100 -> 0 | L29: 0
A30: Geothermal, Solar, Wind, etc. | B30: =IFERROR('Data 1995'!$H25/'Data 1995'!$L25,0.0001) -> 0 | C30: =IFERROR('Data 2000'!$H25/'Data 2000'!$L25,0.001) -> 0 | D30: =IFERROR('Data 2005'!$H25/'Data 2005'!$L25,0.0001) -> 0 | E30: =IFERROR('Data 2010'!$H25/'Data 2010'!$L25,0.00001) -> 0 | F30: =IFERROR('Data 2015'!$H25/'Data 2015'!$L25,0.001) -> 0 | G30: =IFERROR('Data 2018'!$H25/'Data 2018'!$L25,0.0001) -> 0 | H30: 0 | I30: 0 | K30: 0 | L30: 0
A31: Biofuels and Waste | B31: =IFERROR('Data 1995'!$I25/'Data 1995'!$L25,0.00001) -> 0.9698803104 | C31: =IFERROR('Data 2000'!$I25/'Data 2000'!$L25,0.0001) -> 0.9801090792 | D31: =IFERROR('Data 2005'!$I25/'Data 2005'!$L25,0.00001) -> 0.9754285148 | E31: =IFERROR('Data 2010'!$I25/'Data 2010'!$L25,0.00001) -> 0.9704007286 | F31: =IFERROR('Data 2015'!$I25/'Data 2015'!$L25,0.0001) -> 0.9741263441 | G31: =IFERROR('Data 2018'!$I25/'Data 2018'!$L25,0.0001) -> 0.9695754717 | H31: 0.9695754717 | I31: 0.9695754717 | K31: 96.95754717 | L31: 96.95754717
A32: Electricity | B32: =IFERROR('Data 1995'!$J25/'Data 1995'!$L25,0.001) -> 0.007891621728 | C32: =IFERROR('Data 2000'!$J25/'Data 2000'!$L25,0.0001) -> 0.00973157951 | D32: =IFERROR('Data 2005'!$J25/'Data 2005'!$L25,0.00001) -> 0.008223521252 | E32: =IFERROR('Data 2010'!$J25/'Data 2010'!$L25,0.00001) -> 0.01366120219 | F32: =IFERROR('Data 2015'!$J25/'Data 2015'!$L25,0.00001) -> 0.01713709677 | G32: =IFERROR('Data 2018'!$J25/'Data 2018'!$L25,0.00001) -> 0.01839622642 | H32: 0.01839622642 | I32: 0.01839622642 | K32: 1.839622642 | L32: 1.839622642
A33: Heat | B33: =IFERROR('Data 1995'!$K25/'Data 1995'!$L25,0.001) -> 0 | C33: =IFERROR('Data 2000'!$K25/'Data 2000'!$L25,0.0001) -> 0 | D33: =IFERROR('Data 2005'!$K25/'Data 2005'!$L25,0.00001) -> 0 | E33: =IFERROR('Data 2010'!$K25/'Data 2010'!$L25,0.00001) -> 0 | F33: =IFERROR('Data 2015'!$K25/'Data 2015'!$L25,0.0001) -> 0 | G33: =IFERROR('Data 2018'!$K25/'Data 2018'!$L25,0.00001) -> 0 | H33: 0 | I33: 0 | K33: 0 | L33: 0
A34: Transport losses
A35: Electricity | B35: =IFERROR('Data 1995'!$J21/'Data 1995'!$J22*-1,0.0001) -> 0.1510791367 | C35: =IFERROR('Data 2000'!$J21/'Data 2000'!$J22*-1,0.0001) -> 0.2814371257 | D35: =IFERROR('Data 2005'!$J21/'Data 2005'!$J22*-1,0.00001) -> 0.2098214286 | E35: =IFERROR('Data 2010'!$J21/'Data 2010'!$J22*-1,0.0001) -> 0.2556818182 | F35: =IFERROR('Data 2015'!$J21/'Data 2015'!$J22*-1,0.00001) -> 0.2128603104 | G35: =IFERROR('Data 2018'!$J21/'Data 2018'!$J22*-1,0.0001) -> 0.1916058394 | H35: =G35 -> 0.1916058394 | I35: =G35 -> 0.1916058394
A36: Heat | B36: =IFERROR('Data 1995'!$K21/'Data 1995'!$K22*-1,0.0001) -> 0.0001 | C36: =IFERROR('Data 2000'!$K21/'Data 2000'!$K22*-1,0.0001) -> 0.0001 | D36: =IFERROR('Data 2005'!$K21/'Data 2005'!$K22*-1,0.0001) -> 0.0001 | E36: =IFERROR('Data 2010'!$K21/'Data 2010'!$K22*-1,0.0001) -> 0.0001 | F36: =IFERROR('Data 2015'!$K21/'Data 2015'!$K22*-1,0.00001) -> 1e-05 | G36: =IFERROR('Data 2018'!$K21/'Data 2018'!$K22*-1,0.00001) -> 1e-05 | H36: =G36 -> 1e-05 | I36: =H36 -> 1e-05
A37: Industry one use
A38: Industry one use (% of total consumption) | B38: =IFERROR('Data 1995'!$L$20/B4*0.041872,0.0001) -> 0.002346938776 | C38: =IFERROR('Data 2000'!$L$20/C4*0.041872,0.0001) -> 0.0004973474801 | D38: =IFERROR('Data 2005'!$L$20/D4*0.041872,0.00001) -> 0.000297596905 | E38: =IFERROR('Data 2010'!$L$20/E4*0.041872,0.00001) -> 6.749004522e-05 | F38: =IFERROR('Data 2015'!$L$20/F4*0.041872,0.0001) -> 5.855143744e-05 | G38: =IFERROR('Data 2018'!$L$20/G4*0.041872,0.0001) -> 0.0004417936824 | H38: =G38 -> 0.0004417936824 | I38: =H38 -> 0.0004417936824
A39: Distribution between energi forms
A40: Electricity | B40: =IFERROR('Data 1995'!$J20/'Data 1995'!$L20,0.0001) -> 0.2608695652 | C40: =IFERROR('Data 2000'!$J20/'Data 2000'!$L20,0.0001) -> 1 | D40: =IFERROR('Data 2005'!$J20/'Data 2005'!$L20,0.00001) -> 1 | E40: =IFERROR('Data 2010'!$J20/'Data 2010'!$L20,0.00001) -> 1 | F40: =IFERROR('Data 2015'!$J20/'Data 2015'!$L20,0.00001) -> 1 | G40: =IFERROR('Data 2018'!$J20/'Data 2018'!$L20,0.0001) -> 1 | H40: =$G40 -> 1 | I40: =$G40 -> 1
A41: Heat | B41: =IFERROR('Data 1995'!$K20/'Data 1995'!$L20,0.0001) -> 0 | C41: =IFERROR('Data 2000'!$K20/'Data 2000'!$L20,0.0001) -> 0 | D41: =IFERROR('Data 2005'!$K20/'Data 2005'!$L20,0.00001) -> 0 | E41: =IFERROR('Data 2010'!$K20/'Data 2010'!$L20,0.00001) -> 0 | F41: =IFERROR('Data 2015'!$K20/'Data 2015'!$L20,0.00001) -> 0 | G41: =IFERROR('Data 2018'!$K20/'Data 2018'!$L20,0.0001) -> 0 | H41: =$G41 -> 0 | I41: 0
A42: Coal | B42: =IFERROR('Data 1995'!$B20/'Data 1995'!$L20,0.0001) -> 0 | C42: =IFERROR('Data 2000'!$B20/'Data 2000'!$L20,0.0001) -> 0 | D42: =IFERROR('Data 2005'!$B20/'Data 2005'!$L20,0.0001) -> 0 | E42: =IFERROR('Data 2010'!$B20/'Data 2010'!$L20,0.0001) -> 0 | F42: =IFERROR('Data 2015'!$B20/'Data 2015'!$L20,0.0001) -> 0 | G42: =IFERROR('Data 2018'!$B20/'Data 2018'!$L20,0.0001) -> 0 | H42: 0 | I42: 0
A43: Natural Gas | B43: =IFERROR('Data 1995'!$E20/'Data 1995'!$L20,0.0001) -> 0 | C43: =IFERROR('Data 2000'!$E20/'Data 2000'!$L20,0.0001) -> 0 | D43: =IFERROR('Data 2005'!$E20/'Data 2005'!$L20,0.00001) -> 0 | E43: =IFERROR('Data 2010'!$E20/'Data 2010'!$L20,0.00001) -> 0 | F43: =IFERROR('Data 2015'!$E20/'Data 2015'!$L20,0.00001) -> 0 | G43: =IFERROR('Data 2018'!$E20/'Data 2018'!$L20,0.0001) -> 0 | H43: 0 | I43: 0
A44: Crude oil | B44: =IFERROR('Data 1995'!$C20/'Data 1995'!$L20,0.0001) -> 0 | C44: =IFERROR('Data 2000'!$C20/'Data 2000'!$L20,0.0001) -> 0 | D44: =IFERROR('Data 2005'!$C20/'Data 2005'!$L20,0.00001) -> 0 | E44: =IFERROR('Data 2010'!$C20/'Data 2010'!$L20,0.00001) -> 0 | F44: =IFERROR('Data 2015'!$C20/'Data 2015'!$L20,0.0001) -> 0 | G44: =IFERROR('Data 2018'!$C20/'Data 2018'!$L20,0.0001) -> 0 | H44: 0 | I44: 0
A45: Oil products | B45: =IFERROR('Data 1995'!$D20/'Data 1995'!$L20,0.00001) -> 0.6956521739 | C45: =IFERROR('Data 2000'!$D20/'Data 2000'!$L20,0.0001) -> 0 | D45: =IFERROR('Data 2005'!$D20/'Data 2005'!$L20,0.0001) -> 0 | E45: =IFERROR('Data 2010'!$D20/'Data 2010'!$L20,0.00001) -> 0 | F45: =IFERROR('Data 2015'!$D20/'Data 2015'!$L20,0.0001) -> 0 | G45: =IFERROR('Data 2018'!$D20/'Data 2018'!$L20,0.0001) -> 0 | H45: 0 | I45: 0
A46: Biofuels and waste | B46: =IFERROR('Data 1995'!$I20/'Data 1995'!$L20,0.0001) -> 0 | C46: =IFERROR('Data 2000'!$I20/'Data 2000'!$L20,0.0001) -> 0 | D46: =IFERROR('Data 2005'!$I20/'Data 2005'!$L20,0.00001) -> 0 | E46: =IFERROR('Data 2010'!$I20/'Data 2010'!$L20,0.00001) -> 0 | F46: =IFERROR('Data 2015'!$I20/'Data 2015'!$L20,0.0001) -> 0 | G46: =IFERROR('Data 2018'!$I20/'Data 2018'!$L20,0.0001) -> 0 | H46: =$G46 -> 0 | I46: =$G46 -> 0
A47: Distribution of production between technologies Heat
A48: CHP plants | B48: =IFERROR('Data 1995'!$K13/('Data 1995'!$K13+'Data 1995'!$K14),0.001) -> 0.001 | C48: =IFERROR('Data 2000'!$K13/('Data 2000'!$K13+'Data 2000'!$K14),0.0001) -> 0.0001 | D48: =IFERROR('Data 2005'!$K13/('Data 2005'!$K13+'Data 2005'!$K14),0.0001) -> 0.0001 | E48: =IFERROR('Data 2010'!$K13/('Data 2010'!$K13+'Data 2010'!$K14),0.0001) -> 0.0001 | F48: =IFERROR('Data 2015'!$K13/('Data 2015'!$K13+'Data 2015'!$K14),0.00001) -> 1e-05 | G48: =IFERROR('Data 2018'!$K13/('Data 2018'!$K13+'Data 2018'!$K14),0.001) -> 0.001 | H48: =K48/100 -> 0.999 | I48: =L48/100 -> 0.999 | K48: =100-K49 -> 99.9 | L48: =100-L49 -> 99.9
A49: Heat plants | B49: =IFERROR('Data 1995'!$K14/('Data 1995'!$K13+'Data 1995'!$K14),0.0001) -> 0.0001 | C49: =IFERROR('Data 2000'!$K14/('Data 2000'!$K13+'Data 2000'!$K14),0.0001) -> 0.0001 | D49: =IFERROR('Data 2005'!$K14/('Data 2005'!$K13+'Data 2005'!$K14),0.0001) -> 0.0001 | E49: =IFERROR('Data 2010'!$K14/('Data 2010'!$K13+'Data 2010'!$K14),0.0001) -> 0.0001 | F49: =IFERROR('Data 2015'!$K14/('Data 2015'!$K13+'Data 2015'!$K14),0.0001) -> 0.0001 | G49: =IFERROR('Data 2018'!$K14/('Data 2018'!$K13+'Data 2018'!$K14),0.001) -> 0.001 | H49: =K49/100 -> 0.001 | I49: =L49/100 -> 0.001 | K49: =G49*100 -> 0.1 | L49: =G49*100 -> 0.1
A50: Electricity consumption on Heat plants
A51: % of heat production on Heat plants | B51: =IFERROR('Data 1995'!$J14/'Data 1995'!$K14*-1,0.0001) -> 0.0001 | C51: =IFERROR('Data 2000'!$J14/'Data 2000'!$K14*-1,0.0001) -> 0.0001 | D51: =IFERROR('Data 2005'!$J14/'Data 2005'!$K14*-1,0.0001) -> 0.0001 | E51: =IFERROR('Data 2010'!$J14/'Data 2010'!$K14*-1,0.0001) -> 0.0001 | F51: =IFERROR('Data 2015'!$J14/'Data 2015'!$K14*-1,0.0001) -> 0.0001 | G51: =IFERROR('Data 2018'!$J14/'Data 2018'!$K14*-1,0.0001) -> 0.0001 | H51: =G51 -> 0.0001 | I51: =G51 -> 0.0001
A52: Ratio between electricity and heat production on CHP plants (Electricity)
A53: Cm-value | B53: =IFERROR('Data 1995'!$J13/'Data 1995'!$K13,0.0001) -> 0.0001 | C53: =IFERROR('Data 2000'!$J13/'Data 2000'!$K13,0.0001) -> 0.0001 | D53: =IFERROR('Data 2005'!$J13/'Data 2005'!$K13,0.0001) -> 0.0001 | E53: =IFERROR('Data 2010'!$J13/'Data 2010'!$K13,0.0001) -> 0.0001 | F53: =IFERROR('Data 2015'!$J13/'Data 2015'!$K13,0.0001) -> 0.0001 | G53: =IFERROR('Data 2018'!$J13/'Data 2018'!$K13,0.0001) -> 0.0001 | H53: =G53 -> 0.0001 | I53: =G53 -> 0.0001
A54: Distribution of production between technologies Oil products
A55: Oil refineries | B55: 1 | C55: 1 | D55: 1 | E55: 1 | F55: 1 | G55: 1 | H55: =G55 -> 1 | I55: =H55 -> 1
A56: Share of non-fuel RE for Electricity-only plants
A57: Hydro | B57: =IFERROR('Data 1995'!$G12/'Data 1995'!$J12*-1,0.0001) -> 0.8 | C57: =IFERROR('Data 2000'!$G12/'Data 2000'!$J12*-1,0.0001) -> 0.8638497653 | D57: =IFERROR('Data 2005'!$G12/'Data 2005'!$J12*-1,0.0001) -> 0.5 | E57: =IFERROR('Data 2010'!$G12/'Data 2010'!$J12*-1,0.0001) -> 0.5065502183 | F57: =IFERROR('Data 2015'!$G12/'Data 2015'!$J12*-1,0.0001) -> 0.3109965636 | G57: =IFERROR('Data 2018'!$G12/'Data 2018'!$J12*-1,0.0001) -> 0.308681672 | H57: =K57/100 -> 0.308681672 | I57: =L57/100 -> 0.308681672 | K57: =100*$G57 -> 30.8681672 | L57: =100*$G57 -> 30.8681672
A58: Geothermal, Solar, Wind, etc. | B58: =IFERROR('Data 1995'!$H12/'Data 1995'!$J12*-1,0.0001) -> 0 | C58: =IFERROR('Data 2000'!$H12/'Data 2000'!$J12*-1,0.0001) -> 0 | D58: =IFERROR('Data 2005'!$H12/'Data 2005'!$J12*-1,0.0001) -> 0 | E58: =IFERROR('Data 2010'!$H12/'Data 2010'!$J12*-1,0.0001) -> 0.002183406114 | F58: =IFERROR('Data 2015'!$H12/'Data 2015'!$J12*-1,0.0001) -> 0.001718213058 | G58: =IFERROR('Data 2018'!$H12/'Data 2018'!$J12*-1,0.0001) -> 0.01286173633 | H58: =K58/100 -> 0.01286173633 | I58: =L58/100 -> 0.01286173633 | K58: =100*$G58 -> 1.286173633 | L58: =100*$G58 -> 1.286173633
A59: Fuel based plants | B59: =1-B57-B58 -> 0.2 | C59: =1-C57-C58 -> 0.1361502347 | D59: 0.5 | E59: 0.4912663755 | F59: 0.6872852234 | G59: =1-G57-G58 -> 0.6784565916 | H59: 0.6784565916 | I59: 0.6784565916 | K59: =100-K57-K58 -> 67.84565916 | L59: =100-L57-L58 -> 67.84565916
A60: Import / Export of electricity | B60: =IFERROR(('Data 1995'!$J4+'Data 1995'!$J5)/'Data 1995'!$J22,0.000000001) -> 0.02158273381 | C60: =IFERROR(('Data 2000'!$J4+'Data 2000'!$J5)/'Data 2000'!$J22,0.000000001) -> 0.02994011976 | D60: =IFERROR(('Data 2005'!$J4+'Data 2005'!$J5)/'Data 2005'!$J22,0.000000001) -> 0.01785714286 | E60: =IFERROR(('Data 2010'!$J4+'Data 2010'!$J5)/'Data 2010'!$J22,0.000000001) -> 0.01420454545 | F60: =IFERROR(('Data 2015'!$J4+'Data 2015'!$J5)/'Data 2015'!$J22,0.000000001) -> 0.0133037694 | G60: =IFERROR(('Data 2018'!$J4+'Data 2018'!$J5)/'Data 2018'!$J22,0.000000001) -> 0.01824817518 | H60: =(K60-500)/1000 -> 0 | I60: =(L60-500)/1000 -> 0 | K60: 500 | L60: 500
A61: Share of non-fuel RE for CHP plants
A62: Geothermal, Solar, Wind, etc. | B62: =IFERROR('Data 1995'!$H13/('Data 1995'!$J13+'Data 1995'!$K13)*-1,0.0001) -> 0.0001 | C62: =IFERROR('Data 2000'!$H13/('Data 2000'!$J13+'Data 2000'!$K13)*-1,0.0001) -> 0.0001 | D62: =IFERROR('Data 2005'!$H13/('Data 2005'!$J13+'Data 2005'!$K13)*-1,0.0001) -> 0.0001 | E62: =IFERROR('Data 2010'!$H13/('Data 2010'!$J13+'Data 2010'!$K13)*-1,0.0001) -> 0.0001 | F62: =IFERROR('Data 2015'!$H13/('Data 2015'!$J13+'Data 2015'!$K13)*-1,0.0001) -> 0.0001 | G62: =IFERROR('Data 2018'!$H13/('Data 2018'!$J13+'Data 2018'!$K13)*-1,0.0001) -> 0.0001 | H62: =K62/100 -> 0.0001 | I62: =L62/100 -> 0.0001 | K62: =G62*100 -> 0.01 | L62: =G62*100 -> 0.01
A63: Fuel based plants | B63: =1-B62 -> 0.9999 | C63: =1-C62 -> 0.9999 | D63: 0.9999 | E63: 0.9999 | F63: 0.9999 | G63: =1-G62 -> 0.9999 | H63: =K63/100 -> 0.9999 | I63: =L63/100 -> 0.9999 | K63: =100-K62 -> 99.99 | L63: =100-L62 -> 99.99
A64: Share of non-fuel RE for Heat plants
A65: Geothermal, Solar, Wind, etc. | B65: =IFERROR('Data 1995'!$H14/'Data 1995'!$K14*-1,0.0001) -> 0.0001 | C65: =IFERROR('Data 2000'!$H14/'Data 2000'!$K14*-1,0.001) -> 0.001 | D65: =IFERROR('Data 2005'!$H14/'Data 2005'!$K14*-1,0.001) -> 0.001 | E65: =IFERROR('Data 2010'!$H14/'Data 2010'!$K14*-1,0.0001) -> 0.0001 | F65: =IFERROR('Data 2015'!$H14/'Data 2015'!$K14*-1,0.0001) -> 0.0001 | G65: =IFERROR('Data 2018'!$H14/'Data 2018'!$K14*-1,0.0001) -> 0.0001 | H65: =K65/100 -> 0.0001 | I65: =L65/100 -> 0.0001 | K65: =G65*100 -> 0.01 | L65: =G65*100 -> 0.01
A66: Fuel based plants | B66: =1-B65 -> 0.9999 | C66: =1-C65 -> 0.999 | D66: 0.999 | E66: 0.9999 | F66: 0.9999 | G66: =1-G65 -> 0.9999 | H66: =K66/100 -> 0.9999 | I66: =L66/100 -> 0.9999 | K66: =100-K65 -> 99.99 | L66: =100-L65 -> 99.99
A67: Efficiencies thermal plants
A68: Electricity-only plants | B68: =IFERROR(('Data 1995'!$J12+'Data 1995'!$G12+'Data 1995'!$H12)/('Data 1995'!$B12+'Data 1995'!$D12+'Data 1995'!$E12+'Data 1995'!$F12+'Data 1995'!$I12)*-1,0.0001) -> 0.1918604651 | C68: =IFERROR(('Data 2000'!$J12+'Data 2000'!$G12+'Data 2000'!$H12)/('Data 2000'!$B12+'Data 2000'!$D12+'Data 2000'!$E12+'Data 2000'!$F12+'Data 2000'!$I12)*-1,0.0001) -> 0.2929292929 | D68: =IFERROR(('Data 2005'!$J12+'Data 2005'!$G12+'Data 2005'!$H12)/('Data 2005'!$B12+'Data 2005'!$D12+'Data 2005'!$E12+'Data 2005'!$F12+'Data 2005'!$I12)*-1,0.0001) -> 0.3103448276 | E68: =IFERROR(('Data 2010'!$J12+'Data 2010'!$G12+'Data 2010'!$H12)/('Data 2010'!$B12+'Data 2010'!$D12+'Data 2010'!$E12+'Data 2010'!$F12+'Data 2010'!$I12)*-1,0.0001) -> 0.3548895899 | F68: =IFERROR(('Data 2015'!$J12+'Data 2015'!$G12+'Data 2015'!$H12)/('Data 2015'!$B12+'Data 2015'!$D12+'Data 2015'!$E12+'Data 2015'!$F12+'Data 2015'!$I12)*-1,0.0001) -> 0.3693444137 | G68: =IFERROR(('Data 2018'!$J12+'Data 2018'!$G12+'Data 2018'!$H12)/('Data 2018'!$B12+'Data 2018'!$D12+'Data 2018'!$E12+'Data 2018'!$F12+'Data 2018'!$I12)*-1,0.0001) -> 0.4741573034 | H68: =G68 -> 0.4741573034 | I68: =G68 -> 0.4741573034
A69: CHP plants | B69: =IFERROR(('Data 1995'!$J13+'Data 1995'!$K13+'Data 1995'!$H13)/('Data 1995'!$B13+'Data 1995'!$D13+'Data 1995'!$E13+'Data 1995'!$F13+'Data 1995'!$I13)*-1,0.0001) -> 0.0001 | C69: =IFERROR(('Data 2000'!$J13+'Data 2000'!$K13+'Data 2000'!$H13)/('Data 2000'!$B13+'Data 2000'!$D13+'Data 2000'!$E13+'Data 2000'!$F13+'Data 2000'!$I13)*-1,0.00001) -> 1e-05 | D69: =IFERROR(('Data 2005'!$J13+'Data 2005'!$K13+'Data 2005'!$H13)/('Data 2005'!$B13+'Data 2005'!$D13+'Data 2005'!$E13+'Data 2005'!$F13+'Data 2005'!$I13)*-1,0.0001) -> 0.0001 | E69: =IFERROR(('Data 2010'!$J13+'Data 2010'!$K13+'Data 2010'!$H13)/('Data 2010'!$B13+'Data 2010'!$D13+'Data 2010'!$E13+'Data 2010'!$F13+'Data 2010'!$I13)*-1,0.0001) -> 0.0001 | F69: =IFERROR(('Data 2015'!$J13+'Data 2015'!$K13+'Data 2015'!$H13)/('Data 2015'!$B13+'Data 2015'!$D13+'Data 2015'!$E13+'Data 2015'!$F13+'Data 2015'!$I13)*-1,0.0001) -> 0.0001 | G69: =IFERROR(('Data 2018'!$J13+'Data 2018'!$K13+'Data 2018'!$H13)/('Data 2018'!$B13+'Data 2018'!$D13+'Data 2018'!$E13+'Data 2018'!$F13+'Data 2018'!$I13)*-1,0.00001) -> 1e-05 | H69: =G69 -> 1e-05 | I69: =G69 -> 1e-05
A70: Heat Plants | B70: =IFERROR(('Data 1995'!$K14-'Data 1995'!$H14)/('Data 1995'!$B14+'Data 1995'!$D14+'Data 1995'!$E14+'Data 1995'!$I14)*-1,0.0001) -> 0.0001 | C70: =IFERROR(('Data 2000'!$K14-'Data 2000'!$H14)/('Data 2000'!$B14+'Data 2000'!$D14+'Data 2000'!$E14+'Data 2000'!$I14)*-1,0.0001) -> 0.0001 | D70: =IFERROR(('Data 2005'!$K14-'Data 2005'!$H14)/('Data 2005'!$B14+'Data 2005'!$D14+'Data 2005'!$E14+'Data 2005'!$I14)*-1,0.0001) -> 0.0001 | E70: =IFERROR(('Data 2010'!$K14-'Data 2010'!$H14)/('Data 2010'!$B14+'Data 2010'!$D14+'Data 2010'!$E14+'Data 2010'!$I14)*-1,0.0001) -> 0.0001 | F70: =IFERROR(('Data 2015'!$K14-'Data 2015'!$H14)/('Data 2015'!$B14+'Data 2015'!$D14+'Data 2015'!$E14+'Data 2015'!$I14)*-1,0.0001) -> 0.0001 | G70: =IFERROR(('Data 2018'!$K14-'Data 2018'!$H14)/('Data 2018'!$B14+'Data 2018'!$D14+'Data 2018'!$E14+'Data 2018'!$I14)*-1,0.0001) -> 0.0001 | H70: 0.0001 | I70: 0.0001
A71: Oil refineries | B71: =IFERROR('Data 1995'!$D16/'Data 1995'!$C16*-1,0.00001) -> 0.8938193344 | C71: =IFERROR('Data 2000'!$D16/'Data 2000'!$C16*-1,0.00001) -> 1e-05 | D71: =IFERROR('Data 2005'!$D16/'Data 2005'!$C16*-1,0.0001) -> 0.0001 | E71: =IFERROR('Data 2010'!$D16/'Data 2010'!$C16*-1,0.0001) -> 0.0001 | F71: =IFERROR('Data 2015'!$D16/'Data 2015'!$C16*-1,0.00001) -> 1e-05 | G71: =IFERROR('Data 2018'!$D16/'Data 2018'!$C16*-1,0.00001) -> 1e-05 | H71: 1e-05 | I71: 1e-05
A72: Fuel distribution for Electricity-only plants
A73: Coal | B73: =IFERROR('Data 1995'!$B12/('Data 1995'!$L12-'Data 1995'!$J12-'Data 1995'!$G12-'Data 1995'!$H12),0.0001) -> 0.1286549708 | C73: =IFERROR('Data 2000'!$B12/('Data 2000'!$L12-'Data 2000'!$J12-'Data 2000'!$G12-'Data 2000'!$H12),0.0001) -> 0.1919191919 | D73: =IFERROR('Data 2005'!$B12/('Data 2005'!$L12-'Data 2005'!$J12-'Data 2005'!$G12-'Data 2005'!$H12),0.0001) -> 0.0243902439 | E73: =IFERROR('Data 2010'!$B12/('Data 2010'!$L12-'Data 2010'!$J12-'Data 2010'!$G12-'Data 2010'!$H12),0.0001) -> 0 | F73: =IFERROR('Data 2015'!$B12/('Data 2015'!$L12-'Data 2015'!$J12-'Data 2015'!$G12-'Data 2015'!$H12),0.0001) -> 0 | G73: =IFERROR('Data 2018'!$B12/('Data 2018'!$L12-'Data 2018'!$J12-'Data 2018'!$G12-'Data 2018'!$H12),0.00001) -> 0 | H73: =K73/100 -> 0 | I73: =L73/100 -> 0 | K73: =100-SUM(K74:K78) -> 0 | L73: =100-SUM(L74:L78) -> 0
A74: Crude Oil | B74: =IFERROR('Data 1995'!$C12/('Data 1995'!$L12-'Data 1995'!$J12-'Data 1995'!$G12-'Data 1995'!$H12),0.0001) -> 0 | C74: =IFERROR('Data 2000'!$C12/('Data 2000'!$L12-'Data 2000'!$J12-'Data 2000'!$G12-'Data 2000'!$H12),0.0001) -> 0 | D74: =IFERROR('Data 2005'!$C12/('Data 2005'!$L12-'Data 2005'!$J12-'Data 2005'!$G12-'Data 2005'!$H12),0.0001) -> 0 | E74: =IFERROR('Data 2010'!$C12/('Data 2010'!$L12-'Data 2010'!$J12-'Data 2010'!$G12-'Data 2010'!$H12),0.0001) -> 0 | F74: =IFERROR('Data 2015'!$C12/('Data 2015'!$L12-'Data 2015'!$J12-'Data 2015'!$G12-'Data 2015'!$H12),0.00001) -> 0 | G74: =IFERROR('Data 2018'!$C12/('Data 2018'!$L12-'Data 2018'!$J12-'Data 2018'!$G12-'Data 2018'!$H12),0.00001) -> 0 | H74: =K74/100 -> 0 | I74: =L74/100 -> 0 | K74: =$G74*100 -> 0 | L74: =$G74*100 -> 0
A75: Oil products | B75: =IFERROR('Data 1995'!$D12/('Data 1995'!$L12-'Data 1995'!$J12-'Data 1995'!$G12-'Data 1995'!$H12),0.0001) -> 0.8771929825 | C75: =IFERROR('Data 2000'!$D12/('Data 2000'!$L12-'Data 2000'!$J12-'Data 2000'!$G12-'Data 2000'!$H12),0.0001) -> 0.8080808081 | D75: =IFERROR('Data 2005'!$D12/('Data 2005'!$L12-'Data 2005'!$J12-'Data 2005'!$G12-'Data 2005'!$H12),0.0001) -> 0.4085365854 | E75: =IFERROR('Data 2010'!$D12/('Data 2010'!$L12-'Data 2010'!$J12-'Data 2010'!$G12-'Data 2010'!$H12),0.0001) -> 0.09936908517 | F75: =IFERROR('Data 2015'!$D12/('Data 2015'!$L12-'Data 2015'!$J12-'Data 2015'!$G12-'Data 2015'!$H12),0.0001) -> 0.4265927978 | G75: =IFERROR('Data 2018'!$D12/('Data 2018'!$L12-'Data 2018'!$J12-'Data 2018'!$G12-'Data 2018'!$H12),0.0001) -> 0.4292134831 | H75: 0.4292134831 | I75: 0.4292134831 | K75: =$G75*100 -> 42.92134831 | L75: 42.92134831
A76: Natural Gas | B76: =IFERROR('Data 1995'!$E12/('Data 1995'!$L12-'Data 1995'!$J12-'Data 1995'!$G12-'Data 1995'!$H12),0.0001) -> 0 | C76: =IFERROR('Data 2000'!$E12/('Data 2000'!$L12-'Data 2000'!$J12-'Data 2000'!$G12-'Data 2000'!$H12),0.0001) -> 0 | D76: =IFERROR('Data 2005'!$E12/('Data 2005'!$L12-'Data 2005'!$J12-'Data 2005'!$G12-'Data 2005'!$H12),0.0001) -> 0.5691056911 | E76: =IFERROR('Data 2010'!$E12/('Data 2010'!$L12-'Data 2010'!$J12-'Data 2010'!$G12-'Data 2010'!$H12),0.0001) -> 0.8533123028 | F76: =IFERROR('Data 2015'!$E12/('Data 2015'!$L12-'Data 2015'!$J12-'Data 2015'!$G12-'Data 2015'!$H12),0.0001) -> 0.5475530933 | G76: =IFERROR('Data 2018'!$E12/('Data 2018'!$L12-'Data 2018'!$J12-'Data 2018'!$G12-'Data 2018'!$H12),0.00001) -> 0.5359550562 | H76: 0.5359550562 | I76: 0.5359550562 | K76: 53.59550562 | L76: 53.59550562
A77: Nuclear | B77: =IFERROR('Data 1995'!$F12/('Data 1995'!$L12-'Data 1995'!$J12-'Data 1995'!$G12-'Data 1995'!$H12),0.0001) -> 0 | C77: =IFERROR('Data 2000'!$F12/('Data 2000'!$L12-'Data 2000'!$J12-'Data 2000'!$G12-'Data 2000'!$H12),0.0001) -> 0 | D77: =IFERROR('Data 2005'!$F12/('Data 2005'!$L12-'Data 2005'!$J12-'Data 2005'!$G12-'Data 2005'!$H12),0.0001) -> 0 | E77: =IFERROR('Data 2010'!$F12/('Data 2010'!$L12-'Data 2010'!$J12-'Data 2010'!$G12-'Data 2010'!$H12),0.0001) -> 0 | F77: =IFERROR('Data 2015'!$F12/('Data 2015'!$L12-'Data 2015'!$J12-'Data 2015'!$G12-'Data 2015'!$H12),0.0001) -> 0 | G77: =IFERROR('Data 2018'!$F12/('Data 2018'!$L12-'Data 2018'!$J12-'Data 2018'!$G12-'Data 2018'!$H12),0.00001) -> 0 | H77: 0 | I77: 0 | K77: 0 | L77: 0
A78: Biofuels and Waste | B78: =IFERROR('Data 1995'!$I12/('Data 1995'!$L12-'Data 1995'!$J12-'Data 1995'!$G12-'Data 1995'!$H12),0.0001) -> 0 | C78: =IFERROR('Data 2000'!$I12/('Data 2000'!$L12-'Data 2000'!$J12-'Data 2000'!$G12-'Data 2000'!$H12),0.0001) -> 0 | D78: =IFERROR('Data 2005'!$I12/('Data 2005'!$L12-'Data 2005'!$J12-'Data 2005'!$G12-'Data 2005'!$H12),0.0001) -> 0 | E78: =IFERROR('Data 2010'!$I12/('Data 2010'!$L12-'Data 2010'!$J12-'Data 2010'!$G12-'Data 2010'!$H12),0.0001) -> 0.04731861199 | F78: =IFERROR('Data 2015'!$I12/('Data 2015'!$L12-'Data 2015'!$J12-'Data 2015'!$G12-'Data 2015'!$H12),0.0001) -> 0.02585410896 | G78: =IFERROR('Data 2018'!$I12/('Data 2018'!$L12-'Data 2018'!$J12-'Data 2018'!$G12-'Data 2018'!$H12),0.0001) -> 0.03483146067 | H78: 0.03483146067 | I78: 0.03483146067 | K78: 3.483146067 | L78: 3.483146067
A79: Fuel distribution for CHP plants
A80: Coal | B80: =IFERROR('Data 1995'!$B13/('Data 1995'!$L13-'Data 1995'!$J13-'Data 1995'!$K13-'Data 1995'!$G13-'Data 1995'!$H13),0.0001) -> 0.0001 | C80: =IFERROR('Data 2000'!$B13/('Data 2000'!$L13-'Data 2000'!$J13-'Data 2000'!$K13-'Data 2000'!$G13-'Data 2000'!$H13),0.0001) -> 0.0001 | D80: =IFERROR('Data 2005'!$B13/('Data 2005'!$L13-'Data 2005'!$J13-'Data 2005'!$K13-'Data 2005'!$G13-'Data 2005'!$H13),0.0001) -> 0.0001 | E80: =IFERROR('Data 2010'!$B13/('Data 2010'!$L13-'Data 2010'!$J13-'Data 2010'!$K13-'Data 2010'!$G13-'Data 2010'!$H13),0.0001) -> 0.0001 | F80: =IFERROR('Data 2015'!$B13/('Data 2015'!$L13-'Data 2015'!$J13-'Data 2015'!$K13-'Data 2015'!$G13-'Data 2015'!$H13),0.000001) -> 1e-06 | G80: =IFERROR('Data 2018'!$B13/('Data 2018'!$L13-'Data 2018'!$J13-'Data 2018'!$K13-'Data 2018'!$G13-'Data 2018'!$H13),0.00001) -> 1e-05 | H80: =K80/100 -> 0.34889 | I80: =L80/100 -> 0.99878 | K80: =100-SUM(K81:K85) -> 34.889 | L80: =100-SUM(L81:L85) -> 99.878
A81: Crude Oil | B81: =IFERROR('Data 1995'!$C13/('Data 1995'!$L13-'Data 1995'!$J13-'Data 1995'!$K13-'Data 1995'!$G13-'Data 1995'!$H13),0.0001) -> 0.0001 | C81: =IFERROR('Data 2000'!$C13/('Data 2000'!$L13-'Data 2000'!$J13-'Data 2000'!$K13-'Data 2000'!$G13-'Data 2000'!$H13),0.0001) -> 0.0001 | D81: =IFERROR('Data 2005'!$C13/('Data 2005'!$L13-'Data 2005'!$J13-'Data 2005'!$K13-'Data 2005'!$G13-'Data 2005'!$H13),0.0001) -> 0.0001 | E81: =IFERROR('Data 2010'!$C13/('Data 2010'!$L13-'Data 2010'!$J13-'Data 2010'!$K13-'Data 2010'!$G13-'Data 2010'!$H13),0.0001) -> 0.0001 | F81: =IFERROR('Data 2015'!$C13/('Data 2015'!$L13-'Data 2015'!$J13-'Data 2015'!$K13-'Data 2015'!$G13-'Data 2015'!$H13),0.00001) -> 1e-05 | G81: =IFERROR('Data 2018'!$C13/('Data 2018'!$L13-'Data 2018'!$J13-'Data 2018'!$K13-'Data 2018'!$G13-'Data 2018'!$H13),0.00001) -> 1e-05 | H81: =K81/100 -> 1e-05 | I81: =L81/100 -> 1e-05 | K81: =$G81*100 -> 0.001 | L81: =$G81*100 -> 0.001
A82: Oil products | B82: =IFERROR('Data 1995'!$D13/('Data 1995'!$L13-'Data 1995'!$J13-'Data 1995'!$K13-'Data 1995'!$G13-'Data 1995'!$H13),0.0001) -> 0.0001 | C82: =IFERROR('Data 2000'!$D13/('Data 2000'!$L13-'Data 2000'!$J13-'Data 2000'!$K13-'Data 2000'!$G13-'Data 2000'!$H13),0.0001) -> 0.0001 | D82: =IFERROR('Data 2005'!$D13/('Data 2005'!$L13-'Data 2005'!$J13-'Data 2005'!$K13-'Data 2005'!$G13-'Data 2005'!$H13),0.0001) -> 0.0001 | E82: =IFERROR('Data 2010'!$D13/('Data 2010'!$L13-'Data 2010'!$J13-'Data 2010'!$K13-'Data 2010'!$G13-'Data 2010'!$H13),0.0001) -> 0.0001 | F82: =IFERROR('Data 2015'!$D13/('Data 2015'!$L13-'Data 2015'!$J13-'Data 2015'!$K13-'Data 2015'!$G13-'Data 2015'!$H13),0.0001) -> 0.0001 | G82: =IFERROR('Data 2018'!$D13/('Data 2018'!$L13-'Data 2018'!$J13-'Data 2018'!$K13-'Data 2018'!$G13-'Data 2018'!$H13),0.0001) -> 0.0001 | H82: 0.0001 | I82: 0.0001 | K82: =$G82*100 -> 0.01 | L82: 0.01
A83: Natural Gas | B83: =IFERROR('Data 1995'!$E13/('Data 1995'!$L13-'Data 1995'!$J13-'Data 1995'!$K13-'Data 1995'!$G13-'Data 1995'!$H13),0.0001) -> 0.0001 | C83: =IFERROR('Data 2000'!$E13/('Data 2000'!$L13-'Data 2000'!$J13-'Data 2000'!$K13-'Data 2000'!$G13-'Data 2000'!$H13),0.0001) -> 0.0001 | D83: =IFERROR('Data 2005'!$E13/('Data 2005'!$L13-'Data 2005'!$J13-'Data 2005'!$K13-'Data 2005'!$G13-'Data 2005'!$H13),0.0001) -> 0.0001 | E83: =IFERROR('Data 2010'!$E13/('Data 2010'!$L13-'Data 2010'!$J13-'Data 2010'!$K13-'Data 2010'!$G13-'Data 2010'!$H13),0.00001) -> 1e-05 | F83: =IFERROR('Data 2015'!$E13/('Data 2015'!$L13-'Data 2015'!$J13-'Data 2015'!$K13-'Data 2015'!$G13-'Data 2015'!$H13),0.0001) -> 0.0001 | G83: =IFERROR('Data 2018'!$E13/('Data 2018'!$L13-'Data 2018'!$J13-'Data 2018'!$K13-'Data 2018'!$G13-'Data 2018'!$H13),0.0001) -> 0.0001 | H83: 0.11 | I83: 0.0001 | K83: 11 | L83: 0.01
A84: Nuclear | B84: =IFERROR('Data 1995'!$F13/('Data 1995'!$L13-'Data 1995'!$J13-'Data 1995'!$K13-'Data 1995'!$G13-'Data 1995'!$H13),0.0001) -> 0.0001 | C84: =IFERROR('Data 2000'!$F13/('Data 2000'!$L13-'Data 2000'!$J13-'Data 2000'!$K13-'Data 2000'!$G13-'Data 2000'!$H13),0.00001) -> 1e-05 | D84: =IFERROR('Data 2005'!$F13/('Data 2005'!$L13-'Data 2005'!$J13-'Data 2005'!$K13-'Data 2005'!$G13-'Data 2005'!$H13),0.0001) -> 0.0001 | E84: =IFERROR('Data 2010'!$F13/('Data 2010'!$L13-'Data 2010'!$J13-'Data 2010'!$K13-'Data 2010'!$G13-'Data 2010'!$H13),0.00001) -> 1e-05 | F84: =IFERROR('Data 2015'!$F13/('Data 2015'!$L13-'Data 2015'!$J13-'Data 2015'!$K13-'Data 2015'!$G13-'Data 2015'!$H13),0.0001) -> 0.0001 | G84: =IFERROR('Data 2018'!$F13/('Data 2018'!$L13-'Data 2018'!$J13-'Data 2018'!$K13-'Data 2018'!$G13-'Data 2018'!$H13),0.001) -> 0.001 | H84: 0.001 | I84: 0.001 | K84: 0.1 | L84: 0.1
A85: Biofuels and Waste | B85: =IFERROR('Data 1995'!$I13/('Data 1995'!$L13-'Data 1995'!$J13-'Data 1995'!$K13-'Data 1995'!$G13-'Data 1995'!$H13),0.0001) -> 0.0001 | C85: =IFERROR('Data 2000'!$I13/('Data 2000'!$L13-'Data 2000'!$J13-'Data 2000'!$K13-'Data 2000'!$G13-'Data 2000'!$H13),0.0001) -> 0.0001 | D85: =IFERROR('Data 2005'!$I13/('Data 2005'!$L13-'Data 2005'!$J13-'Data 2005'!$K13-'Data 2005'!$G13-'Data 2005'!$H13),0.0001) -> 0.0001 | E85: =IFERROR('Data 2010'!$I13/('Data 2010'!$L13-'Data 2010'!$J13-'Data 2010'!$K13-'Data 2010'!$G13-'Data 2010'!$H13),0.0001) -> 0.0001 | F85: =IFERROR('Data 2015'!$I13/('Data 2015'!$L13-'Data 2015'!$J13-'Data 2015'!$K13-'Data 2015'!$G13-'Data 2015'!$H13),0.00001) -> 1e-05 | G85: =IFERROR('Data 2018'!$I13/('Data 2018'!$L13-'Data 2018'!$J13-'Data 2018'!$K13-'Data 2018'!$G13-'Data 2018'!$H13),0.00001) -> 1e-05 | H85: 0.54 | I85: 1e-05 | K85: 54 | L85: 0.001
A86: Fuel distribution for Heat plants
A87: Coal | B87: =IFERROR('Data 1995'!$B14/('Data 1995'!$L14-'Data 1995'!$J14-'Data 1995'!$K14-'Data 1995'!$G14-'Data 1995'!$H14),0.0001) -> 0.0001 | C87: =IFERROR('Data 2000'!$B14/('Data 2000'!$L14-'Data 2000'!$J14-'Data 2000'!$K14-'Data 2000'!$G14-'Data 2000'!$H14),0.0001) -> 0.0001 | D87: =IFERROR('Data 2005'!$B14/('Data 2005'!$L14-'Data 2005'!$J14-'Data 2005'!$K14-'Data 2005'!$G14-'Data 2005'!$H14),0.0001) -> 0.0001 | E87: =IFERROR('Data 2010'!$B14/('Data 2010'!$L14-'Data 2010'!$J14-'Data 2010'!$K14-'Data 2010'!$G14-'Data 2010'!$H14),0.0001) -> 0.0001 | F87: =IFERROR('Data 2015'!$B14/('Data 2015'!$L14-'Data 2015'!$J14-'Data 2015'!$K14-'Data 2015'!$G14-'Data 2015'!$H14),0.00001) -> 1e-05 | G87: =IFERROR('Data 2018'!$B14/('Data 2018'!$L14-'Data 2018'!$J14-'Data 2018'!$K14-'Data 2018'!$G14-'Data 2018'!$H14),0.0001) -> 0.0001 | H87: =K87/100 -> 0.0188 | I87: =L87/100 -> 0.9986 | K87: =100-SUM(K88:K92) -> 1.88 | L87: =100-SUM(L88:L92) -> 99.86
A88: Crude Oil | B88: =IFERROR('Data 1995'!$C14/('Data 1995'!$L14-'Data 1995'!$J14-'Data 1995'!$K14-'Data 1995'!$G14-'Data 1995'!$H14),0.0001) -> 0.0001 | C88: =IFERROR('Data 2000'!$C14/('Data 2000'!$L14-'Data 2000'!$J14-'Data 2000'!$K14-'Data 2000'!$G14-'Data 2000'!$H14),0.0001) -> 0.0001 | D88: =IFERROR('Data 2005'!$C14/('Data 2005'!$L14-'Data 2005'!$J14-'Data 2005'!$K14-'Data 2005'!$G14-'Data 2005'!$H14),0.0001) -> 0.0001 | E88: =IFERROR('Data 2010'!$C14/('Data 2010'!$L14-'Data 2010'!$J14-'Data 2010'!$K14-'Data 2010'!$G14-'Data 2010'!$H14),0.00001) -> 1e-05 | F88: =IFERROR('Data 2015'!$C14/('Data 2015'!$L14-'Data 2015'!$J14-'Data 2015'!$K14-'Data 2015'!$G14-'Data 2015'!$H14),0.00001) -> 1e-05 | G88: =IFERROR('Data 2018'!$C14/('Data 2018'!$L14-'Data 2018'!$J14-'Data 2018'!$K14-'Data 2018'!$G14-'Data 2018'!$H14),0.0001) -> 0.0001 | H88: =K88/100 -> 0.0001 | I88: =L88/100 -> 0.0001 | K88: =$G88*100 -> 0.01 | L88: =$G88*100 -> 0.01
A89: Oil products | B89: =IFERROR('Data 1995'!$D14/('Data 1995'!$L14-'Data 1995'!$J14-'Data 1995'!$K14-'Data 1995'!$G14-'Data 1995'!$H14),0.0001) -> 0.0001 | C89: =IFERROR('Data 2000'!$D14/('Data 2000'!$L14-'Data 2000'!$J14-'Data 2000'!$K14-'Data 2000'!$G14-'Data 2000'!$H14),0.0001) -> 0.0001 | D89: =IFERROR('Data 2005'!$D14/('Data 2005'!$L14-'Data 2005'!$J14-'Data 2005'!$K14-'Data 2005'!$G14-'Data 2005'!$H14),0.0001) -> 0.0001 | E89: =IFERROR('Data 2010'!$D14/('Data 2010'!$L14-'Data 2010'!$J14-'Data 2010'!$K14-'Data 2010'!$G14-'Data 2010'!$H14),0.0001) -> 0.0001 | F89: =IFERROR('Data 2015'!$D14/('Data 2015'!$L14-'Data 2015'!$J14-'Data 2015'!$K14-'Data 2015'!$G14-'Data 2015'!$H14),0.0001) -> 0.0001 | G89: =IFERROR('Data 2018'!$D14/('Data 2018'!$L14-'Data 2018'!$J14-'Data 2018'!$K14-'Data 2018'!$G14-'Data 2018'!$H14),0.0001) -> 0.0001 | H89: 0.0001 | I89: 0.0001 | K89: =$G89*100 -> 0.01 | L89: 0.01
A90: Natural Gas | B90: =IFERROR('Data 1995'!$E14/('Data 1995'!$L14-'Data 1995'!$J14-'Data 1995'!$K14-'Data 1995'!$G14-'Data 1995'!$H14),0.0001) -> 0.0001 | C90: =IFERROR('Data 2000'!$E14/('Data 2000'!$L14-'Data 2000'!$J14-'Data 2000'!$K14-'Data 2000'!$G14-'Data 2000'!$H14),0.0001) -> 0.0001 | D90: =IFERROR('Data 2005'!$E14/('Data 2005'!$L14-'Data 2005'!$J14-'Data 2005'!$K14-'Data 2005'!$G14-'Data 2005'!$H14),0.0001) -> 0.0001 | E90: =IFERROR('Data 2010'!$E14/('Data 2010'!$L14-'Data 2010'!$J14-'Data 2010'!$K14-'Data 2010'!$G14-'Data 2010'!$H14),0.00001) -> 1e-05 | F90: =IFERROR('Data 2015'!$E14/('Data 2015'!$L14-'Data 2015'!$J14-'Data 2015'!$K14-'Data 2015'!$G14-'Data 2015'!$H14),0.00001) -> 1e-05 | G90: =IFERROR('Data 2018'!$E14/('Data 2018'!$L14-'Data 2018'!$J14-'Data 2018'!$K14-'Data 2018'!$G14-'Data 2018'!$H14),0.0001) -> 0.0001 | H90: 0.36 | I90: 0.0001 | K90: 36 | L90: 0.01
A91: Nuclear | B91: =IFERROR('Data 1995'!$F14/('Data 1995'!$L14-'Data 1995'!$J14-'Data 1995'!$K14-'Data 1995'!$G14-'Data 1995'!$H14),0.0001) -> 0.0001 | C91: =IFERROR('Data 2000'!$F14/('Data 2000'!$L14-'Data 2000'!$J14-'Data 2000'!$K14-'Data 2000'!$G14-'Data 2000'!$H14),0.0001) -> 0.0001 | D91: =IFERROR('Data 2005'!$F14/('Data 2005'!$L14-'Data 2005'!$J14-'Data 2005'!$K14-'Data 2005'!$G14-'Data 2005'!$H14),0.0001) -> 0.0001 | E91: =IFERROR('Data 2010'!$F14/('Data 2010'!$L14-'Data 2010'!$J14-'Data 2010'!$K14-'Data 2010'!$G14-'Data 2010'!$H14),0.00001) -> 1e-05 | F91: =IFERROR('Data 2015'!$F14/('Data 2015'!$L14-'Data 2015'!$J14-'Data 2015'!$K14-'Data 2015'!$G14-'Data 2015'!$H14),0.00001) -> 1e-05 | G91: =IFERROR('Data 2018'!$F14/('Data 2018'!$L14-'Data 2018'!$J14-'Data 2018'!$K14-'Data 2018'!$G14-'Data 2018'!$H14),0.001) -> 0.001 | H91: 0.001 | I91: 0.001 | K91: =$G91*100 -> 0.1 | L91: 0.1
A92: Biofuels and Waste | B92: =IFERROR('Data 1995'!$I14/('Data 1995'!$L14-'Data 1995'!$J14-'Data 1995'!$K14-'Data 1995'!$G14-'Data 1995'!$H14),0.0001) -> 0.0001 | C92: =IFERROR('Data 2000'!$I14/('Data 2000'!$L14-'Data 2000'!$J14-'Data 2000'!$K14-'Data 2000'!$G14-'Data 2000'!$H14),0.0001) -> 0.0001 | D92: =IFERROR('Data 2005'!$I14/('Data 2005'!$L14-'Data 2005'!$J14-'Data 2005'!$K14-'Data 2005'!$G14-'Data 2005'!$H14),0.0001) -> 0.0001 | E92: =IFERROR('Data 2010'!$I14/('Data 2010'!$L14-'Data 2010'!$J14-'Data 2010'!$K14-'Data 2010'!$G14-'Data 2010'!$H14),0.0001) -> 0.0001 | F92: =IFERROR('Data 2015'!$I14/('Data 2015'!$L14-'Data 2015'!$J14-'Data 2015'!$K14-'Data 2015'!$G14-'Data 2015'!$H14),0.0001) -> 0.0001 | G92: =IFERROR('Data 2018'!$I14/('Data 2018'!$L14-'Data 2018'!$J14-'Data 2018'!$K14-'Data 2018'!$G14-'Data 2018'!$H14),0.0001) -> 0.0001 | H92: 0.62 | I92: 0.0001 | K92: 62 | L92: 0.01
A93: Fuel distribution for Oil refineries
A94: Coal | B94: 0 | C94: 0 | D94: 0 | E94: 0 | F94: 0 | G94: 0 | H94: =G94 -> 0 | I94: =G94 -> 0
A95: Crude Oil | B95: 1 | C95: 1 | D95: 1 | E95: 1 | F95: 1 | G95: 1 | H95: =G95 -> 1 | I95: =G95 -> 1
A96: Biofuels and Waste | B96: 0 | C96: 0 | D96: 0 | E96: 0 | F96: 0 | G96: 0 | H96: =G96 -> 0 | I96: =G96 -> 0
A97: Fluegas cleaning
A98: Coal fired power plants | H98: =K98/100 -> 0 | I98: =L98/100 -> 0 | K98: 0 | L98: 0
A99: Oilfired power plants | H99: =K99/100 -> 0 | I99: =L99/100 -> 0 | K99: 0 | L99: 0
A100: Natural gas fired power plants | H100: 0 | I100: 0 | K100: 0 | L100: 0
A101: Biomass-fired power plants | H101: 0 | I101: 0 | K101: 0 | L101: 0
A102: CHP plants | H102: 0 | I102: 0 | K102: 0 | L102: 0
A103: Heat only plants | H103: 0 | I103: =L103/100 -> 0 | K103: 0 | L103: 0
A104: Efficiency of final consumption
A105: Fuels | G105: 0.8 | H105: 0.8 | I105: 0.8
A106: Fuels in Transport | G106: 0.3 | H106: 0.3 | I106: 0.3
A107: Electricity | G107: 0.95 | H107: 0.95 | I107: 0.95
A108: Other | G108: 1 | H108: 1 | I108: 1
A110: Overview 2018 + Results 2050
B112: 1995 | C112: 2000 | D112: 2005 | E112: 2010 | F112: 2015 | G112: 2018 | H112: 2030 | I112: 2050
A113: Total final consumption | B113: =B4*-1 -> 410.3456 | C113: =C4*-1 -> 505.143808 | D113: 562.801552 | E113: 620.417424 | F113: 715.131888 | G113: 758.218176 | H113: =H4*-1 -> 500 | I113: 500
A114: CO2 emission (million tonne) | B114: =B3 -> 2.386203746 | C114: =C3 -> 2.60022689 | D114: 4.760851827 | E114: 5.81540255 | F114: 10.04743121 | G114: 10.31420266 | H114: =H3 -> 7.674359598 | I114: 6.810875376
A115: Share of consumption
A116: Industry | B116: =B6 -> 0.1042857143 | C116: =C6 -> 0.1017075597 | D116: 0.09790938174 | E116: 0.09529594385 | F116: 0.1067978219 | G116: 0.1093991606 | H116: =H6 -> 0.17 | I116: 0.1093991606
A117: Transport | B117: =B7 -> 0.03020408163 | C117: =C7 -> 0.03970490716 | D117: 0.06740569898 | E117: 0.07842343254 | F117: 0.1111891797 | G117: 0.1031036006 | H117: =H7 -> 0.1031036006 | I117: 0.1031036006
A118: Other | B118: =B8 -> 0.8639795918 | C118: 0.8585046419 | D118: 0.8346849193 | E118: 0.8262806236 | F118: 0.779553838 | G118: 0.7874972388 | H118: =H8 -> 0.7268963994 | I118: 0.7874972388
A119: Share of energyforms in consumption
A120: Coal | B120: =B4*-1*B6*B10+B4*-1*B7*B19+B4*-1*B8*B27 -> 0.125616 | C120: =C4*-1*C6*C10+C4*-1*C7*C19+C4*-1*C8*C27 -> 1.25616 | D120: 0.293104 | E120: 0 | F120: 6.615776 | G120: =G4*-1*G6*G10+G4*-1*G7*G19+G4*-1*G8*G27 -> 16.204464 | H120: =H4*-1*H6*H10+H4*-1*H7*H19+H4*-1*H8*H27 -> 16.5766769 | I120: =I4*-1*I6*I10+I4*-1*I7*I19+I4*-1*I8*I27 -> 10.65492961
A121: Crude Oil | B121: =B4*-1*B6*B11 -> 0 | C121: =C4*-1*C6*C11 -> 0 | D121: 0 | E121: 0 | F121: 0 | G121: 0 | H121: =H4*-1*H6*H11 -> 0 | I121: =I4*-1*I6*I11 -> 0
A122: Oil products | B122: =B4*-1*B6*B12+B4*-1*B7*B20+B4*-1*B8*B28 -> 24.96429788 | C122: =C4*-1*C6*C12+C4*-1*C7*C20+C4*-1*C8*C28 -> 28.98014361 | D122: =D4*-1*D6*D12+D4*-1*D7*D20+D4*-1*D8*D28 -> 49.38416371 | E122: =E4*-1*E6*E12+E4*-1*E7*E20+E4*-1*E8*E28 -> 59.50554621 | F122: 92.17361026 | G122: =G4*-1*G6*G12+G4*-1*G7*G20+G4*-1*G8*G28 -> 86.07395296 | H122: =H4*-1*H6*H12+H4*-1*H7*H20+H4*-1*H8*H28 -> 56.1230419 | I122: =I4*-1*I6*I12+I4*-1*I7*I20+I4*-1*I8*I28 -> 56.24515833
A123: Natural Gas | B123: =B4*-1*B6*B13+B4*-1*B7*B21+B4*-1*B8*B29 -> 0 | C123: =C4*-1*C6*C13+C4*-1*C7*C21+C4*-1*C8*C29 -> 0 | D123: 2.30296 | E123: 4.1872 | F123: 5.778336 | G123: 6.07144 | H123: =H4*-1*H6*H13+H4*-1*H7*H21+H4*-1*H8*H29 -> 6.22160525 | I123: 4.003755246
A124: Geothermal, Solar, Wind, etc. | B124: =B4*-1*B6*B14+B4*-1*B7*B22+B4*-1*B8*B30 -> 0 | C124: =C4*-1*C6*C14+C4*-1*C7*C22+C4*-1*C8*C30 -> 0 | D124: 0 | E124: 0 | F124: 0 | G124: 0 | H124: =H4*-1*H6*H14+H4*-1*H7*H22+H4*-1*H8*H30 -> 0 | I124: 0
A125: Biofuels and Waste | B125: =B4*-1*B6*B15+B4*-1*B7*B23+B4*-1*B8*B31 -> 380.3642677 | C125: =C4*-1*C6*C15+C4*-1*C7*C23+C4*-1*C8*C31 -> 469.2172021 | D125: 504.3621628 | E125: 545.9948062 | F125: 594.3109918 | G125: 632.7339148 | H125: =H4*-1*H6*H15+H4*-1*H7*H23+H4*-1*H8*H31 -> 407.5267545 | I125: 417.2505585
A126: Electricity | B126: =B4*-1*B6*B16+B4*-1*B7*B24+B4*-1*B8*B32 -> 4.263338419 | C126: =C4*-1*C6*C16+C4*-1*C7*C24+C4*-1*C8*C32 -> 5.602053581 | D126: 6.459161527 | E126: 10.72987161 | F126: 14.45267797 | G126: 17.18134566 | H126: =H4*-1*H6*H16+H4*-1*H7*H24+H4*-1*H8*H32 -> 13.55192149 | I126: 11.84559832
A127: Heat | B127: =B4*-1*B6*B17+B4*-1*B7*B25+B4*-1*B8*B33 -> 0 | C127: =C4*-1*C6*C17+C4*-1*C7*C25+C4*-1*C8*C33 -> 0 | D127: 0 | E127: 0 | F127: 0 | G127: 0 | H127: =H4*-1*H6*H17+H4*-1*H7*H25+H4*-1*H8*H33 -> 0 | I127: 0
A128: Share of primary energyforms
A129: Coal | B129: =$B$137*(1+$B$68)*$B$63*B73+$B$138*$B$48*(1+$B$69)*B80+$B$138*$B$49*(1+$B$70)*B87 -> 0.7524255652 | C129: =$C$137*(1+$C$68)*$C$63*C73+$C$138*$C$48*(1+$C$69)*C80+$C$138*$C$49*(1+$C$70)*C87 -> 1.781124634 | D129: =$D$137*(1+$D$68)*$D$63*D73+$D$138*$D$48*(1+$D$69)*D80+$D$138*$D$49*(1+$D$70)*D87 -> 0.2497213811 | E129: =$E$137*(1+$E$68)*$E$63*E73+$E$138*$E$48*(1+$E$69)*E80+$E$138*$E$49*(1+$E$70)*E87 -> 0 | F129: =$F$137*(1+$F$68)*$F$63*F73+$F$138*$F$48*(1+$F$69)*F80+$F$138*$F$49*(1+$F$70)*F87 -> 0 | G129: =$G$137*(1+$G$68)*$G$63*G73+$G$138*$G$48*(1+$G$69)*G80+$G$138*$G$49*(1+$G$70)*G87 -> 0 | H129: =$H$137*(1+H68)*H63*H73+H138*H48*(1+H69)*H80+H138*H49*(1+H70)*H87 -> 0 | I129: =I137*(1+I68)*I63*I73+I138*I48*(1+I69)*I80+I138*I49*(1+I70)*I87 -> 0
A130: Crude Oil | B130: 0 | C130: 0 | D130: 0 | E130: 0 | F130: 0 | G130: 0 | H130: =H137*(1+H68)*H63*H74+H138*H48*(1+H69)*H81+H138*H49*(1+H70)*H88 -> 0 | I130: =I137*(1+I68)*I63*I74+I138*I48*(1+I69)*I81+I138*I49*(1+I70)*I88 -> 0
A131: Oil products | B131: 5.130174308 | C131: 7.499472145 | D131: 4.182833134 | E131: 1.81378538 | F131: 10.23863102 | G131: 12.95279676 | H131: =H137*(1+H68)*H63*H75+H138*H48*(1+H69)*H82+H138*H49*(1+H70)*H89 -> 10.21662029 | I131: =I137*(1+I68)*I63*I75+I138*I48*(1+I69)*I82+I138*I49*(1+I70)*I89 -> 8.930245076
A132: Natural Gas | B132: 0 | C132: 0 | D132: 5.826832226 | E132: 15.57552207 | F132: 13.14179263 | G132: 16.17404202 | H132: =H137*(1+H68)*H63*H76+H138*H48*(1+H69)*H83+H138*H49*(1+H70)*H90 -> 12.75740283 | I132: =I137*(1+I68)*I63*I76+I138*I48*(1+I69)*I83+I138*I49*(1+I70)*I90 -> 11.15111754
A133: Nuclear | B133: 0 | C133: 0 | D133: 0 | E133: 0 | F133: 0 | G133: 0 | H133: =H137*(1+H68)*H63*H77+H138*H48*(1+H69)*H84+H138*H49*(1+H70)*H91 -> 0 | I133: =I137*(1+I68)*I63*I77+I138*I48*(1+I69)*I84+I138*I49*(1+I70)*I91 -> 0
A134: Biofuels | B134: 0 | C134: 0 | D134: 0 | E134: 0.8637073239 | F134: 0.620523092 | G134: 1.051143192 | H134: =H137*(1+H68)*H63*H78+H138*H48*(1+H69)*H85+H138*H49*(1+H70)*H92 -> 0.8290974584 | I134: =I137*(1+I68)*I63*I78+I138*I48*(1+I69)*I85+I138*I49*(1+I70)*I92 -> 0.7247057522
A135: Geothermal | B135: =B137*(B57+B58)+B138*B48*B62+B138*B49*B65 -> 3.925951925 | C135: =C137*(C57+C58)+C138*C48*C62+C138*C49*C65 -> 6.201300549 | D135: 3.907216013 | E135: 6.854323127 | F135: 5.481602176 | G135: 6.583084186 | H135: =H137*(H57+H58)+H138*H48*H62+H138*H49*H65 -> 5.192459416 | I135: =I137*(I57+I58)+I138*I48*I62+I138*I49*I65 -> 4.538676568
A137: Electricity Output from conversion | B137: =B126*B35+B126 -> 4.907439907 | C137: =C126*C35+C126 -> 7.17867944 | D137: 7.814432026 | E137: 13.47330469 | F137: 17.52907949 | G137: =G126*G35+G126 -> 20.47339182 | H137: =H126*H35+H126 -> 16.14854879 | I137: 14.11528413
A138: Heat Output from conversion | B138: =B127*B36+B127 -> 0 | C138: =C127*C36+C127 -> 0 | D138: 0 | E138: 0 | F138: 0 | G138: 0 | H138: =H127*H36+H127 -> 0 | I138: 0
A139: Oil products Output from conversion | B139: =B122 -> 24.96429788 | C139: =C122 -> 28.98014361 | D139: 49.38416371 | E139: 59.50554621 | F139: 92.17361026 | G139: 86.07395296 | H139: =H122 -> 56.1230419 | I139: 56.24515833
A140: Total output from conversion | B140: =SUM(B137:B139) -> 29.87173779 | C140: =SUM(C137:C139) -> 36.15882305 | D140: 57.19859574 | E140: 72.9788509 | F140: 109.7026897 | G140: 106.5473448 | H140: =SUM(H137:H139) -> 72.27159069 | I140: =SUM(I137:I139) -> 70.36044246
A142: Result Tendency | K142: Linear regression
K143: a | L143: b
B144: 1995 | C144: 2000 | D144: 2005 | E144: 2010 | F144: 2015 | G144: 2018 | H144: 2030 | I144: 2050
A145: Total final consumption | B145: =B113 -> 410.3456 | C145: =C113 -> 505.143808 | D145: 562.801552 | E145: 620.417424 | F145: 715.131888 | G145: 758.218176 | H145: =K145*H144+L145 -> 930.7802589 | I145: =K145*I144+L145 -> 1224.593851 | K145: =LINEST(B113:G113,B112:G112,TRUE,FALSE) -> 14.6906796 | L145: -28891.29933
A146: CO2 emission (million tonne) | B146: =B114 -> 2.386203746 | C146: 2.60022689 | D146: 4.760851827 | E146: 5.81540255 | F146: 10.04743121 | G146: 10.31420266 | H146: =IF(K146*H144+L146>0,K146*H144+L146,0) -> 14.6885961 | I146: =I144*K146+L146 -> 22.31009358 | K146: =LINEST(B146:G146,B144:G144,TRUE,FALSE) -> 0.381074874 | L146: -758.8933982
A147: Share of consumption
A148: Industry | B148: =B116 -> 0.1042857143 | C148: 0.1017075597 | D148: 0.09790938174 | E148: 0.09529594385 | F148: 0.1067978219 | G148: 0.1093991606 | H148: =IF(K148*H144+L148>0,K148*H144+L148,0) -> 0.1073504138 | I148: =IF(K148*I144+L148>0,K148*I144+L148,0) -> 0.1115412022 | K148: =LINEST(B148:G148,B144:G144,TRUE,FALSE) -> 0.0002095394204 | L148: -0.3180146096
A149: Transport | B149: =B117 -> 0.03020408163 | C149: 0.03970490716 | D149: 0.06740569898 | E149: 0.07842343254 | F149: 0.1111891797 | G149: 0.1031036006 | H149: =IF(H144*K149+L149>0,H144*K149+L149,0) -> 0.1541672459 | I149: =IF(I144*K149+L149>0,I144*K149+L149,0) -> 0.2264260159 | K149: =LINEST(B149:G149,B144:G144,TRUE,FALSE) -> 0.003612938501 | L149: -7.180097911
A150: Other | B150: =B118 -> 0.8639795918 | C150: 0.8585046419 | D150: 0.8346849193 | E150: 0.8262806236 | F150: 0.779553838 | G150: 0.7874972388 | H150: =1-H149-H148 -> 0.7384823403 | I150: =1-I149-I148 -> 0.6620327819
A151: Share of energyforms in consumption
A152: Coal | B152: =B120 -> 0.125616 | C152: 1.25616 | D152: 0.293104 | E152: 0 | F152: 6.615776 | G152: =G120 -> 16.204464 | H152: =H145*H148*H10+H145*H149*H19+H145*H150*H27 -> 19.46585233 | I152: =I145*I148*I10+I145*I149*I19+I145*I150*I27 -> 26.62044548
A153: Crude Oil | B153: =B121 -> 0 | C153: 0 | D153: 0 | E153: 0 | F153: 0 | G153: 0 | H153: =H145*H148*H11 -> 0 | I153: =I145*I148*I11 -> 0
A154: Oil products | B154: =B122 -> 24.96429788 | C154: 28.98014361 | D154: 49.38416371 | E154: 59.50554621 | F154: 92.17361026 | G154: 86.07395296 | H154: =$H$145*$H$148*H12+$H$145*$H$149*H20+$H$145*$H$150*H28 -> 151.1897639 | I154: =$I$145*$I$148*I12+$I$145*$I$149*I20+$I$145*$I$150*I28 -> 285.4256658
A155: Natural Gas | B155: =B123 -> 0 | C155: 0 | D155: 2.30296 | E155: 4.1872 | F155: 5.778336 | G155: 6.07144 | H155: 7.313654043 | I155: 9.997949114
A156: Geothermal, Solar, Wind, etc. | B156: =B124 -> 0 | C156: 0 | D156: 0 | E156: 0 | F156: 0 | G156: 0 | H156: 0 | I156: 0
A157: Biofuels and Waste | B157: =B125 -> 380.3642677 | C157: 469.2172021 | D157: 504.3621628 | E157: 545.9948062 | F157: 594.3109918 | G157: 632.7339148 | H157: 731.2661411 | I157: 874.6579761
A158: Electricity | B158: =B126 -> 4.263338419 | C158: 5.602053581 | D158: 6.459161527 | E158: 10.72987161 | F158: 14.45267797 | G158: 17.18134566 | H158: 21.54484751 | I158: 27.89181441
A159: Heat | B159: =B127 -> 0 | C159: 0 | D159: 0 | E159: 0 | F159: 0 | G159: 0 | H159: 0 | I159: 0
A160: Share of primary energyforms
A161: Coal | B161: =B129 -> 0.7524255652 | C161: 1.781124634 | D161: 0.2497213811 | E161: 0 | F161: 0 | G161: 0 | H161: =IF(K161*$H$144+L161>0,K161*$H$144+L161,0) -> 0 | I161: =IF(K161*$I$144+L161>0,K161*$I$144+L161,0) -> 0 | K161: =LINEST(B161:G161,$B$144:$G$144,TRUE,FALSE) -> -0.05746772004 | L161: 115.8111707
A162: Crude Oil | B162: =B130 -> 0 | C162: 0 | D162: 0 | E162: 0 | F162: 0 | G162: 0 | H162: 0 | I162: 0 | K162: =LINEST(B162:G162,$B$144:$G$144,TRUE,FALSE) -> 0 | L162: 0
A163: Oil products | B163: =B131 -> 5.130174308 | C163: 7.499472145 | D163: 4.182833134 | E163: 1.81378538 | F163: 10.23863102 | G163: 12.95279676 | H163: 12.83739207 | I163: 17.97705041 | K163: =LINEST(B163:G163,$B$144:$G$144,TRUE,FALSE) -> 0.2569829173 | L163: -508.83793
A164: Natural Gas | B164: =B132 -> 0 | C164: 0 | D164: 5.826832226 | E164: 15.57552207 | F164: 13.14179263 | G164: 16.17404202 | H164: 26.54454888 | I164: 42.39113346 | K164: =LINEST(B164:G164,$B$144:$G$144,TRUE,FALSE) -> 0.7923292287 | L164: -1581.883785
A165: Nuclear | B165: =B133 -> 0 | C165: 0 | D165: 0 | E165: 0 | F165: 0 | G165: 0 | H165: 0 | I165: 0 | K165: =LINEST(B165:G165,$B$144:$G$144,TRUE,FALSE) -> 0 | L165: 0
A166: Biofuels | B166: =B134 -> 0 | C166: 0 | D166: 0 | E166: 0.8637073239 | F166: 0.620523092 | G166: 1.051143192 | H166: 1.514783496 | I166: 2.471473622 | K166: =LINEST(B166:G166,$B$144:$G$144,TRUE,FALSE) -> 0.04783450632 | L166: -95.58926434
A167: Geothermal | B167: =B135 -> 3.925951925 | C167: 6.201300549 | D167: 3.907216013 | E167: 6.854323127 | F167: 5.481602176 | G167: 6.583084186 | H167: 7.420324595 | I167: 9.109152272 | K167: =LINEST(B167:G167,$B$144:$G$144,TRUE,FALSE) -> 0.08444138388 | L167: -163.9956847

Sheet 1995 e2g-balance (hidden)
A1: Coal | B1: Crude oil | C1: Oil Products | D1: Natual Gas | E1: Nuclear | F1: Hydro | G1: Geothermal, solar, wind, etc. | H1: Biofuels and waste | I1: Electricity | J1: Heat | K1: Energy Services | L1: Total consumption | M1: Data 1995 | N1: Total production | O1: Efficiency | P1: Coal | Q1: Crude oil | R1: Oil Products | S1: Natual Gas | T1: Nuclear | U1: Hydro | V1: Geothermal, solar, wind, etc. | W1: Biofuels and waste | X1: Electricity | Y1: Heat | Z1: Energy Services | AA1: Loss | AB1: CO2-emissions
L2: =SUM(A2:K2) -> 0 | M2: Entry fuels | N2: =SUM(P2:Z2) -> 415.1386771 | P2: =-(A3+A2) -> 0.8174612772 | Q2: =-(B3+B2) -> 33.95694812 | S2: =-(D3+D2) -> 0 | T2: =-(E3+E2) -> 0 | W2: =-(H3+H2) -> 380.3642677
A3: =-P3 -> -0.8174612772 | B3: =-Q3 -> -33.95694812 | D3: =-S3 -> 0 | E3: =-T3 -> 0 | H3: =-W3 -> -380.3642677 | L3: =SUM(A3:K3) -> -415.1386771 | M3: Transport of fuels | N3: =SUM(P3:Z3) -> 415.1386771 | P3: =-(A14+A5) -> 0.8174612772 | Q3: =-(B14+B5) -> 33.95694812 | S3: =-(D14+D5) -> 0 | T3: =-(E14+E5) -> 0 | W3: =-(H14+H5) -> 380.3642677 | AA3: =-(L3+N3) -> 0
L4: 0 | M4: Entry On-Grid RE | N4: 4.126937525 | U4: =-F5 -> 4.126937525 | V4: =-G5 -> 0
A5: =SUM(A7:A11) -> -0.6918452772 | B5: =SUM(B7:B11) -> -33.95694812 | C5: -5.38707889 | D5: 0 | E5: 0 | F5: -4.126937525 | G5: 0 | H5: 0 | I5: =SUM(I6:I11) -> -0.251232 | J5: 0 | K5: 0 | L5: -44.41404182 | M5: Entry electricity, district heating and oil products | N5: 35.51004868 | P5: =SUM(P7:P11) -> 0 | R5: =(C12+C5)*-1 -> 30.35137677 | X5: =(I12+I5)*-1 -> 5.158671907 | Y5: =(J12+J5)*-1 -> 0 | AA5: =-(L5+N5) -> 8.90399314 | AB5: =SUM(AB6:AB11) -> 0.4769835869
I6: =I14*IF('Key figures'!B60<0,'Key figures'!B60,0)*-1 -> 0 | L6: 0 | M6: Import / Export of electricity | N6: 0.09201449825 | X6: =I14*-1*IF('Key figures'!B60>0,'Key figures'!B60,0) -> 0.09201449825 | AB6: =(I6+X6)*'CO2-emission factors'!B13 -> 0.001840289965
A7: =-($X$7+$F$7+$G$7)/$O$7*'Key figures'!$B73 -> -0.6918452772 | B7: =-($X$7+$F$7+$G$7)/$O$7*'Key figures'!$B74 -> 0 | C7: =-($X$7+$F$7+$G$7)/$O$7*'Key figures'!$B75 -> -4.71712689 | D7: =-($X$7+$F$7+$G$7)/$O$7*'Key figures'!$B76 -> 0 | E7: =-($X$7+$F$7+$G$7)/$O$7*'Key figures'!$B77 -> 0 | F7: =X7*'Key figures'!B57*-1 -> -4.126937525 | G7: =X7*'Key figures'!B58*-1 -> 0 | H7: =-($X$7+$F$7+$G$7)/$O$7*'Key figures'!$B78 -> 0 | L7: -9.535909692 | M7: Electricity-only plants | N7: 5.158671907 | O7: ='Key figures'!B68 -> 0.1918604651 | X7: =X5-X8 -> 5.158671907 | AA7: =-(N7+L7) -> 4.377237786 | AB7: =-(A7*'CO2-emission factors'!$B$2+B7*'CO2-emission factors'!$B$3+C7*'CO2-emission factors'!$B$4+D7*'CO2-emission factors'!$B$5+E7*'CO2-emission factors'!$B$6+F7*'CO2-emission factors'!$B$7+G7*'CO2-emission factors'!$B$8+H7*'CO2-emission factors'!$B$9+I7*'CO2-emission factors'!$B$10+J7*'CO2-emission factors'!$B$11+K7*'CO2-emission factors'!$B$12) -> 0.424226945
A8: =-($X$8+$Y$8+$F$8+$G$8)/$O$8*'Key figures'!$B80 -> 0 | B8: =-($X$8+$Y$8+$F$8+$G$8)/$O$8*'Key figures'!$B81 -> 0 | C8: =-($X$8+$Y$8+$F$8+$G$8)/$O$8*'Key figures'!$B82 -> 0 | D8: =-($X$8+$Y$8+$F$8+$G$8)/$O$8*'Key figures'!$B83 -> 0 | E8: =-($X$8+$Y$8+$F$8+$G$8)/$O$8*'Key figures'!$B84 -> 0 | G8: =(X8+Y8)*'Key figures'!B62*-1 -> 0 | H8: =-($X$8+$Y$8+$F$8+$G$8)/$O$8*'Key figures'!$B85 -> 0 | L8: 0 | M8: CHP plants | N8: 0 | O8: ='Key figures'!B69 -> 0.0001 | X8: =Y8*'Key figures'!B53 -> 0 | Y8: =Y5*'Key figures'!B48 -> 0 | AA8: =-(N8+L8) -> 0 | AB8: =-(A8*'CO2-emission factors'!$B$2+B8*'CO2-emission factors'!$B$3+C8*'CO2-emission factors'!$B$4+D8*'CO2-emission factors'!$B$5+E8*'CO2-emission factors'!$B$6+F8*'CO2-emission factors'!$B$7+G8*'CO2-emission factors'!$B$8+H8*'CO2-emission factors'!$B$9+I8*'CO2-emission factors'!$B$10+J8*'CO2-emission factors'!$B$11+K8*'CO2-emission factors'!$B$12) -> 0
A9: =-($Y$9+$F$9+$G$9)/$O$9*'Key figures'!$B87 -> 0 | B9: =-($Y$9+$F$9+$G$9)/$O$9*'Key figures'!$B88 -> 0 | C9: =-($Y$9+$F$9+$G$9)/$O$9*'Key figures'!$B89 -> 0 | D9: =-($Y$9+$F$9+$G$9)/$O$9*'Key figures'!$B90 -> 0 | E9: =-($Y$9+$F$9+$G$9)/$O$9*'Key figures'!$B91 -> 0 | G9: =Y9*'Key figures'!B65*-1 -> 0 | H9: =-($Y$9+$F$9+$G$9)/$O$9*'Key figures'!$B92 -> 0 | I9: =Y9*'Key figures'!B51*-1 -> 0 | L9: 0 | M9: Heat Plants | N9: 0 | O9: ='Key figures'!B70 -> 0.0001 | Y9: =Y5*'Key figures'!B49 -> 0 | AA9: 0 | AB9: =-(A9*'CO2-emission factors'!$B$2+B9*'CO2-emission factors'!$B$3+C9*'CO2-emission factors'!$B$4+D9*'CO2-emission factors'!$B$5+E9*'CO2-emission factors'!$B$6+F9*'CO2-emission factors'!$B$7+G9*'CO2-emission factors'!$B$8+H9*'CO2-emission factors'!$B$9+I9*'CO2-emission factors'!$B$10+J9*'CO2-emission factors'!$B$11+K9*'CO2-emission factors'!$B$12) -> 0
B10: =-R10/O10 -> -33.95694812 | L10: -33.95694812 | M10: Oil refineries | N10: 30.35137677 | O10: ='Key figures'!B71 -> 0.8938193344 | R10: =-(C7+C8+C9+C11+C12) -> 30.35137677 | AA10: =-(N10+L10) -> 3.605571354 | AB10: =-(A10*'CO2-emission factors'!$B$2+B10*'CO2-emission factors'!$B$3+C10*'CO2-emission factors'!$B$4+D10*'CO2-emission factors'!$B$5+E10*'CO2-emission factors'!$B$6+F10*'CO2-emission factors'!$B$7+G10*'CO2-emission factors'!$B$8+H10*'CO2-emission factors'!$B$9+I10*'CO2-emission factors'!$B$10+J10*'CO2-emission factors'!$B$11+K10*'CO2-emission factors'!$B$12) -> 0
A11: =L11*'Key figures'!B42 -> 0 | B11: =L11*'Key figures'!B44 -> 0 | C11: =L11*'Key figures'!B45 -> -0.669952 | D11: =L11*'Key figures'!B43 -> 0 | H11: =L11*'Key figures'!B46 -> 0 | I11: =L11*'Key figures'!B40 -> -0.251232 | J11: =L11*'Key figures'!B41 -> 0 | L11: =L14*'Key figures'!B38 -> -0.963056 | M11: Energy Industry one use | N11: 0 | O11: 0 | AA11: =-(N11+L11) -> 0.963056 | AB11: =-(A11*'CO2-emission factors'!$B$2+B11*'CO2-emission factors'!$B$3+C11*'CO2-emission factors'!$B$4+D11*'CO2-emission factors'!$B$5+E11*'CO2-emission factors'!$B$6+F11*'CO2-emission factors'!$B$7+G11*'CO2-emission factors'!$B$8+H11*'CO2-emission factors'!$B$9+I11*'CO2-emission factors'!$B$10+J11*'CO2-emission factors'!$B$11+K11*'CO2-emission factors'!$B$12) -> 0.050916352
C12: =-R12*1 -> -24.96429788 | I12: =-X12*(1+'Key figures'!B35) -> -4.907439907 | J12: =-Y12*(1+'Key figures'!B36) -> 0 | L12: -29.87173779 | M12: Transport electricity, district heating and oil products | N12: 29.2276363 | R12: =-C14 -> 24.96429788 | X12: =-I14 -> 4.263338419 | Y12: =-J14 -> 0 | AA12: =-(L12+N12) -> 0.6441014878
L13: 0 | M13: Entry Off-Grid RE | N13: 0 | V13: =G14*-1 -> 0
A14: =SUM(A15:A17) -> -0.125616 | B14: 0 | C14: -24.96429788 | D14: 0 | E14: 0 | F14: 0 | G14: 0 | H14: -380.3642677 | I14: -4.263338419 | J14: 0 | K14: 0 | L14: ='Key figures'!B4 -> -410.3456 | M14: Exit energy | N14: 319.4373008 | Z14: =SUM(Z15:Z17) -> 319.4373008 | AA14: =SUM(AA15:AA17) -> 90.2802192 | AB14: 1.909220159
A15: =L15*'Key figures'!B10 -> -0.125616 | B15: =L15*'Key figures'!B11 -> 0 | C15: =L15*'Key figures'!B12 -> -4.689664 | D15: =L15*'Key figures'!B13 -> 0 | G15: =L15*'Key figures'!B14 -> 0 | H15: =L15*'Key figures'!B15 -> -36.512384 | I15: =L15*'Key figures'!B16 -> -1.46552 | J15: =L15*'Key figures'!B17 -> 0 | L15: ='Key figures'!B6*L14 -> -42.793184 | M15: Industry | N15: 32.094888 | O15: 0.75 | Z15: =-L15*O15 -> 32.094888 | AA15: =-(Z15+L15) -> 10.698296 | AB15: =-(A15*'CO2-emission factors'!$B$2+B15*'CO2-emission factors'!$B$3+C15*'CO2-emission factors'!$B$4+D15*'CO2-emission factors'!$B$5+E15*'CO2-emission factors'!$B$6+F15*'CO2-emission factors'!$B$7+G15*'CO2-emission factors'!$B$8+H15*'CO2-emission factors'!$B$9+I15*'CO2-emission factors'!$B$10+J15*'CO2-emission factors'!$B$11+K15*'CO2-emission factors'!$B$12) -> 0.368347984
A16: =L16*'Key figures'!B19 -> 0 | C16: =L16*'Key figures'!B20 -> -12.394112 | D16: =L16*'Key figures'!B21 -> 0 | G16: =L16*'Key figures'!B22 -> 0 | H16: =L16*'Key figures'!B23 -> 0 | I16: =L16*'Key figures'!B24 -> 0 | J16: =L16*'Key figures'!B25 -> 0 | L16: ='Key figures'!B7*L14 -> -12.394112 | M16: Transport | N16: 3.7182336 | O16: 0.3 | Z16: =-L16*O16 -> 3.7182336 | AA16: =-(Z16+L16) -> 8.6758784 | AB16: =-(A16*'CO2-emission factors'!$B$2+B16*'CO2-emission factors'!$B$3+C16*'CO2-emission factors'!$B$4+D16*'CO2-emission factors'!$B$5+E16*'CO2-emission factors'!$B$6+F16*'CO2-emission factors'!$B$7+G16*'CO2-emission factors'!$B$8+H16*'CO2-emission factors'!$B$9+I16*'CO2-emission factors'!$B$10+J16*'CO2-emission factors'!$B$11+K16*'CO2-emission factors'!$B$12) -> 0.941952512
A17: =L17*'Key figures'!B27 -> 0 | C17: =L17*'Key figures'!B28 -> -7.88052188 | D17: =L17*'Key figures'!B29 -> 0 | G17: =L17*'Key figures'!B30 -> 0 | H17: =L17*'Key figures'!B31 -> -343.8518837 | I17: =L17*'Key figures'!B32 -> -2.797818419 | J17: =L17*'Key figures'!B33 -> 0 | L17: =L14*'Key figures'!B8 -> -354.530224 | M17: Other | N17: 283.6241792 | O17: 0.8 | Z17: 283.6241792 | AA17: 70.9060448 | AB17: =-(A17*'CO2-emission factors'!$B$2+B17*'CO2-emission factors'!$B$3+C17*'CO2-emission factors'!$B$4+D17*'CO2-emission factors'!$B$5+E17*'CO2-emission factors'!$B$6+F17*'CO2-emission factors'!$B$7+G17*'CO2-emission factors'!$B$8+H17*'CO2-emission factors'!$B$9+I17*'CO2-emission factors'!$B$10+J17*'CO2-emission factors'!$B$11+K17*'CO2-emission factors'!$B$12) -> 0.5989196629
L18: =L14 -> -410.3456 | M18: Energy Services | N18: 319.4373008 | O18: =Z18/L18*-1 -> 0.7784591837 | Z18: =Z14 -> 319.4373008 | AA18: =-(N18+L18) -> 90.9082992

Sheet 2000 e2g-balance (hidden)
A1: Coal | B1: Crude oil | C1: Oil Products | D1: Natual Gas | E1: Nuclear | F1: Hydro | G1: Geothermal, solar, wind, etc. | H1: Biofuels and waste | I1: Electricity | J1: Heat | K1: Energy Services | L1: Total consumption | M1: Data 2000 | N1: Total production | O1: Efficiency | P1: Coal | Q1: Crude oil | R1: Oil Products | S1: Natual Gas | T1: Nuclear | U1: Hydro | V1: Geothermal, solar, wind, etc. | W1: Biofuels and waste | X1: Electricity | Y1: Heat | Z1: Energy Services | AA1: Loss | AB1: CO2-emissions
L2: =SUM(A2:K2) -> 0 | M2: Entry fuels | N2: =SUM(P2:Z2) -> 3177543.204 | P2: =-(A3+A2) -> 1.918922053 | Q2: =-(B3+B2) -> 3177072.068 | S2: =-(D3+D2) -> 0 | T2: =-(E3+E2) -> 0 | W2: =-(H3+H2) -> 469.2172021
A3: =-P3 -> -1.918922053 | B3: =-Q3 -> -3177072.068 | D3: =-S3 -> 0 | E3: =-T3 -> 0 | H3: =-W3 -> -469.2172021 | L3: =SUM(A3:K3) -> -3177543.204 | M3: Transport of fuels | N3: =SUM(P3:Z3) -> 3177543.204 | P3: =-(A14+A5) -> 1.918922053 | Q3: =-(B14+B5) -> 3177072.068 | S3: =-(D14+D5) -> 0 | T3: =-(E14+E5) -> 0 | W3: =-(H14+H5) -> 469.2172021 | AA3: =-(L3+N3) -> 0
L4: 0 | M4: Entry On-Grid RE | N4: 6.418327253 | U4: =-F5 -> 6.418327253 | V4: =-G5 -> 0
A5: =SUM(A7:A11) -> -0.6627620533 | B5: -3177072.068 | C5: -2.790577067 | D5: 0 | E5: 0 | F5: -6.418327253 | G5: 0 | H5: 0 | I5: =SUM(I6:I11) -> -0.251232 | J5: =SUM(J7:J11) -> 0 | K5: =SUM(K7:K11) -> 0 | L5: -3177082.191 | M5: Entry electricity, district heating and oil products | N5: 39.20063212 | P5: =SUM(P7:P11) -> 0 | R5: =(C12+C5)*-1 -> 31.77072068 | X5: =(I12+I5)*-1 -> 7.42991144 | Y5: =(J12+J5)*-1 -> 0 | AA5: =-(L5+N5) -> 3177042.99 | AB5: =SUM(AB6:AB11) -> 0.2784007752
I6: =I14*IF('Key figures'!C60<0,'Key figures'!C60,0)*-1 -> 0 | L6: 0 | M6: Import / export of electricity | N6: 0.1677261551 | X6: =I14*-1*IF('Key figures'!C60>0,'Key figures'!C60,0) -> 0.1677261551 | AB6: =(I6+X6)*'CO2-emission factors'!B13 -> 0.003354523103
A7: =-($X$7+$F$7+$G$7)/$O$7*'Key figures'!$C73 -> -0.6627620533 | B7: =-($X$7+$F$7+$G$7)/$O$7*'Key figures'!$C74 -> 0 | C7: =-($X$7+$F$7+$G$7)/$O$7*'Key figures'!$C75 -> -2.790577067 | D7: =-($X$7+$F$7+$G$7)/$O$7*'Key figures'!$C76 -> 0 | E7: =-($X$7+$F$7+$G$7)/$O$7*'Key figures'!$C77 -> 0 | F7: =X7*'Key figures'!C57*-1 -> -6.418327253 | G7: =X7*'Key figures'!C58*-1 -> 0 | H7: =-($X$7+$F$7+$G$7)/$O$7*'Key figures'!$C78 -> 0 | L7: -9.871666373 | M7: Electricity-only plants | N7: 7.42991144 | O7: ='Key figures'!C68 -> 0.2929292929 | X7: =X5-X8 -> 7.42991144 | AA7: =-(N7+L7) -> 2.441754933 | AB7: =-(A7*'CO2-emission factors'!$B$2+B7*'CO2-emission factors'!$B$3+C7*'CO2-emission factors'!$B$4+D7*'CO2-emission factors'!$B$5+E7*'CO2-emission factors'!$B$6+F7*'CO2-emission factors'!$B$7+G7*'CO2-emission factors'!$B$8+H7*'CO2-emission factors'!$B$9+I7*'CO2-emission factors'!$B$10+J7*'CO2-emission factors'!$B$11+K7*'CO2-emission factors'!$B$12) -> 0.2750462521
A8: =-($X$8+$Y$8+$F$8+$G$8)/$O$8*'Key figures'!$C80 -> 0 | B8: =-($X$8+$Y$8+$F$8+$G$8)/$O$8*'Key figures'!$C81 -> 0 | C8: =-($X$8+$Y$8+$F$8+$G$8)/$O$8*'Key figures'!$C82 -> 0 | D8: =-($X$8+$Y$8+$F$8+$G$8)/$O$8*'Key figures'!$C83 -> 0 | E8: =-($X$8+$Y$8+$F$8+$G$8)/$O$8*'Key figures'!$C84 -> 0 | G8: =(X8+Y8)*'Key figures'!C62*-1 -> 0 | H8: =-($X$8+$Y$8+$F$8+$G$8)/$O$8*'Key figures'!$C85 -> 0 | L8: 0 | M8: CHP plants | N8: 0 | O8: ='Key figures'!C69 -> 1e-05 | X8: =Y8*'Key figures'!C53 -> 0 | Y8: =Y5*'Key figures'!C48 -> 0 | AA8: =-(N8+L8) -> 0 | AB8: =-(A8*'CO2-emission factors'!$B$2+B8*'CO2-emission factors'!$B$3+C8*'CO2-emission factors'!$B$4+D8*'CO2-emission factors'!$B$5+E8*'CO2-emission factors'!$B$6+F8*'CO2-emission factors'!$B$7+G8*'CO2-emission factors'!$B$8+H8*'CO2-emission factors'!$B$9+I8*'CO2-emission factors'!$B$10+J8*'CO2-emission factors'!$B$11+K8*'CO2-emission factors'!$B$12) -> 0
A9: =-($Y$9+$F$9+$G$9)/$O$9*'Key figures'!$C87 -> 0 | B9: =-($Y$9+$F$9+$G$9)/$O$9*'Key figures'!$C88 -> 0 | C9: =-($Y$9+$F$9+$G$9)/$O$9*'Key figures'!$C89 -> 0 | D9: =-($Y$9+$F$9+$G$9)/$O$9*'Key figures'!$C90 -> 0 | E9: =-($Y$9+$F$9+$G$9)/$O$9*'Key figures'!$C91 -> 0 | G9: =Y9*'Key figures'!C65*-1 -> 0 | H9: =-($Y$9+$F$9+$G$9)/$O$9*'Key figures'!$C92 -> 0 | I9: =Y9*'Key figures'!C51*-1 -> 0 | L9: 0 | M9: Heat Plants | N9: 0 | O9: ='Key figures'!C70 -> 0.0001 | Y9: =Y5*'Key figures'!C49 -> 0 | AA9: 0 | AB9: =-(A9*'CO2-emission factors'!$B$2+B9*'CO2-emission factors'!$B$3+C9*'CO2-emission factors'!$B$4+D9*'CO2-emission factors'!$B$5+E9*'CO2-emission factors'!$B$6+F9*'CO2-emission factors'!$B$7+G9*'CO2-emission factors'!$B$8+H9*'CO2-emission factors'!$B$9+I9*'CO2-emission factors'!$B$10+J9*'CO2-emission factors'!$B$11+K9*'CO2-emission factors'!$B$12) -> 0
B10: =-R10/O10 -> -3177072.068 | L10: -3177072.068 | M10: Oil refineries | N10: 31.77072068 | O10: ='Key figures'!C71 -> 1e-05 | R10: =-(C7+C8+C9+C11+C12) -> 31.77072068 | AA10: =-(N10+L10) -> 3177040.297 | AB10: =-(A10*'CO2-emission factors'!$B$2+B10*'CO2-emission factors'!$B$3+C10*'CO2-emission factors'!$B$4+D10*'CO2-emission factors'!$B$5+E10*'CO2-emission factors'!$B$6+F10*'CO2-emission factors'!$B$7+G10*'CO2-emission factors'!$B$8+H10*'CO2-emission factors'!$B$9+I10*'CO2-emission factors'!$B$10+J10*'CO2-emission factors'!$B$11+K10*'CO2-emission factors'!$B$12) -> 0
A11: =L11*'Key figures'!C42 -> 0 | B11: =L11*'Key figures'!C44 -> 0 | C11: =L11*'Key figures'!C45 -> 0 | D11: =L11*'Key figures'!C43 -> 0 | H11: =L11*'Key figures'!C46 -> 0 | I11: =L11*'Key figures'!C40 -> -0.251232 | J11: =L11*'Key figures'!C41 -> 0 | L11: =L14*'Key figures'!C38 -> -0.251232 | M11: Energy Industry one use | N11: 0 | O11: 0 | AA11: =-(N11+L11) -> 0.251232 | AB11: =-(A11*'CO2-emission factors'!$B$2+B11*'CO2-emission factors'!$B$3+C11*'CO2-emission factors'!$B$4+D11*'CO2-emission factors'!$B$5+E11*'CO2-emission factors'!$B$6+F11*'CO2-emission factors'!$B$7+G11*'CO2-emission factors'!$B$8+H11*'CO2-emission factors'!$B$9+I11*'CO2-emission factors'!$B$10+J11*'CO2-emission factors'!$B$11+K11*'CO2-emission factors'!$B$12) -> 0
C12: =-R12*1 -> -28.98014361 | I12: =-X12*(1+'Key figures'!C35) -> -7.17867944 | J12: =-Y12*(1+'Key figures'!C36) -> 0 | L12: -36.15882305 | M12: Transport electricity, district heating and oil products | N12: 34.58219719 | R12: =-C14 -> 28.98014361 | X12: =-I14 -> 5.602053581 | Y12: =-J14 -> 0 | AA12: =-(L12+N12) -> 1.576625858
L13: 0 | M13: Entry Off-Grid RE | N13: 0 | V13: =G14*-1 -> 0
A14: =SUM(A15:A17) -> -1.25616 | B14: 0 | C14: -28.98014361 | D14: 0 | E14: 0 | F14: 0 | G14: 0 | H14: -469.2172021 | I14: -5.602053581 | J14: 0 | K14: 0 | L14: ='Key figures'!C4 -> -505.143808 | M14: Exit energy | N14: 391.4843576 | Z14: =SUM(Z15:Z17) -> 391.4843576 | AA14: =SUM(AA15:AA17) -> 113.6175784 | AB14: =SUM(AB15:AB17) -> 2.321826114
A15: =L15*'Key figures'!C10 -> -1.25616 | B15: =L15*'Key figures'!C11 -> 0 | C15: =L15*'Key figures'!C12 -> -4.564048 | D15: =L15*'Key figures'!C13 -> 0 | G15: =L15*'Key figures'!C14 -> 0 | H15: =L15*'Key figures'!C15 -> -44.17496 | I15: =L15*'Key figures'!C16 -> -1.381776 | J15: =L15*'Key figures'!C17 -> 0 | L15: ='Key figures'!C6*L14 -> -51.376944 | M15: Industry | N15: 38.532708 | O15: 0.75 | Z15: =-L15*O15 -> 38.532708 | AA15: =-(Z15+L15) -> 12.844236 | AB15: =-(A15*'CO2-emission factors'!$B$2+B15*'CO2-emission factors'!$B$3+C15*'CO2-emission factors'!$B$4+D15*'CO2-emission factors'!$B$5+E15*'CO2-emission factors'!$B$6+F15*'CO2-emission factors'!$B$7+G15*'CO2-emission factors'!$B$8+H15*'CO2-emission factors'!$B$9+I15*'CO2-emission factors'!$B$10+J15*'CO2-emission factors'!$B$11+K15*'CO2-emission factors'!$B$12) -> 0.466202848
A16: =L16*'Key figures'!C19 -> 0 | C16: =L16*'Key figures'!C20 -> -20.056688 | D16: =L16*'Key figures'!C21 -> 0 | G16: =L16*'Key figures'!C22 -> 0 | H16: =L16*'Key figures'!C23 -> 0 | I16: =L16*'Key figures'!C24 -> 0 | J16: =L16*'Key figures'!C25 -> 0 | L16: ='Key figures'!C7*L14 -> -20.056688 | M16: Transport | N16: 6.0170064 | O16: 0.3 | Z16: =-L16*O16 -> 6.0170064 | AA16: =-(Z16+L16) -> 14.0396816 | AB16: =-(A16*'CO2-emission factors'!$B$2+B16*'CO2-emission factors'!$B$3+C16*'CO2-emission factors'!$B$4+D16*'CO2-emission factors'!$B$5+E16*'CO2-emission factors'!$B$6+F16*'CO2-emission factors'!$B$7+G16*'CO2-emission factors'!$B$8+H16*'CO2-emission factors'!$B$9+I16*'CO2-emission factors'!$B$10+J16*'CO2-emission factors'!$B$11+K16*'CO2-emission factors'!$B$12) -> 1.524308288
A17: =L17*'Key figures'!C27 -> 0 | C17: =L17*'Key figures'!C28 -> -4.359407612 | D17: =L17*'Key figures'!C29 -> 0 | G17: =L17*'Key figures'!C30 -> 0 | H17: =L17*'Key figures'!C31 -> -425.0422421 | I17: =L17*'Key figures'!C32 -> -4.220277581 | J17: =L17*'Key figures'!C33 -> 0 | L17: =L14*'Key figures'!C8 -> -433.668304 | M17: Other | N17: 346.9346432 | O17: 0.8 | Z17: 346.9346432 | AA17: 86.7336608 | AB17: =-(A17*'CO2-emission factors'!$B$2+B17*'CO2-emission factors'!$B$3+C17*'CO2-emission factors'!$B$4+D17*'CO2-emission factors'!$B$5+E17*'CO2-emission factors'!$B$6+F17*'CO2-emission factors'!$B$7+G17*'CO2-emission factors'!$B$8+H17*'CO2-emission factors'!$B$9+I17*'CO2-emission factors'!$B$10+J17*'CO2-emission factors'!$B$11+K17*'CO2-emission factors'!$B$12) -> 0.3313149785
L18: =L14 -> -505.143808 | M18: Energy Services | N18: 391.4843576 | O18: =Z18/L18*-1 -> 0.7749958554 | Z18: =Z14 -> 391.4843576 | AA18: =-(N18+L18) -> 113.6594504

Sheet 2005 e2g-balance (hidden)
A1: Coal | B1: Crude oil | C1: Oil Products | D1: Natual Gas | E1: Nuclear | F1: Hydro | G1: Geothermal, solar, wind, etc. | H1: Biofuels and waste | I1: Electricity | J1: Heat | K1: Energy Services | L1: Total consumption | M1: Data 2005 | N1: Total production | O1: Efficiency | P1: Coal | Q1: Crude oil | R1: Oil Products | S1: Natual Gas | T1: Nuclear | U1: Hydro | V1: Geothermal, solar, wind, etc. | W1: Biofuels and waste | X1: Electricity | Y1: Heat | Z1: Energy Services | AA1: Loss | AB1: CO2-emissions
L2: =SUM(A2:K2) -> 0 | M2: Entry fuels | N2: =SUM(P2:Z2) -> 546893.0521 | P2: =-(A3+A2) -> 0.606756684 | Q2: =-(B3+B2) -> 546378.4617 | S2: =-(D3+D2) -> 9.621522626 | T2: =-(E3+E2) -> 0 | W2: =-(H3+H2) -> 504.3621628
A3: =-P3 -> -0.606756684 | B3: =-Q3 -> -546378.4617 | D3: =-S3 -> -9.621522626 | E3: =-T3 -> 0 | H3: =-W3 -> -504.3621628 | L3: =SUM(A3:K3) -> -546893.0521 | M3: Transport of fuels | N3: =SUM(P3:Z3) -> 546893.0521 | P3: =-(A14+A5) -> 0.606756684 | Q3: =-(B14+B5) -> 546378.4617 | S3: =-(D14+D5) -> 9.621522626 | T3: =-(E14+E5) -> 0 | W3: =-(H14+H5) -> 504.3621628 | AA3: =-(L3+N3) -> 0
L4: 0 | M4: Entry On-Grid RE | N4: 3.990960013 | U4: =-F5 -> 3.990960013 | V4: =-G5 -> 0
A5: =SUM(A7:A11) -> -0.313652684 | B5: =SUM(B7:B11) -> -546378.4617 | C5: -5.253682456 | D5: -7.318562626 | E5: 0 | F5: -3.990960013 | G5: 0 | H5: 0 | I5: =SUM(I6:I11) -> -0.167488 | J5: 0 | K5: 0 | L5: -546395.506 | M5: Entry electricity, district heating and oil products | N5: 62.61976619 | P5: =SUM(P7:P11) -> 0 | R5: =(C12+C5)*-1 -> 54.63784617 | X5: =(I12+I5)*-1 -> 7.981920026 | Y5: =(J12+J5)*-1 -> 0 | AA5: =-(L5+N5) -> 546332.8863 | AB5: =SUM(AB6:AB11) -> 0.8485417847
I6: =I14*IF('Key figures'!D60<0,'Key figures'!D60,0)*-1 -> 0 | L6: 0 | M6: Import / export of electricity | N6: =SUM(P6:Z6) -> 0.1153421701 | X6: =I14*-1*IF('Key figures'!D60>0,'Key figures'!D60,0) -> 0.1153421701 | AB6: =(I6+X6)*'CO2-emission factors'!B13 -> 0.002306843403
A7: =-($X$7+$F$7+$G$7)/$O$7*'Key figures'!$D73 -> -0.313652684 | B7: =-($X$7+$F$7+$G$7)/$O$7*'Key figures'!$D74 -> 0 | C7: =-($X$7+$F$7+$G$7)/$O$7*'Key figures'!$D75 -> -5.253682456 | D7: =-($X$7+$F$7+$G$7)/$O$7*'Key figures'!$D76 -> -7.318562626 | E7: =-($X$7+$F$7+$G$7)/$O$7*'Key figures'!$D77 -> 0 | F7: =X7*'Key figures'!D57*-1 -> -3.990960013 | G7: =X7*'Key figures'!D58*-1 -> 0 | H7: =-($X$7+$F$7+$G$7)/$O$7*'Key figures'!$D78 -> 0 | L7: -16.87685778 | M7: Electricity-only plants | N7: 7.981920026 | O7: ='Key figures'!D68 -> 0.3103448276 | X7: =X5-X8 -> 7.981920026 | AA7: =-(N7+L7) -> 8.894937753 | AB7: =-(A7*'CO2-emission factors'!$B$2+B7*'CO2-emission factors'!$B$3+C7*'CO2-emission factors'!$B$4+D7*'CO2-emission factors'!$B$5+E7*'CO2-emission factors'!$B$6+F7*'CO2-emission factors'!$B$7+G7*'CO2-emission factors'!$B$8+H7*'CO2-emission factors'!$B$9+I7*'CO2-emission factors'!$B$10+J7*'CO2-emission factors'!$B$11+K7*'CO2-emission factors'!$B$12) -> 0.8462349413
A8: =-($X$8+$Y$8+$F$8+$G$8)/$O$8*'Key figures'!$D80 -> 0 | B8: =-($X$8+$Y$8+$F$8+$G$8)/$O$8*'Key figures'!$D81 -> 0 | C8: =-($X$8+$Y$8+$F$8+$G$8)/$O$8*'Key figures'!$D82 -> 0 | D8: =-($X$8+$Y$8+$F$8+$G$8)/$O$8*'Key figures'!$D83 -> 0 | E8: =-($X$8+$Y$8+$F$8+$G$8)/$O$8*'Key figures'!$D84 -> 0 | G8: =(X8+Y8)*'Key figures'!D62*-1 -> 0 | H8: =-($X$8+$Y$8+$F$8+$G$8)/$O$8*'Key figures'!$D85 -> 0 | L8: 0 | M8: CHP plants | N8: 0 | O8: ='Key figures'!D69 -> 0.0001 | X8: =Y8*'Key figures'!D53 -> 0 | Y8: =Y5*'Key figures'!D48 -> 0 | AA8: =-(N8+L8) -> 0 | AB8: =-(A8*'CO2-emission factors'!$B$2+B8*'CO2-emission factors'!$B$3+C8*'CO2-emission factors'!$B$4+D8*'CO2-emission factors'!$B$5+E8*'CO2-emission factors'!$B$6+F8*'CO2-emission factors'!$B$7+G8*'CO2-emission factors'!$B$8+H8*'CO2-emission factors'!$B$9+I8*'CO2-emission factors'!$B$10+J8*'CO2-emission factors'!$B$11+K8*'CO2-emission factors'!$B$12) -> 0
A9: =-($Y$9+$F$9+$G$9)/$O$9*'Key figures'!$D87 -> 0 | B9: =-($Y$9+$F$9+$G$9)/$O$9*'Key figures'!$D88 -> 0 | C9: =-($Y$9+$F$9+$G$9)/$O$9*'Key figures'!$D89 -> 0 | D9: =-($Y$9+$F$9+$G$9)/$O$9*'Key figures'!$D90 -> 0 | E9: =-($Y$9+$F$9+$G$9)/$O$9*'Key figures'!$D91 -> 0 | G9: =Y9*'Key figures'!D65*-1 -> 0 | H9: =-($Y$9+$F$9+$G$9)/$O$9*'Key figures'!$D92 -> 0 | I9: =Y9*'Key figures'!D51*-1 -> 0 | L9: 0 | M9: Heat Plants | N9: 0 | O9: ='Key figures'!D70 -> 0.0001 | Y9: =Y5*'Key figures'!D49 -> 0 | AA9: 0 | AB9: =-(A9*'CO2-emission factors'!$B$2+B9*'CO2-emission factors'!$B$3+C9*'CO2-emission factors'!$B$4+D9*'CO2-emission factors'!$B$5+E9*'CO2-emission factors'!$B$6+F9*'CO2-emission factors'!$B$7+G9*'CO2-emission factors'!$B$8+H9*'CO2-emission factors'!$B$9+I9*'CO2-emission factors'!$B$10+J9*'CO2-emission factors'!$B$11+K9*'CO2-emission factors'!$B$12) -> 0
B10: =-R10/O10 -> -546378.4617 | L10: -546378.4617 | M10: Oil refineries | N10: 54.63784617 | O10: ='Key figures'!D71 -> 0.0001 | R10: =-(C7+C8+C9+C11+C12) -> 54.63784617 | AA10: =-(N10+L10) -> 546323.8238 | AB10: =-(A10*'CO2-emission factors'!$B$2+B10*'CO2-emission factors'!$B$3+C10*'CO2-emission factors'!$B$4+D10*'CO2-emission factors'!$B$5+E10*'CO2-emission factors'!$B$6+F10*'CO2-emission factors'!$B$7+G10*'CO2-emission factors'!$B$8+H10*'CO2-emission factors'!$B$9+I10*'CO2-emission factors'!$B$10+J10*'CO2-emission factors'!$B$11+K10*'CO2-emission factors'!$B$12) -> 0
A11: =L11*'Key figures'!D42 -> 0 | B11: =L11*'Key figures'!D44 -> 0 | C11: =L11*'Key figures'!D45 -> 0 | D11: =L11*'Key figures'!D43 -> 0 | H11: =L11*'Key figures'!D46 -> 0 | I11: =L11*'Key figures'!D40 -> -0.167488 | J11: =L11*'Key figures'!D41 -> 0 | L11: =L14*'Key figures'!D38 -> -0.167488 | M11: Energy Industry one use | N11: 0 | O11: 0 | AA11: =-(N11+L11) -> 0.167488 | AB11: =-(A11*'CO2-emission factors'!$B$2+B11*'CO2-emission factors'!$B$3+C11*'CO2-emission factors'!$B$4+D11*'CO2-emission factors'!$B$5+E11*'CO2-emission factors'!$B$6+F11*'CO2-emission factors'!$B$7+G11*'CO2-emission factors'!$B$8+H11*'CO2-emission factors'!$B$9+I11*'CO2-emission factors'!$B$10+J11*'CO2-emission factors'!$B$11+K11*'CO2-emission factors'!$B$12) -> 0
C12: =-R12*1 -> -49.38416371 | I12: =-X12*(1+'Key figures'!D35) -> -7.814432026 | J12: =-Y12*(1+'Key figures'!D36) -> 0 | L12: -57.19859574 | M12: Transport electricity, district heating and oil products | N12: 55.84332524 | R12: =-C14 -> 49.38416371 | X12: =-I14 -> 6.459161527 | Y12: =-J14 -> 0 | AA12: =-(L12+N12) -> 1.355270499
L13: 0 | M13: Entry Off-Grid RE | N13: 0 | V13: =G14*-1 -> 0
A14: =SUM(A15:A17) -> -0.293104 | B14: 0 | C14: -49.38416371 | D14: -2.30296 | E14: 0 | F14: 0 | G14: 0 | H14: -504.3621628 | I14: -6.459161527 | J14: 0 | K14: 0 | L14: ='Key figures'!D4 -> -562.801552 | M14: Exit energy | N14: 428.518048 | Z14: =SUM(Z15:Z17) -> 428.518048 | AA14: =SUM(AA15:AA17) -> 134.283504 | AB14: =SUM(AB15:AB17) -> 3.912310042
A15: =L15*'Key figures'!D10 -> -0.293104 | B15: =L15*'Key figures'!D11 -> 0 | C15: =L15*'Key figures'!D12 -> -3.76848 | D15: =L15*'Key figures'!D13 -> -2.30296 | G15: =L15*'Key figures'!D14 -> 0 | H15: =L15*'Key figures'!D15 -> -46.142944 | I15: =L15*'Key figures'!D16 -> -2.596064 | J15: =L15*'Key figures'!D17 -> 0 | L15: ='Key figures'!D6*L14 -> -55.103552 | M15: Industry | N15: 41.327664 | O15: 0.75 | Z15: =-L15*O15 -> 41.327664 | AA15: =-(Z15+L15) -> 13.775888 | AB15: =-(A15*'CO2-emission factors'!$B$2+B15*'CO2-emission factors'!$B$3+C15*'CO2-emission factors'!$B$4+D15*'CO2-emission factors'!$B$5+E15*'CO2-emission factors'!$B$6+F15*'CO2-emission factors'!$B$7+G15*'CO2-emission factors'!$B$8+H15*'CO2-emission factors'!$B$9+I15*'CO2-emission factors'!$B$10+J15*'CO2-emission factors'!$B$11+K15*'CO2-emission factors'!$B$12) -> 0.44551808
A16: =L16*'Key figures'!D19 -> 0 | C16: =L16*'Key figures'!D20 -> -37.936032 | D16: =L16*'Key figures'!D21 -> 0 | G16: =L16*'Key figures'!D22 -> 0 | H16: =L16*'Key figures'!D23 -> 0 | I16: =L16*'Key figures'!D24 -> 0 | J16: =L16*'Key figures'!D25 -> 0 | L16: ='Key figures'!D7*L14 -> -37.936032 | M16: Transport | N16: 11.3808096 | O16: 0.3 | Z16: =-L16*O16 -> 11.3808096 | AA16: =-(Z16+L16) -> 26.5552224 | AB16: =-(A16*'CO2-emission factors'!$B$2+B16*'CO2-emission factors'!$B$3+C16*'CO2-emission factors'!$B$4+D16*'CO2-emission factors'!$B$5+E16*'CO2-emission factors'!$B$6+F16*'CO2-emission factors'!$B$7+G16*'CO2-emission factors'!$B$8+H16*'CO2-emission factors'!$B$9+I16*'CO2-emission factors'!$B$10+J16*'CO2-emission factors'!$B$11+K16*'CO2-emission factors'!$B$12) -> 2.883138432
A17: =L17*'Key figures'!D27 -> 0 | C17: =L17*'Key figures'!D28 -> -7.679651711 | D17: =L17*'Key figures'!D29 -> 0 | G17: =L17*'Key figures'!D30 -> 0 | H17: =L17*'Key figures'!D31 -> -458.2192188 | I17: =L17*'Key figures'!D32 -> -3.863097527 | J17: =L17*'Key figures'!D33 -> 0 | L17: =L14*'Key figures'!D8 -> -469.761968 | M17: Other | N17: 375.8095744 | O17: 0.8 | Z17: 375.8095744 | AA17: 93.9523936 | AB17: =-(A17*'CO2-emission factors'!$B$2+B17*'CO2-emission factors'!$B$3+C17*'CO2-emission factors'!$B$4+D17*'CO2-emission factors'!$B$5+E17*'CO2-emission factors'!$B$6+F17*'CO2-emission factors'!$B$7+G17*'CO2-emission factors'!$B$8+H17*'CO2-emission factors'!$B$9+I17*'CO2-emission factors'!$B$10+J17*'CO2-emission factors'!$B$11+K17*'CO2-emission factors'!$B$12) -> 0.58365353
L18: =L14 -> -562.801552 | M18: Energy Services | N18: 428.518048 | O18: =Z18/L18*-1 -> 0.7614016814 | Z18: =Z14 -> 428.518048 | AA18: =-(N18+L18) -> 134.283504

Sheet 2010 e2g-balance (hidden)
A1: Coal | B1: Crude oil | C1: Oil Products | D1: Natual Gas | E1: Nuclear | F1: Hydro | G1: Geothermal, solar, wind, etc. | H1: Biofuels and waste | I1: Electricity | J1: Heat | K1: Energy Services | L1: Total consumption | M1: Data 2010 | N1: Total production | O1: Efficiency | P1: Coal | Q1: Crude oil | R1: Oil Products | S1: Natual Gas | T1: Nuclear | U1: Hydro | V1: Geothermal, solar, wind, etc. | W1: Biofuels and waste | X1: Electricity | Y1: Heat | Z1: Energy Services | AA1: Loss | AB1: CO2-emissions
L2: =SUM(A2:K2) -> 0 | M2: Entry fuels | N2: =SUM(P2:Z2) -> 614213.239 | P2: =-(A3+A2) -> 0 | Q2: =-(B3+B2) -> 613646.2073 | S2: =-(D3+D2) -> 20.1516336 | T2: =-(E3+E2) -> 0 | W2: =-(H3+H2) -> 546.8800798
A3: =-P3 -> 0 | B3: =-Q3 -> -613646.2073 | D3: =-S3 -> -20.1516336 | E3: =-T3 -> 0 | H3: =-W3 -> -546.8800798 | L3: =SUM(A3:K3) -> -614213.239 | M3: Transport of fuels | N3: =SUM(P3:Z3) -> 614213.239 | P3: =-(A14+A5) -> 0 | Q3: =-(B14+B5) -> 613646.2073 | S3: =-(D14+D5) -> 20.1516336 | T3: =-(E14+E5) -> 0 | W3: =-(H14+H5) -> 546.8800798 | AA3: =-(L3+N3) -> 0
L4: 0 | M4: Entry On-Grid RE | N4: 6.875624822 | U4: =-F5 -> 6.846115702 | V4: =-G5 -> 0.02950911941
A5: =SUM(A7:A11) -> 0 | B5: =SUM(B7:B11) -> -613646.2073 | C5: -1.859074523 | D5: -15.9644336 | E5: 0 | F5: -6.846115702 | G5: -0.02950911941 | H5: -0.8852735822 | I5: =SUM(I6:I11) -> -0.041872 | J5: 0 | K5: 0 | L5: -613671.8336 | M5: Entry electricity, district heating and oil products | N5: 74.87979742 | P5: =SUM(P7:P11) -> 0 | R5: =(C12+C5)*-1 -> 61.36462073 | X5: =(I12+I5)*-1 -> 13.51517669 | Y5: =(J12+J5)*-1 -> 0 | AA5: =-(L5+N5) -> 613596.9538 | AB5: =SUM(AB6:AB11) -> 1.054310638
I6: =I14*IF('Key figures'!E60<0,'Key figures'!E60,0)*-1 -> 0 | L6: =SUM(A6:K6) -> 0 | M6: Import / Export of electricity | N6: 0.152412949 | X6: =I14*-1*IF('Key figures'!E60>0,'Key figures'!E60,0) -> 0.152412949 | AB6: =(I6+X6)*'CO2-emission factors'!B13 -> 0.003048258979
A7: =-($X$7+$F$7+$G$7)/$O$7*'Key figures'!$E73 -> 0 | B7: =-($X$7+$F$7+$G$7)/$O$7*'Key figures'!$E74 -> 0 | C7: =-($X$7+$F$7+$G$7)/$O$7*'Key figures'!$E75 -> -1.859074523 | D7: =-($X$7+$F$7+$G$7)/$O$7*'Key figures'!$E76 -> -15.9644336 | E7: =-($X$7+$F$7+$G$7)/$O$7*'Key figures'!$E77 -> 0 | F7: =X7*'Key figures'!E57*-1 -> -6.846115702 | G7: =X7*'Key figures'!E58*-1 -> -0.02950911941 | H7: =-($X$7+$F$7+$G$7)/$O$7*'Key figures'!$E78 -> -0.8852735822 | L7: -25.58440652 | M7: Electricity-only plants | N7: 13.51517669 | O7: ='Key figures'!E68 -> 0.3548895899 | X7: =X5-X8 -> 13.51517669 | AA7: =-(N7+L7) -> 12.06922984 | AB7: =-(A7*'CO2-emission factors'!$B$2+B7*'CO2-emission factors'!$B$3+C7*'CO2-emission factors'!$B$4+D7*'CO2-emission factors'!$B$5+E7*'CO2-emission factors'!$B$6+F7*'CO2-emission factors'!$B$7+G7*'CO2-emission factors'!$B$8+H7*'CO2-emission factors'!$B$9+I7*'CO2-emission factors'!$B$10+J7*'CO2-emission factors'!$B$11+K7*'CO2-emission factors'!$B$12) -> 1.051262379
A8: =-($X$8+$Y$8+$F$8+$G$8)/$O$8*'Key figures'!$E80 -> 0 | B8: =-($X$8+$Y$8+$F$8+$G$8)/$O$8*'Key figures'!$E81 -> 0 | C8: =-($X$8+$Y$8+$F$8+$G$8)/$O$8*'Key figures'!$E82 -> 0 | D8: =-($X$8+$Y$8+$F$8+$G$8)/$O$8*'Key figures'!$E83 -> 0 | E8: =-($X$8+$Y$8+$F$8+$G$8)/$O$8*'Key figures'!$E84 -> 0 | G8: =(X8+Y8)*'Key figures'!E62*-1 -> 0 | H8: =-($X$8+$Y$8+$F$8+$G$8)/$O$8*'Key figures'!$E85 -> 0 | L8: 0 | M8: CHP plants | N8: 0 | O8: ='Key figures'!E69 -> 0.0001 | X8: =Y8*'Key figures'!E53 -> 0 | Y8: =Y5*'Key figures'!E48 -> 0 | AA8: =-(N8+L8) -> 0 | AB8: =-(A8*'CO2-emission factors'!$B$2+B8*'CO2-emission factors'!$B$3+C8*'CO2-emission factors'!$B$4+D8*'CO2-emission factors'!$B$5+E8*'CO2-emission factors'!$B$6+F8*'CO2-emission factors'!$B$7+G8*'CO2-emission factors'!$B$8+H8*'CO2-emission factors'!$B$9+I8*'CO2-emission factors'!$B$10+J8*'CO2-emission factors'!$B$11+K8*'CO2-emission factors'!$B$12) -> 0
A9: =-($Y$9+$F$9+$G$9)/$O$9*'Key figures'!$E87 -> 0 | B9: =-($Y$9+$F$9+$G$9)/$O$9*'Key figures'!$E88 -> 0 | C9: =-($Y$9+$F$9+$G$9)/$O$9*'Key figures'!$E89 -> 0 | D9: =-($Y$9+$F$9+$G$9)/$O$9*'Key figures'!$E90 -> 0 | E9: =-($Y$9+$F$9+$G$9)/$O$9*'Key figures'!$E91 -> 0 | G9: =Y9*'Key figures'!E65*-1 -> 0 | H9: =-($Y$9+$F$9+$G$9)/$O$9*'Key figures'!$E92 -> 0 | I9: =Y9*'Key figures'!E51*-1 -> 0 | L9: 0 | M9: Heat Plants | N9: 0 | O9: ='Key figures'!E70 -> 0.0001 | Y9: =Y5*'Key figures'!E49 -> 0 | AA9: 0 | AB9: =-(A9*'CO2-emission factors'!$B$2+B9*'CO2-emission factors'!$B$3+C9*'CO2-emission factors'!$B$4+D9*'CO2-emission factors'!$B$5+E9*'CO2-emission factors'!$B$6+F9*'CO2-emission factors'!$B$7+G9*'CO2-emission factors'!$B$8+H9*'CO2-emission factors'!$B$9+I9*'CO2-emission factors'!$B$10+J9*'CO2-emission factors'!$B$11+K9*'CO2-emission factors'!$B$12) -> 0
B10: =-R10/O10 -> -613646.2073 | L10: -613646.2073 | M10: Oil refineries | N10: 61.36462073 | O10: ='Key figures'!E71 -> 0.0001 | R10: =-(C7+C8+C9+C11+C12) -> 61.36462073 | AA10: =-(N10+L10) -> 613584.8427 | AB10: =-(A10*'CO2-emission factors'!$B$2+B10*'CO2-emission factors'!$B$3+C10*'CO2-emission factors'!$B$4+D10*'CO2-emission factors'!$B$5+E10*'CO2-emission factors'!$B$6+F10*'CO2-emission factors'!$B$7+G10*'CO2-emission factors'!$B$8+H10*'CO2-emission factors'!$B$9+I10*'CO2-emission factors'!$B$10+J10*'CO2-emission factors'!$B$11+K10*'CO2-emission factors'!$B$12) -> 0
A11: =L11*'Key figures'!E42 -> 0 | B11: =L11*'Key figures'!E44 -> 0 | C11: =L11*'Key figures'!E45 -> 0 | D11: =L11*'Key figures'!E43 -> 0 | H11: =L11*'Key figures'!E46 -> 0 | I11: =L11*'Key figures'!E40 -> -0.041872 | J11: =L11*'Key figures'!E41 -> 0 | L11: =L14*'Key figures'!E38 -> -0.041872 | M11: Energy Industry one use | N11: 0 | O11: 0 | AA11: =-(N11+L11) -> 0.041872 | AB11: =-(A11*'CO2-emission factors'!$B$2+B11*'CO2-emission factors'!$B$3+C11*'CO2-emission factors'!$B$4+D11*'CO2-emission factors'!$B$5+E11*'CO2-emission factors'!$B$6+F11*'CO2-emission factors'!$B$7+G11*'CO2-emission factors'!$B$8+H11*'CO2-emission factors'!$B$9+I11*'CO2-emission factors'!$B$10+J11*'CO2-emission factors'!$B$11+K11*'CO2-emission factors'!$B$12) -> 0
C12: =-R12*1 -> -59.50554621 | I12: =-X12*(1+'Key figures'!E35) -> -13.47330469 | J12: =-Y12*(1+'Key figures'!E36) -> 0 | L12: -72.9788509 | M12: Transport electricity, district heating and oil products | N12: 70.23541781 | R12: =-C14 -> 59.50554621 | X12: =-I14 -> 10.72987161 | Y12: =-J14 -> 0 | AA12: =-(L12+N12) -> 2.743433081
L13: 0 | M13: Entry Off-Grid RE | N13: 0 | V13: =G14*-1 -> 0
A14: =SUM(A15:A17) -> 0 | B14: 0 | C14: -59.50554621 | D14: -4.1872 | E14: 0 | F14: 0 | G14: 0 | H14: -545.9948062 | I14: -10.72987161 | J14: 0 | K14: 0 | L14: ='Key figures'!E4 -> -620.417424 | M14: Exit energy | N14: 469.050144 | Z14: =SUM(Z15:Z17) -> 469.050144 | AA14: =SUM(AA15:AA17) -> 151.36728 | AB14: =SUM(AB15:AB17) -> 4.761091912
A15: =L15*'Key figures'!E10 -> 0 | B15: =L15*'Key figures'!E11 -> 0 | C15: =L15*'Key figures'!E12 -> -2.679808 | D15: =L15*'Key figures'!E13 -> -4.1872 | G15: =L15*'Key figures'!E14 -> 0 | H15: =L15*'Key figures'!E15 -> -48.529648 | I15: =L15*'Key figures'!E16 -> -3.726608 | J15: =L15*'Key figures'!E17 -> 0 | L15: ='Key figures'!E6*L14 -> -59.123264 | M15: Industry | N15: 44.342448 | O15: 0.75 | Z15: =-L15*O15 -> 44.342448 | AA15: =-(Z15+L15) -> 14.780816 | AB15: =-(A15*'CO2-emission factors'!$B$2+B15*'CO2-emission factors'!$B$3+C15*'CO2-emission factors'!$B$4+D15*'CO2-emission factors'!$B$5+E15*'CO2-emission factors'!$B$6+F15*'CO2-emission factors'!$B$7+G15*'CO2-emission factors'!$B$8+H15*'CO2-emission factors'!$B$9+I15*'CO2-emission factors'!$B$10+J15*'CO2-emission factors'!$B$11+K15*'CO2-emission factors'!$B$12) -> 0.442335808
A16: =L16*'Key figures'!E19 -> 0 | C16: =L16*'Key figures'!E20 -> -48.655264 | D16: =L16*'Key figures'!E21 -> 0 | G16: =L16*'Key figures'!E22 -> 0 | H16: =L16*'Key figures'!E23 -> 0 | I16: =L16*'Key figures'!E24 -> 0 | J16: =L16*'Key figures'!E25 -> 0 | L16: ='Key figures'!E7*L14 -> -48.655264 | M16: Transport | N16: 14.5965792 | O16: 0.3 | Z16: =-L16*O16 -> 14.5965792 | AA16: =-(Z16+L16) -> 34.0586848 | AB16: =-(A16*'CO2-emission factors'!$B$2+B16*'CO2-emission factors'!$B$3+C16*'CO2-emission factors'!$B$4+D16*'CO2-emission factors'!$B$5+E16*'CO2-emission factors'!$B$6+F16*'CO2-emission factors'!$B$7+G16*'CO2-emission factors'!$B$8+H16*'CO2-emission factors'!$B$9+I16*'CO2-emission factors'!$B$10+J16*'CO2-emission factors'!$B$11+K16*'CO2-emission factors'!$B$12) -> 3.697800064
A17: =L17*'Key figures'!E27 -> 0 | C17: =L17*'Key figures'!E28 -> -8.170474208 | D17: =L17*'Key figures'!E29 -> 0 | G17: =L17*'Key figures'!E30 -> 0 | H17: =L17*'Key figures'!E31 -> -497.4651582 | I17: =L17*'Key figures'!E32 -> -7.003263607 | J17: =L17*'Key figures'!E33 -> 0 | L17: =L14*'Key figures'!E8 -> -512.638896 | M17: Other | N17: 410.1111168 | O17: 0.8 | Z17: 410.1111168 | AA17: 102.5277792 | AB17: =-(A17*'CO2-emission factors'!$B$2+B17*'CO2-emission factors'!$B$3+C17*'CO2-emission factors'!$B$4+D17*'CO2-emission factors'!$B$5+E17*'CO2-emission factors'!$B$6+F17*'CO2-emission factors'!$B$7+G17*'CO2-emission factors'!$B$8+H17*'CO2-emission factors'!$B$9+I17*'CO2-emission factors'!$B$10+J17*'CO2-emission factors'!$B$11+K17*'CO2-emission factors'!$B$12) -> 0.6209560398
L18: =L14 -> -620.417424 | M18: Energy Services | N18: 469.050144 | O18: =Z18/L18*-1 -> 0.7560234865 | Z18: =Z14 -> 469.050144 | AA18: =-(N18+L18) -> 151.36728

Sheet 2015 e2g-balance (hidden)
A1: Coal | B1: Crude oil | C1: Oil Products | D1: Natual Gas | E1: Nuclear | F1: Hydro | G1: Geothermal, solar, wind, etc. | H1: Biofuels and waste | I1: Electricity | J1: Heat | K1: Energy Services | L1: Total consumption | M1: Data 2015 | N1: Total production | O1: Efficiency | P1: Coal | Q1: Crude oil | R1: Oil Products | S1: Natual Gas | T1: Nuclear | U1: Hydro | V1: Geothermal, solar, wind, etc. | W1: Biofuels and waste | X1: Electricity | Y1: Heat | Z1: Energy Services | AA1: Loss | AB1: CO2-emissions
L2: =SUM(A2:K2) -> 0 | M2: Entry fuels | N2: =SUM(P2:Z2) -> 10612793.97 | P2: =-(A3+A2) -> 6.615776 | Q2: =-(B3+B2) -> 10612168.51 | S2: =-(D3+D2) -> 23.68138451 | T2: =-(E3+E2) -> 0 | W2: =-(H3+H2) -> 595.1563296
A3: =-P3 -> -6.615776 | B3: =-Q3 -> -10612168.51 | D3: =-S3 -> -23.68138451 | E3: =-T3 -> 0 | H3: =-W3 -> -595.1563296 | L3: =SUM(A3:K3) -> -10612793.97 | M3: Transport of fuels | N3: =SUM(P3:Z3) -> 10612793.97 | P3: =-(A14+A5) -> 6.615776 | Q3: =-(B14+B5) -> 10612168.51 | S3: =-(D14+D5) -> 23.68138451 | T3: =-(E14+E5) -> 0 | W3: =-(H14+H5) -> 595.1563296 | AA3: =-(L3+N3) -> 0
L4: 0 | M4: Entry On-Grid RE | N4: 5.494696169 | U4: =-F5 -> 5.464505531 | V4: =-G5 -> 0.03019063829
A5: =SUM(A7:A11) -> 0 | B5: =SUM(B7:B11) -> -10612168.51 | C5: -13.94807489 | D5: -17.90304851 | E5: 0 | F5: -5.464505531 | G5: -0.03019063829 | H5: -0.8453378722 | I5: =SUM(I6:I11) -> -0.041872 | J5: 0 | K5: 0 | L5: -10612206.75 | M5: Entry electricity, district heating and oil products | N5: 123.6926366 | P5: =SUM(P7:P11) -> 0 | R5: =(C12+C5)*-1 -> 106.1216851 | X5: =(I12+I5)*-1 -> 17.57095149 | Y5: =(J12+J5)*-1 -> 0 | AA5: =-(L5+N5) -> 10612083.06 | AB5: =SUM(AB6:AB11) -> 2.084372959
I6: =I14*IF('Key figures'!F60<0,'Key figures'!F60,0)*-1 -> 0 | L6: 0 | M6: Import / Export of electricity | N6: 0.1922750949 | X6: =I14*-1*IF('Key figures'!F60>0,'Key figures'!F60,0) -> 0.1922750949 | AB6: =(I6+X6)*'CO2-emission factors'!B13 -> 0.003845501898
A7: =-($X$7+$F$7+$G$7)/$O$7*'Key figures'!$F73 -> 0 | B7: =-($X$7+$F$7+$G$7)/$O$7*'Key figures'!$F74 -> 0 | C7: =-($X$7+$F$7+$G$7)/$O$7*'Key figures'!$F75 -> -13.94807489 | D7: =-($X$7+$F$7+$G$7)/$O$7*'Key figures'!$F76 -> -17.90304851 | E7: =-($X$7+$F$7+$G$7)/$O$7*'Key figures'!$F77 -> 0 | F7: =X7*'Key figures'!F57*-1 -> -5.464505531 | G7: =X7*'Key figures'!F58*-1 -> -0.03019063829 | H7: =-($X$7+$F$7+$G$7)/$O$7*'Key figures'!$F78 -> -0.8453378722 | L7: -38.19115744 | M7: Electricity-only plants | N7: 17.57095149 | O7: ='Key figures'!F68 -> 0.3693444137 | X7: =X5-X8 -> 17.57095149 | AA7: =-(N7+L7) -> 20.62020595 | AB7: =-((1-'Key figures'!F$98)*A7*'CO2-emission factors'!$B$2+B7*(1-'Key figures'!F$99)*'CO2-emission factors'!$B$3+C7*(1-'Key figures'!F$99)*'CO2-emission factors'!$B$4+D7*(1-'Key figures'!F$100)*'CO2-emission factors'!$B$5+E7*'CO2-emission factors'!$B$6+F7*'CO2-emission factors'!$B$7+G7*'CO2-emission factors'!$B$8+H7*(1-'Key figures'!F$101)*'CO2-emission factors'!$B$9+I7*'CO2-emission factors'!$B$10+J7*'CO2-emission factors'!$B$11+K7*'CO2-emission factors'!$B$12)+H7*'Key figures'!F$101*'CO2-emission factors'!$B$14 -> 2.080527457
A8: =-($X$8+$Y$8+$F$8+$G$8)/$O$8*'Key figures'!$F80 -> 0 | B8: =-($X$8+$Y$8+$F$8+$G$8)/$O$8*'Key figures'!$F81 -> 0 | C8: =-($X$8+$Y$8+$F$8+$G$8)/$O$8*'Key figures'!$F82 -> 0 | D8: =-($X$8+$Y$8+$F$8+$G$8)/$O$8*'Key figures'!$F83 -> 0 | E8: =-($X$8+$Y$8+$F$8+$G$8)/$O$8*'Key figures'!$F84 -> 0 | G8: =(X8+Y8)*'Key figures'!F62*-1 -> 0 | H8: =-($X$8+$Y$8+$F$8+$G$8)/$O$8*'Key figures'!$F85 -> 0 | L8: 0 | M8: CHP plants | N8: 0 | O8: ='Key figures'!F69 -> 0.0001 | X8: =Y8*'Key figures'!F53 -> 0 | Y8: =Y5*'Key figures'!F48 -> 0 | AA8: =-(N8+L8) -> 0 | AB8: =-((1-'Key figures'!F$98)*A8*'CO2-emission factors'!$B$2+B8*(1-'Key figures'!F$99)*'CO2-emission factors'!$B$3+C8*(1-'Key figures'!F$99)*'CO2-emission factors'!$B$4+D8*(1-'Key figures'!F$100)*'CO2-emission factors'!$B$5+E8*'CO2-emission factors'!$B$6+F8*'CO2-emission factors'!$B$7+G8*'CO2-emission factors'!$B$8+H8*(1-'Key figures'!F$101)*'CO2-emission factors'!$B$9+I8*'CO2-emission factors'!$B$10+J8*'CO2-emission factors'!$B$11+K8*'CO2-emission factors'!$B$12)+H8*'Key figures'!F$101*'CO2-emission factors'!$B$14 -> 0
A9: =-($Y$9+$F$9+$G$9)/$O$9*'Key figures'!$F87 -> 0 | B9: =-($Y$9+$F$9+$G$9)/$O$9*'Key figures'!$F88 -> 0 | C9: =-($Y$9+$F$9+$G$9)/$O$9*'Key figures'!$F89 -> 0 | D9: =-($Y$9+$F$9+$G$9)/$O$9*'Key figures'!$F90 -> 0 | E9: =-($Y$9+$F$9+$G$9)/$O$9*'Key figures'!$F91 -> 0 | G9: =Y9*'Key figures'!F65*-1 -> 0 | H9: =-($Y$9+$F$9+$G$9)/$O$9*'Key figures'!$F92 -> 0 | I9: =Y9*'Key figures'!F51*-1 -> 0 | L9: 0 | M9: Heat Plants | N9: 0 | O9: ='Key figures'!F70 -> 0.0001 | Y9: =Y5*'Key figures'!F49 -> 0 | AA9: 0 | AB9: =-((1-'Key figures'!F$98)*A9*'CO2-emission factors'!$B$2+B9*(1-'Key figures'!F$99)*'CO2-emission factors'!$B$3+C9*(1-'Key figures'!F$99)*'CO2-emission factors'!$B$4+D9*(1-'Key figures'!F$100)*'CO2-emission factors'!$B$5+E9*'CO2-emission factors'!$B$6+F9*'CO2-emission factors'!$B$7+G9*'CO2-emission factors'!$B$8+H9*(1-'Key figures'!F$101)*'CO2-emission factors'!$B$9+I9*'CO2-emission factors'!$B$10+J9*'CO2-emission factors'!$B$11+K9*'CO2-emission factors'!$B$12)+H9*'Key figures'!F$101*'CO2-emission factors'!$B$14 -> 0
B10: =-R10/O10 -> -10612168.51 | L10: -10612168.51 | M10: Oil refineries | N10: 106.1216851 | O10: ='Key figures'!F71 -> 1e-05 | R10: =-(C7+C8+C9+C11+C12) -> 106.1216851 | AA10: =-(N10+L10) -> 10612062.39 | AB10: =-((1-'Key figures'!F$98)*A10*'CO2-emission factors'!$B$2+B10*(1-'Key figures'!F$99)*'CO2-emission factors'!$B$3+C10*(1-'Key figures'!F$99)*'CO2-emission factors'!$B$4+D10*(1-'Key figures'!F$100)*'CO2-emission factors'!$B$5+E10*'CO2-emission factors'!$B$6+F10*'CO2-emission factors'!$B$7+G10*'CO2-emission factors'!$B$8+H10*(1-'Key figures'!F$101)*'CO2-emission factors'!$B$9+I10*'CO2-emission factors'!$B$10+J10*'CO2-emission factors'!$B$11+K10*'CO2-emission factors'!$B$12)+H10*'Key figures'!F$101*'CO2-emission factors'!$B$14 -> 0
A11: =L11*'Key figures'!F42 -> 0 | B11: =L11*'Key figures'!F44 -> 0 | C11: =L11*'Key figures'!F45 -> 0 | D11: =L11*'Key figures'!F43 -> 0 | H11: =L11*'Key figures'!F46 -> 0 | I11: =L11*'Key figures'!F40 -> -0.041872 | J11: =L11*'Key figures'!F41 -> 0 | L11: =L14*'Key figures'!F38 -> -0.041872 | M11: Energy Industry one use | N11: 0 | O11: 0 | AA11: =-(N11+L11) -> 0.041872 | AB11: =-((1-'Key figures'!F$98)*A11*'CO2-emission factors'!$B$2+B11*(1-'Key figures'!F$99)*'CO2-emission factors'!$B$3+C11*(1-'Key figures'!F$99)*'CO2-emission factors'!$B$4+D11*(1-'Key figures'!F$100)*'CO2-emission factors'!$B$5+E11*'CO2-emission factors'!$B$6+F11*'CO2-emission factors'!$B$7+G11*'CO2-emission factors'!$B$8+H11*(1-'Key figures'!F$101)*'CO2-emission factors'!$B$9+I11*'CO2-emission factors'!$B$10+J11*'CO2-emission factors'!$B$11+K11*'CO2-emission factors'!$B$12)+H11*'Key figures'!F$101*'CO2-emission factors'!$B$14 -> 0
C12: =-R12*1 -> -92.17361026 | I12: =-X12*(1+'Key figures'!F35) -> -17.52907949 | J12: =-Y12*(1+'Key figures'!F36) -> 0 | L12: -109.7026897 | M12: Transport electricity, district heating and oil products | N12: 106.6262882 | R12: =-C14 -> 92.17361026 | X12: =-I14 -> 14.45267797 | Y12: =-J14 -> 0 | AA12: =-(L12+N12) -> 3.076401519
L13: 0 | M13: Entry Off-Grid RE | N13: 0 | V13: =G14*-1 -> 0
A14: =SUM(A15:A17) -> -6.615776 | B14: 0 | C14: -92.17361026 | D14: -5.778336 | E14: 0 | F14: 0 | G14: 0 | H14: -594.3109918 | I14: -14.45267797 | J14: 0 | K14: 0 | L14: ='Key figures'!F4 -> -715.131888 | M14: Exit energy | N14: 527.1224208 | Z14: =SUM(Z15:Z17) -> 527.1224208 | AA14: =SUM(AA15:AA17) -> 186.2508432 | AB14: =SUM(AB15:AB17) -> 7.963058252
A15: =L15*'Key figures'!F10 -> -6.615776 | B15: =L15*'Key figures'!F11 -> 0 | C15: =L15*'Key figures'!F12 -> -7.788192 | D15: =L15*'Key figures'!F13 -> -5.778336 | G15: =L15*'Key figures'!F14 -> 0 | H15: =L15*'Key figures'!F15 -> -51.251328 | I15: =L15*'Key figures'!F16 -> -4.899024 | J15: =L15*'Key figures'!F17 -> 0 | L15: ='Key figures'!F6*L14 -> -76.374528 | M15: Industry | N15: 57.280896 | O15: 0.75 | Z15: =-L15*O15 -> 57.280896 | AA15: =-(Z15+L15) -> 19.093632 | AB15: =-(A15*'CO2-emission factors'!$B$2+B15*'CO2-emission factors'!$B$3+C15*'CO2-emission factors'!$B$4+D15*'CO2-emission factors'!$B$5+E15*'CO2-emission factors'!$B$6+F15*'CO2-emission factors'!$B$7+G15*'CO2-emission factors'!$B$8+H15*'CO2-emission factors'!$B$9+I15*'CO2-emission factors'!$B$10+J15*'CO2-emission factors'!$B$11+K15*'CO2-emission factors'!$B$12) -> 1.549766464
A16: =L16*'Key figures'!F19 -> 0 | C16: =L16*'Key figures'!F20 -> -79.514928 | D16: =L16*'Key figures'!F21 -> 0 | G16: =L16*'Key figures'!F22 -> 0 | H16: =L16*'Key figures'!F23 -> 0 | I16: =L16*'Key figures'!F24 -> 0 | J16: =L16*'Key figures'!F25 -> 0 | L16: ='Key figures'!F7*L14 -> -79.514928 | M16: Transport | N16: 23.8544784 | O16: 0.3 | Z16: =-L16*O16 -> 23.8544784 | AA16: =-(Z16+L16) -> 55.6604496 | AB16: =-(A16*'CO2-emission factors'!$B$2+B16*'CO2-emission factors'!$B$3+C16*'CO2-emission factors'!$B$4+D16*'CO2-emission factors'!$B$5+E16*'CO2-emission factors'!$B$6+F16*'CO2-emission factors'!$B$7+G16*'CO2-emission factors'!$B$8+H16*'CO2-emission factors'!$B$9+I16*'CO2-emission factors'!$B$10+J16*'CO2-emission factors'!$B$11+K16*'CO2-emission factors'!$B$12) -> 6.043134528
A17: =L17*'Key figures'!F27 -> 0 | C17: =L17*'Key figures'!F28 -> -4.870490258 | D17: =L17*'Key figures'!F29 -> 0 | G17: =L17*'Key figures'!F30 -> 0 | H17: =L17*'Key figures'!F31 -> -543.0596638 | I17: =L17*'Key figures'!F32 -> -9.553653968 | J17: =L17*'Key figures'!F33 -> 0 | L17: =L14*'Key figures'!F8 -> -557.483808 | M17: Other | N17: 445.9870464 | O17: 0.8 | Z17: 445.9870464 | AA17: 111.4967616 | AB17: =-(A17*'CO2-emission factors'!$B$2+B17*'CO2-emission factors'!$B$3+C17*'CO2-emission factors'!$B$4+D17*'CO2-emission factors'!$B$5+E17*'CO2-emission factors'!$B$6+F17*'CO2-emission factors'!$B$7+G17*'CO2-emission factors'!$B$8+H17*'CO2-emission factors'!$B$9+I17*'CO2-emission factors'!$B$10+J17*'CO2-emission factors'!$B$11+K17*'CO2-emission factors'!$B$12) -> 0.3701572596
L18: =L14 -> -715.131888 | M18: Energy Services | N18: 527.1224208 | O18: =Z18/L18*-1 -> 0.7370981908 | Z18: =Z14 -> 527.1224208 | AA18: =-(N18+L18) -> 188.0094672

Sheet 2018 e2g-balance (hidden)
A1: Coal | B1: Crude oil | C1: Oil Products | D1: Natual Gas | E1: Nuclear | F1: Hydro | G1: Geothermal, solar, wind, etc. | H1: Biofuels and waste | I1: Electricity | J1: Heat | K1: Energy Services | L1: Total consumption | M1: Data 2018 | N1: Total production | O1: Efficiency | P1: Coal | Q1: Crude oil | R1: Oil Products | S1: Natual Gas | T1: Nuclear | U1: Hydro | V1: Geothermal, solar, wind, etc. | W1: Biofuels and waste | X1: Electricity | Y1: Heat | Z1: Energy Services | AA1: Loss | AB1: CO2-emissions
L2: =SUM(A2:K2) -> 0 | M2: Entry fuels | N2: =SUM(P2:Z2) -> 9886008.861 | P2: =-(A3+A2) -> 16.204464 | Q2: =-(B3+B2) -> 9885336.856 | S2: =-(D3+D2) -> 22.02898252 | T2: =-(E3+E2) -> 0 | W2: =-(H3+H2) -> 633.7709878
A3: =-P3 -> -16.204464 | B3: =-Q3 -> -9885336.856 | D3: =-S3 -> -22.02898252 | E3: =-T3 -> 0 | H3: =-W3 -> -633.7709878 | L3: =SUM(A3:K3) -> -9886008.861 | M3: Transport of fuels | N3: =SUM(P3:Z3) -> 9886008.861 | P3: =-(A14+A5) -> 16.204464 | Q3: =-(B14+B5) -> 9885336.856 | S3: =-(D14+D5) -> 22.02898252 | T3: =-(E14+E5) -> 0 | W3: =-(H14+H5) -> 633.7709878 | AA3: =-(L3+N3) -> 0
L4: 0 | M4: Entry On-Grid RE | N4: 6.690793511 | U4: =-F5 -> 6.42316177 | V4: =-G5 -> 0.2676317404
A5: =SUM(A7:A11) -> 0 | B5: =SUM(B7:B11) -> -9885336.856 | C5: -12.77941561 | D5: -15.95754252 | E5: 0 | F5: -6.42316177 | G5: -0.2676317404 | H5: -1.037072994 | I5: =SUM(I6:I11) -> -0.334976 | J5: 0 | K5: 0 | L5: -9885373.656 | M5: Entry electricity, district heating and oil products | N5: 119.6617364 | P5: =SUM(P7:P11) -> 0 | R5: =(C12+C5)*-1 -> 98.85336856 | X5: =(I12+I5)*-1 -> 20.80836782 | Y5: =(J12+J5)*-1 -> 0 | AA5: =-(L5+N5) -> 9885253.994 | AB5: =SUM(AB6:AB11) -> 1.887086074
I6: =I14*IF('Key figures'!G60<0,'Key figures'!G60,0)*-1 -> 0 | L6: 0 | M6: Import / export of electricity | N6: 0.3135282055 | X6: =I14*-1*IF('Key figures'!G60>0,'Key figures'!G60,0) -> 0.3135282055 | AB6: =(I6+X6)*'CO2-emission factors'!B13 -> 0.00627056411
A7: =-($X$7+$F$7+$G$7)/$O$7*'Key figures'!$G73 -> 0 | B7: =-($X$7+$F$7+$G$7)/$O$7*'Key figures'!$G74 -> 0 | C7: =-($X$7+$F$7+$G$7)/$O$7*'Key figures'!$G75 -> -12.77941561 | D7: =-($X$7+$F$7+$G$7)/$O$7*'Key figures'!$G76 -> -15.95754252 | E7: =-($X$7+$F$7+$G$7)/$O$7*'Key figures'!$G77 -> 0 | F7: =X7*'Key figures'!G57*-1 -> -6.42316177 | G7: =X7*'Key figures'!G58*-1 -> -0.2676317404 | H7: =-($X$7+$F$7+$G$7)/$O$7*'Key figures'!$G78 -> -1.037072994 | L7: -36.46482463 | M7: Electricity-only plants | N7: 20.80836782 | O7: ='Key figures'!G68 -> 0.4741573034 | X7: =X5-X8 -> 20.80836782 | AA7: =-(N7+L7) -> 15.65645681 | AB7: =-((1-'Key figures'!G$98)*A7*'CO2-emission factors'!$B$2+B7*(1-'Key figures'!G$99)*'CO2-emission factors'!$B$3+C7*(1-'Key figures'!G$99)*'CO2-emission factors'!$B$4+D7*(1-'Key figures'!G$100)*'CO2-emission factors'!$B$5+E7*'CO2-emission factors'!$B$6+F7*'CO2-emission factors'!$B$7+G7*'CO2-emission factors'!$B$8+H7*(1-'Key figures'!G$101)*'CO2-emission factors'!$B$9+I7*'CO2-emission factors'!$B$10+J7*'CO2-emission factors'!$B$11+K7*'CO2-emission factors'!$B$12)+H7*'Key figures'!G$101*'CO2-emission factors'!$B$14 -> 1.88081551
A8: =-($X$8+$Y$8+$F$8+$G$8)/$O$8*'Key figures'!$G80 -> 0 | B8: =-($X$8+$Y$8+$F$8+$G$8)/$O$8*'Key figures'!$G81 -> 0 | C8: =-($X$8+$Y$8+$F$8+$G$8)/$O$8*'Key figures'!$G82 -> 0 | D8: =-($X$8+$Y$8+$F$8+$G$8)/$O$8*'Key figures'!$G83 -> 0 | E8: =-($X$8+$Y$8+$F$8+$G$8)/$O$8*'Key figures'!$G84 -> 0 | G8: =(X8+Y8)*'Key figures'!G62*-1 -> 0 | H8: =-($X$8+$Y$8+$F$8+$G$8)/$O$8*'Key figures'!$G85 -> 0 | L8: 0 | M8: CHP plants | N8: 0 | O8: ='Key figures'!G69 -> 1e-05 | X8: =Y8*'Key figures'!G53 -> 0 | Y8: =Y5*'Key figures'!G48 -> 0 | AA8: =-(N8+L8) -> 0 | AB8: =-((1-'Key figures'!G$98)*A8*'CO2-emission factors'!$B$2+B8*(1-'Key figures'!G$99)*'CO2-emission factors'!$B$3+C8*(1-'Key figures'!G$99)*'CO2-emission factors'!$B$4+D8*(1-'Key figures'!G$100)*'CO2-emission factors'!$B$5+E8*'CO2-emission factors'!$B$6+F8*'CO2-emission factors'!$B$7+G8*'CO2-emission factors'!$B$8+H8*(1-'Key figures'!G$101)*'CO2-emission factors'!$B$9+I8*'CO2-emission factors'!$B$10+J8*'CO2-emission factors'!$B$11+K8*'CO2-emission factors'!$B$12)+H8*'Key figures'!G$101*'CO2-emission factors'!$B$14 -> 0
A9: =-($Y$9+$F$9+$G$9)/$O$9*'Key figures'!$G87 -> 0 | B9: =-($Y$9+$F$9+$G$9)/$O$9*'Key figures'!$G88 -> 0 | C9: =-($Y$9+$F$9+$G$9)/$O$9*'Key figures'!$G89 -> 0 | D9: =-($Y$9+$F$9+$G$9)/$O$9*'Key figures'!$G90 -> 0 | E9: =-($Y$9+$F$9+$G$9)/$O$9*'Key figures'!$G91 -> 0 | G9: =Y9*'Key figures'!G65*-1 -> 0 | H9: =-($Y$9+$F$9+$G$9)/$O$9*'Key figures'!$G92 -> 0 | I9: =Y9*'Key figures'!G51*-1 -> 0 | L9: 0 | M9: Heat Plants | N9: 0 | O9: ='Key figures'!G70 -> 0.0001 | Y9: =Y5*'Key figures'!G49 -> 0 | AA9: 0 | AB9: =-((1-'Key figures'!G$98)*A9*'CO2-emission factors'!$B$2+B9*(1-'Key figures'!G$99)*'CO2-emission factors'!$B$3+C9*(1-'Key figures'!G$99)*'CO2-emission factors'!$B$4+D9*(1-'Key figures'!G$100)*'CO2-emission factors'!$B$5+E9*'CO2-emission factors'!$B$6+F9*'CO2-emission factors'!$B$7+G9*'CO2-emission factors'!$B$8+H9*(1-'Key figures'!G$101)*'CO2-emission factors'!$B$9+I9*'CO2-emission factors'!$B$10+J9*'CO2-emission factors'!$B$11+K9*'CO2-emission factors'!$B$12)+H9*'Key figures'!G$101*'CO2-emission factors'!$B$14 -> 0
B10: =-R10/O10 -> -9885336.856 | L10: -9885336.856 | M10: Oil refineries | N10: 98.85336856 | O10: ='Key figures'!G71 -> 1e-05 | R10: =-(C7+C8+C9+C11+C12) -> 98.85336856 | AA10: =-(N10+L10) -> 9885238.003 | AB10: =-((1-'Key figures'!G$98)*A10*'CO2-emission factors'!$B$2+B10*(1-'Key figures'!G$99)*'CO2-emission factors'!$B$3+C10*(1-'Key figures'!G$99)*'CO2-emission factors'!$B$4+D10*(1-'Key figures'!G$100)*'CO2-emission factors'!$B$5+E10*'CO2-emission factors'!$B$6+F10*'CO2-emission factors'!$B$7+G10*'CO2-emission factors'!$B$8+H10*(1-'Key figures'!G$101)*'CO2-emission factors'!$B$9+I10*'CO2-emission factors'!$B$10+J10*'CO2-emission factors'!$B$11+K10*'CO2-emission factors'!$B$12)+H10*'Key figures'!G$101*'CO2-emission factors'!$B$14 -> 0
A11: =L11*'Key figures'!G42 -> 0 | B11: =L11*'Key figures'!G44 -> 0 | C11: =L11*'Key figures'!G45 -> 0 | D11: =L11*'Key figures'!G43 -> 0 | H11: =L11*'Key figures'!G46 -> 0 | I11: =L11*'Key figures'!G40 -> -0.334976 | J11: =L11*'Key figures'!G41 -> 0 | L11: =L14*'Key figures'!G38 -> -0.334976 | M11: Energy Industry one use | N11: 0 | O11: 0 | AA11: =-(N11+L11) -> 0.334976 | AB11: =-((1-'Key figures'!G$98)*A11*'CO2-emission factors'!$B$2+B11*(1-'Key figures'!G$99)*'CO2-emission factors'!$B$3+C11*(1-'Key figures'!G$99)*'CO2-emission factors'!$B$4+D11*(1-'Key figures'!G$100)*'CO2-emission factors'!$B$5+E11*'CO2-emission factors'!$B$6+F11*'CO2-emission factors'!$B$7+G11*'CO2-emission factors'!$B$8+H11*(1-'Key figures'!G$101)*'CO2-emission factors'!$B$9+I11*'CO2-emission factors'!$B$10+J11*'CO2-emission factors'!$B$11+K11*'CO2-emission factors'!$B$12)+H11*'Key figures'!G$101*'CO2-emission factors'!$B$14 -> 0
C12: =-R12*1 -> -86.07395296 | I12: =-X12*(1+'Key figures'!G35) -> -20.47339182 | J12: =-Y12*(1+'Key figures'!G36) -> 0 | L12: -106.5473448 | M12: Transport electricity, district heating and oil products | N12: 103.2552986 | R12: =-C14 -> 86.07395296 | X12: =-I14 -> 17.18134566 | Y12: =-J14 -> 0 | AA12: =-(L12+N12) -> 3.292046158
L13: 0 | M13: Entry Off-Grid RE | N13: 0 | V13: =G14*-1 -> 0
A14: =SUM(A15:A17) -> -16.204464 | B14: 0 | C14: -86.07395296 | D14: -6.07144 | E14: 0 | F14: 0 | G14: 0 | H14: -632.7339148 | I14: -17.18134566 | J14: 0 | K14: 0 | L14: ='Key figures'!G4 -> -758.218176 | M14: Exit energy | N14: 563.3396072 | Z14: =SUM(Z15:Z17) -> 563.3396072 | AA14: =SUM(AA15:AA17) -> 194.8785688 | AB14: =SUM(AB15:AB17) -> 8.427116585
A15: =L15*'Key figures'!G10 -> -16.204464 | B15: =L15*'Key figures'!G11 -> 0 | C15: =L15*'Key figures'!G12 -> -0.669952 | D15: =L15*'Key figures'!G13 -> -6.07144 | G15: =L15*'Key figures'!G14 -> 0 | H15: =L15*'Key figures'!G15 -> -53.80552 | I15: =L15*'Key figures'!G16 -> -6.197056 | J15: =L15*'Key figures'!G17 -> 0 | L15: ='Key figures'!G6*L14 -> -82.948432 | M15: Industry | N15: 62.211324 | O15: 0.75 | Z15: =-L15*O15 -> 62.211324 | AA15: =-(Z15+L15) -> 20.737108 | AB15: =-(A15*'CO2-emission factors'!$B$2+B15*'CO2-emission factors'!$B$3+C15*'CO2-emission factors'!$B$4+D15*'CO2-emission factors'!$B$5+E15*'CO2-emission factors'!$B$6+F15*'CO2-emission factors'!$B$7+G15*'CO2-emission factors'!$B$8+H15*'CO2-emission factors'!$B$9+I15*'CO2-emission factors'!$B$10+J15*'CO2-emission factors'!$B$11+K15*'CO2-emission factors'!$B$12) -> 1.936412512
A16: =L16*'Key figures'!G19 -> 0 | C16: =L16*'Key figures'!G20 -> -78.175024 | D16: =L16*'Key figures'!G21 -> 0 | G16: =L16*'Key figures'!G22 -> 0 | H16: =L16*'Key figures'!G23 -> 0 | I16: =L16*'Key figures'!G24 -> 0 | J16: =L16*'Key figures'!G25 -> 0 | L16: ='Key figures'!G7*L14 -> -78.175024 | M16: Transport | N16: 23.4525072 | O16: 0.3 | Z16: =-L16*O16 -> 23.4525072 | AA16: =-(Z16+L16) -> 54.7225168 | AB16: =-(A16*'CO2-emission factors'!$B$2+B16*'CO2-emission factors'!$B$3+C16*'CO2-emission factors'!$B$4+D16*'CO2-emission factors'!$B$5+E16*'CO2-emission factors'!$B$6+F16*'CO2-emission factors'!$B$7+G16*'CO2-emission factors'!$B$8+H16*'CO2-emission factors'!$B$9+I16*'CO2-emission factors'!$B$10+J16*'CO2-emission factors'!$B$11+K16*'CO2-emission factors'!$B$12) -> 5.941301824
A17: =L17*'Key figures'!G27 -> 0 | C17: =L17*'Key figures'!G28 -> -7.228976956 | D17: =L17*'Key figures'!G29 -> 0 | G17: =L17*'Key figures'!G30 -> 0 | H17: =L17*'Key figures'!G31 -> -578.9283948 | I17: =L17*'Key figures'!G32 -> -10.98428966 | J17: =L17*'Key figures'!G33 -> 0 | L17: =L14*'Key figures'!G8 -> -597.09472 | M17: Other | N17: 477.675776 | O17: 0.8 | Z17: 477.675776 | AA17: 119.418944 | AB17: =-(A17*'CO2-emission factors'!$B$2+B17*'CO2-emission factors'!$B$3+C17*'CO2-emission factors'!$B$4+D17*'CO2-emission factors'!$B$5+E17*'CO2-emission factors'!$B$6+F17*'CO2-emission factors'!$B$7+G17*'CO2-emission factors'!$B$8+H17*'CO2-emission factors'!$B$9+I17*'CO2-emission factors'!$B$10+J17*'CO2-emission factors'!$B$11+K17*'CO2-emission factors'!$B$12) -> 0.5494022487
L18: =L14 -> -758.218176 | M18: Energy Services | N18: 563.3396072 | O18: =Z18/L18*-1 -> 0.7429782417 | Z18: =Z14 -> 563.3396072 | AA18: =-(N18+L18) -> 194.8785688

Sheet 2030 e2g-balance (hidden)
A1: Coal | B1: Crude oil | C1: Oil Products | D1: Natual Gas | E1: Nuclear | F1: Hydro | G1: Geothermal, solar, wind, etc. | H1: Biofuels and waste | I1: Electricity | J1: Heat | K1: Energy Services | L1: Total consumption | M1: Data 2030 | N1: Total production | O1: Efficiency | P1: Coal | Q1: Crude oil | R1: Oil Products | S1: Natual Gas | T1: Nuclear | U1: Hydro | V1: Geothermal, solar, wind, etc. | W1: Biofuels and waste | X1: Electricity | Y1: Heat | Z1: Energy Services | AA1: Loss | AB1: CO2-emissions
L2: =SUM(A2:K2) -> 0 | M2: Entry fuels | N2: =SUM(P2:Z2) -> 6618073.966 | P2: =-(A3+A2) -> 16.5766769 | Q2: =-(B3+B2) -> 6617630.272 | S2: =-(D3+D2) -> 18.77502255 | T2: =-(E3+E2) -> 0 | W2: =-(H3+H2) -> 408.342595
A3: =-P3 -> -16.5766769 | B3: =-Q3 -> -6617630.272 | D3: =-S3 -> -18.77502255 | E3: =-T3 -> 0 | H3: =-W3 -> -408.342595 | L3: =SUM(A3:K3) -> -6618073.966 | M3: Transport of fuels | N3: =SUM(P3:Z3) -> 6618073.966 | P3: =-(A14+A5) -> 16.5766769 | Q3: =-(B14+B5) -> 6617630.272 | S3: =-(D14+D5) -> 18.77502255 | T3: =-(E14+E5) -> 0 | W3: =-(H14+H5) -> 408.342595 | AA3: =-(L3+N3) -> 0
L4: 0 | M4: Entry On-Grid RE | N4: 5.26348734 | U4: =-F5 -> 5.052947846 | V4: =-G5 -> 0.2105394936
A5: =SUM(A7:A11) -> 0 | B5: =SUM(B7:B11) -> -6617630.272 | C5: -10.05326082 | D5: -12.5534173 | E5: 0 | F5: -5.052947846 | G5: -0.2105394936 | H5: -0.8158405376 | I5: =SUM(I6:I11) -> -0.2208968412 | J5: 0 | K5: 0 | L5: -6617659.179 | M5: Entry electricity, district heating and oil products | N5: 82.54574835 | P5: =SUM(P7:P11) -> 0 | R5: =(C12+C5)*-1 -> 66.17630272 | X5: =(I12+I5)*-1 -> 16.36944563 | Y5: =(J12+J5)*-1 -> 0 | AA5: =-(L5+N5) -> 6617576.633 | AB5: =SUM(AB6:AB11) -> 1.479592609
I6: =I14*IF('Key figures'!H60<0,'Key figures'!H60,0)*-1 -> 0 | L6: 0 | M6: Import / export of electricity | N6: 0 | X6: =I14*-1*IF('Key figures'!H60>0,'Key figures'!H60,0) -> 0 | AB6: =(I6+X6)*'CO2-emission factors'!B13 -> 0
A7: =-($X$7+$F$7+$G$7)/$O$7*'Key figures'!$H73 -> 0 | B7: =-($X$7+$F$7+$G$7)/$O$7*'Key figures'!$H74 -> 0 | C7: =-($X$7+$F$7+$G$7)/$O$7*'Key figures'!$H75 -> -10.05326082 | D7: =-($X$7+$F$7+$G$7)/$O$7*'Key figures'!$H76 -> -12.5534173 | E7: =-($X$7+$F$7+$G$7)/$O$7*'Key figures'!$H77 -> 0 | F7: =X7*'Key figures'!H57*-1 -> -5.052947846 | G7: =X7*'Key figures'!H58*-1 -> -0.2105394936 | H7: =-($X$7+$F$7+$G$7)/$O$7*'Key figures'!$H78 -> -0.8158405376 | L7: -28.686006 | M7: Electricity-only plants | N7: 16.36944563 | O7: ='Key figures'!H68 -> 0.4741573034 | X7: =X5-X8 -> 16.36944563 | AA7: =-(N7+L7) -> 12.31656037 | AB7: =-((1-'Key figures'!H$98)*A7*'CO2-emission factors'!$B$2+B7*(1-'Key figures'!$H$99)*'CO2-emission factors'!$B$3+C7*(1-'Key figures'!H$99)*'CO2-emission factors'!$B$4+D7*(1-'Key figures'!$H$100)*'CO2-emission factors'!$B$5+E7*'CO2-emission factors'!$B$6+F7*'CO2-emission factors'!$B$7+G7*'CO2-emission factors'!$B$8+H7*(1-'Key figures'!$H$101)*'CO2-emission factors'!$B$9+I7*'CO2-emission factors'!$B$10+J7*'CO2-emission factors'!$B$11+K7*'CO2-emission factors'!$B$12)+H7*'Key figures'!$H$101*'CO2-emission factors'!$B$14 -> 1.479592609
A8: =-($X$8+$Y$8+$F$8+$G$8)/$O$8*'Key figures'!$H80 -> 0 | B8: =-($X$8+$Y$8+$F$8+$G$8)/$O$8*'Key figures'!$H81 -> 0 | C8: =-($X$8+$Y$8+$F$8+$G$8)/$O$8*'Key figures'!$H82 -> 0 | D8: =-($X$8+$Y$8+$F$8+$G$8)/$O$8*'Key figures'!$H83 -> 0 | E8: =-($X$8+$Y$8+$F$8+$G$8)/$O$8*'Key figures'!$H84 -> 0 | G8: =(X8+Y8)*'Key figures'!H62*-1 -> 0 | H8: =-($X$8+$Y$8+$F$8+$G$8)/$O$8*'Key figures'!$H85 -> 0 | L8: 0 | M8: CHP plants | N8: 0 | O8: ='Key figures'!H69 -> 1e-05 | X8: =Y8*'Key figures'!H53 -> 0 | Y8: =Y5*'Key figures'!H48 -> 0 | AA8: =-(N8+L8) -> 0 | AB8: =-(1-'Key figures'!H102)*(A8*'CO2-emission factors'!$B$2+B8*'CO2-emission factors'!$B$3+C8*'CO2-emission factors'!$B$4+D8*'CO2-emission factors'!$B$5+E8*'CO2-emission factors'!$B$6+F8*'CO2-emission factors'!$B$7+G8*'CO2-emission factors'!$B$8+H8*'CO2-emission factors'!$B$9+I8*'CO2-emission factors'!$B$10+J8*'CO2-emission factors'!$B$11+K8*'CO2-emission factors'!$B$12)+H8*'Key figures'!$H$102*'CO2-emission factors'!$B$14 -> 0
A9: =-($Y$9+$F$9+$G$9)/$O$9*'Key figures'!$H87 -> 0 | B9: =-($Y$9+$F$9+$G$9)/$O$9*'Key figures'!$H88 -> 0 | C9: =-($Y$9+$F$9+$G$9)/$O$9*'Key figures'!$H89 -> 0 | D9: =-($Y$9+$F$9+$G$9)/$O$9*'Key figures'!$H90 -> 0 | E9: =-($Y$9+$F$9+$G$9)/$O$9*'Key figures'!$H91 -> 0 | G9: =Y9*'Key figures'!H65*-1 -> 0 | H9: =-($Y$9+$F$9+$G$9)/$O$9*'Key figures'!$H92 -> 0 | I9: =Y9*'Key figures'!H51*-1 -> 0 | L9: 0 | M9: Heat Plants | N9: 0 | O9: ='Key figures'!H70 -> 0.0001 | Y9: =Y5*'Key figures'!H49 -> 0 | AA9: 0 | AB9: =-(1-'Key figures'!H103)*(A9*'CO2-emission factors'!$B$2+B9*'CO2-emission factors'!$B$3+C9*'CO2-emission factors'!$B$4+D9*'CO2-emission factors'!$B$5+E9*'CO2-emission factors'!$B$6+F9*'CO2-emission factors'!$B$7+G9*'CO2-emission factors'!$B$8+H9*'CO2-emission factors'!$B$9+I9*'CO2-emission factors'!$B$10+J9*'CO2-emission factors'!$B$11+K9*'CO2-emission factors'!$B$12)+H9*'Key figures'!$H$103*'CO2-emission factors'!$B$14 -> 0
B10: =-R10/O10 -> -6617630.272 | L10: -6617630.272 | M10: Oil refineries | N10: 66.17630272 | O10: ='Key figures'!H71 -> 1e-05 | R10: =-(C7+C8+C9+C11+C12) -> 66.17630272 | AA10: =-(N10+L10) -> 6617564.096 | AB10: =-((1-'Key figures'!H$98)*A10*'CO2-emission factors'!$B$2+B10*(1-'Key figures'!$H$99)*'CO2-emission factors'!$B$3+C10*(1-'Key figures'!H$99)*'CO2-emission factors'!$B$4+D10*(1-'Key figures'!$H$100)*'CO2-emission factors'!$B$5+E10*'CO2-emission factors'!$B$6+F10*'CO2-emission factors'!$B$7+G10*'CO2-emission factors'!$B$8+H10*(1-'Key figures'!$H$101)*'CO2-emission factors'!$B$9+I10*'CO2-emission factors'!$B$10+J10*'CO2-emission factors'!$B$11+K10*'CO2-emission factors'!$B$12)+H10*'Key figures'!$H$101*'CO2-emission factors'!$B$14 -> 0
A11: =L11*'Key figures'!H42 -> 0 | B11: =L11*'Key figures'!H44 -> 0 | C11: =L11*'Key figures'!H45 -> 0 | D11: =L11*'Key figures'!H43 -> 0 | H11: =L11*'Key figures'!H46 -> 0 | I11: =L11*'Key figures'!H40 -> -0.2208968412 | J11: =L11*'Key figures'!H41 -> 0 | L11: =L14*'Key figures'!H38 -> -0.2208968412 | M11: Energy Industry one use | N11: 0 | O11: 0 | AA11: =-(N11+L11) -> 0.2208968412 | AB11: =-((1-'Key figures'!H$98)*A11*'CO2-emission factors'!$B$2+B11*(1-'Key figures'!$H$99)*'CO2-emission factors'!$B$3+C11*(1-'Key figures'!H$99)*'CO2-emission factors'!$B$4+D11*(1-'Key figures'!$H$100)*'CO2-emission factors'!$B$5+E11*'CO2-emission factors'!$B$6+F11*'CO2-emission factors'!$B$7+G11*'CO2-emission factors'!$B$8+H11*(1-'Key figures'!$H$101)*'CO2-emission factors'!$B$9+I11*'CO2-emission factors'!$B$10+J11*'CO2-emission factors'!$B$11+K11*'CO2-emission factors'!$B$12)+H11*'Key figures'!$H$101*'CO2-emission factors'!$B$14 -> 0
C12: =-R12*1 -> -56.1230419 | I12: =-X12*(1+'Key figures'!H35) -> -16.14854879 | J12: =-Y12*(1+'Key figures'!H36) -> 0 | L12: -72.27159069 | M12: Transport electricity, district heating and oil products | N12: 69.67496339 | R12: =-C14 -> 56.1230419 | X12: =-I14 -> 13.55192149 | Y12: =-J14 -> 0 | AA12: =-(L12+N12) -> 2.596627293
L13: 0 | M13: Entry Off-Grid RE | N13: 0 | V13: =G14*-1 -> 0
A14: =SUM(A15:A19) -> -16.5766769 | B14: 0 | C14: -56.1230419 | D14: -6.22160525 | E14: 0 | F14: 0 | G14: 0 | H14: -407.5267545 | I14: -13.55192149 | J14: 0 | K14: 0 | L14: ='Key figures'!H4 -> -500 | M14: Exit energy | N14: 354.5085598 | Z14: =SUM(Z15:Z19) -> 354.5085598 | AA14: =SUM(AA15:AA19) -> 145.4914402 | AB14: =SUM(AB15:AB19) -> 6.19476699
A15: =L15*'Key figures'!H10 -> -16.60524987 | B15: =L15*'Key figures'!H11 -> 0 | C15: =L15*'Key figures'!H12 -> -0.6865219586 | D15: =L15*'Key figures'!H13 -> -6.22160525 | G15: =L15*'Key figures'!H14 -> 0 | H15: =L15*'Key figures'!H15 -> -55.1362948 | I15: =L15*'Key figures'!H16 -> -6.350328117 | J15: =L15*'Key figures'!H17 -> 0 | L15: ='Key figures'!H6*L14 -> -85 | M15: Industry | N15: 63.75 | O15: 0.75 | Z15: =-L15*O15 -> 63.75 | AA15: =-(Z15+L15) -> 21.25 | AB15: =-(A15*'CO2-emission factors'!$B$2+B15*'CO2-emission factors'!$B$3+C15*'CO2-emission factors'!$B$4+D15*'CO2-emission factors'!$B$5+E15*'CO2-emission factors'!$B$6+F15*'CO2-emission factors'!$B$7+G15*'CO2-emission factors'!$B$8+H15*'CO2-emission factors'!$B$9+I15*'CO2-emission factors'!$B$10+J15*'CO2-emission factors'!$B$11+K15*'CO2-emission factors'!$B$12) -> 1.984305906
A16: =L16*'Key figures'!H19 -> 0 | C16: =L16*'Key figures'!H20 -> -51.03628231 | D16: =L16*'Key figures'!H21 -> 0 | G16: =L16*'Key figures'!H22 -> 0 | H16: =L16*'Key figures'!H23 -> 0 | I16: =L16*'Key figures'!H24 -> -0.5155180031 | J16: =L16*'Key figures'!H25 -> 0 | L16: ='Key figures'!H7*L14 -> -51.55180031 | M16: Transport | N16: 0 | O16: 0.3 | Z16: =Z22*((SUM('Key figures'!H19:H23)/O18+'Key figures'!H24/'2030 e2g-balance'!O17)/((SUM('Key figures'!G19:G23)/O18+'Key figures'!G24/'2030 e2g-balance'!O17))) -> 0 | AA16: =-(Z16+L16) -> 51.55180031 | AB16: =-(A16*'CO2-emission factors'!$B$2+B16*'CO2-emission factors'!$B$3+C16*'CO2-emission factors'!$B$4+D16*'CO2-emission factors'!$B$5+E16*'CO2-emission factors'!$B$6+F16*'CO2-emission factors'!$B$7+G16*'CO2-emission factors'!$B$8+H16*'CO2-emission factors'!$B$9+I16*'CO2-emission factors'!$B$10+J16*'CO2-emission factors'!$B$11+K16*'CO2-emission factors'!$B$12) -> 3.878757455
M17: Electric cars | O17: 0.9
M18: Combustion Engine | O18: 0.3
A19: =L19*'Key figures'!H27 -> 0.02857297167 | C19: =L19*'Key figures'!H28 -> -4.400237638 | D19: =L19*'Key figures'!H29 -> 0 | G19: =L19*'Key figures'!H30 -> 0 | H19: =L19*'Key figures'!H31 -> -352.3904597 | I19: =L19*'Key figures'!H32 -> -6.686075372 | J19: =L19*'Key figures'!H33 -> 0 | L19: =L14*'Key figures'!H8 -> -363.4481997 | M19: Other | N19: 290.7585598 | O19: 0.8 | Z19: =-L19*O19 -> 290.7585598 | AA19: 72.68963994 | AB19: =-(A19*'CO2-emission factors'!$B$2+B19*'CO2-emission factors'!$B$3+C19*'CO2-emission factors'!$B$4+D19*'CO2-emission factors'!$B$5+E19*'CO2-emission factors'!$B$6+F19*'CO2-emission factors'!$B$7+G19*'CO2-emission factors'!$B$8+H19*'CO2-emission factors'!$B$9+I19*'CO2-emission factors'!$B$10+J19*'CO2-emission factors'!$B$11+K19*'CO2-emission factors'!$B$12) -> 0.3317036282
L20: =L14 -> -500 | M20: Energy Services | N20: 354.5085598 | O20: =Z20/L20*-1 -> 0.7090171195 | Z20: =Z14 -> 354.5085598 | AA20: =-(N20+L20) -> 145.4914402
A22: -56.94358795 | B22: 0 | C22: -0.6703103432 | D22: -11.79887322 | E22: 0 | G22: -2.105238465 | H22: -20.32028166 | I22: -0.9746474373 | L22: -35.85453373 | M22: Heat Plants | N22: 42.18274109 | O22: 1.222820237 | Y22: 42.18274109 | AA22: -6.328207354 | AB22: 0.7220717079

Sheet 2050 e2g-balance (hidden)
A1: Coal | B1: Crude oil | C1: Oil Products | D1: Natual Gas | E1: Nuclear | F1: Hydro | G1: Geothermal, solar, wind, etc. | H1: Biofuels and waste | I1: Electricity | J1: Heat | K1: Energy Services | L1: Total consumption | M1: Data 2050 | N1: Total production | O1: Efficiency | P1: Coal | Q1: Crude oil | R1: Oil Products | S1: Natual Gas | T1: Nuclear | U1: Hydro | V1: Geothermal, solar, wind, etc. | W1: Biofuels and waste | X1: Electricity | Y1: Heat | Z1: Energy Services | AA1: Loss | AB1: CO2-emissions
L2: =SUM(A2:K2) -> 0 | M2: Entry fuels | N2: =SUM(P2:Z2) -> 6505413.009 | P2: =-(A3+A2) -> 10.65492961 | Q2: =-(B3+B2) -> 6504969.391 | S2: =-(D3+D2) -> 14.99790046 | T2: =-(E3+E2) -> 0 | W2: =-(H3+H2) -> 417.9650627
A3: =-P3 -> -10.65492961 | B3: =-Q3 -> -6504969.391 | D3: =-S3 -> -14.99790046 | E3: =-T3 -> 0 | H3: =-W3 -> -417.9650627 | L3: =SUM(A3:K3) -> -6505413.009 | M3: Transport of fuels | N3: =SUM(P3:Z3) -> 6505413.009 | P3: =-(A14+A5) -> 10.65492961 | Q3: =-(B14+B5) -> 6504969.391 | S3: =-(D14+D5) -> 14.99790046 | T3: =-(E14+E5) -> 0 | W3: =-(H14+H5) -> 417.9650627 | AA3: =-(L3+N3) -> 0
L4: 0 | M4: Entry On-Grid RE | N4: 4.609704491 | U4: =-F5 -> 4.425316312 | V4: =-G5 -> 0.1843881797
A5: =SUM(A7:A11) -> 0 | B5: =SUM(B7:B11) -> -6504969.391 | C5: -8.804535578 | D5: -10.99414521 | E5: 0 | F5: -4.425316312 | G5: -0.1843881797 | H5: -0.7145041962 | I5: =SUM(I6:I11) -> -0.2208968412 | J5: 0 | K5: 0 | L5: -6504994.735 | M5: Entry electricity, district heating and oil products | N5: 79.38587488 | P5: =SUM(P7:P11) -> 0 | R5: =(C12+C5)*-1 -> 65.04969391 | X5: =(I12+I5)*-1 -> 14.33618097 | Y5: =(J12+J5)*-1 -> 0 | AA5: =-(L5+N5) -> 6504915.349 | AB5: =SUM(AB6:AB11) -> 1.295810981
I6: =I14*IF('Key figures'!I60<0,'Key figures'!I60,0)*-1 -> 0 | L6: 0 | M6: Import / Export of electricity | N6: 0 | X6: =I14*-1*IF('Key figures'!I60>0,'Key figures'!I60,0) -> 0 | AB6: =(I6+X6)*'CO2-emission factors'!B13 -> 0
A7: =-($X$7+$F$7+$G$7)/$O$7*'Key figures'!$I73 -> 0 | B7: =-($X$7+$F$7+$G$7)/$O$7*'Key figures'!$I74 -> 0 | C7: =-($X$7+$F$7+$G$7)/$O$7*'Key figures'!$I75 -> -8.804535578 | D7: =-($X$7+$F$7+$G$7)/$O$7*'Key figures'!$I76 -> -10.99414521 | E7: =-($X$7+$F$7+$G$7)/$O$7*'Key figures'!$I77 -> 0 | F7: =X7*'Key figures'!I57*-1 -> -4.425316312 | G7: =X7*'Key figures'!I58*-1 -> -0.1843881797 | H7: =-($X$7+$F$7+$G$7)/$O$7*'Key figures'!$I78 -> -0.7145041962 | L7: -25.12288948 | M7: Electricity-only plants | N7: 14.33618097 | O7: ='Key figures'!I68 -> 0.4741573034 | X7: =X5-X8 -> 14.33618097 | AA7: =-(N7+L7) -> 10.78670851 | AB7: =-((1-'Key figures'!I$98)*A7*'CO2-emission factors'!$B$2+B7*(1-'Key figures'!$I99)*'CO2-emission factors'!$B$3+C7*(1-'Key figures'!$I99)*'CO2-emission factors'!$B$4+D7*(1-'Key figures'!I$100)*'CO2-emission factors'!$B$5+E7*'CO2-emission factors'!$B$6+F7*'CO2-emission factors'!$B$7+G7*'CO2-emission factors'!$B$8+H7*(1-'Key figures'!I$101)*'CO2-emission factors'!$B$9+I7*'CO2-emission factors'!$B$10+J7*'CO2-emission factors'!$B$11+K7*'CO2-emission factors'!$B$12)+H7*'Key figures'!I$101*'CO2-emission factors'!B14 -> 1.295810981
A8: =-($X$8+$Y$8+$F$8+$G$8)/$O$8*'Key figures'!$I80 -> 0 | B8: =-($X$8+$Y$8+$F$8+$G$8)/$O$8*'Key figures'!$I81 -> 0 | C8: =-($X$8+$Y$8+$F$8+$G$8)/$O$8*'Key figures'!$I82 -> 0 | D8: =-($X$8+$Y$8+$F$8+$G$8)/$O$8*'Key figures'!$I83 -> 0 | E8: =-($X$8+$Y$8+$F$8+$G$8)/$O$8*'Key figures'!$I84 -> 0 | G8: =(X8+Y8)*'Key figures'!I62*-1 -> 0 | H8: =-($X$8+$Y$8+$F$8+$G$8)/$O$8*'Key figures'!$I85 -> 0 | L8: 0 | M8: CHP plants | N8: 0 | O8: ='Key figures'!I69 -> 1e-05 | X8: =Y8*'Key figures'!I53 -> 0 | Y8: =Y5*'Key figures'!I48 -> 0 | AA8: =-(N8+L8) -> 0 | AB8: =-(1-'Key figures'!I102)*(A8*'CO2-emission factors'!$B$2+B8*'CO2-emission factors'!$B$3+C8*'CO2-emission factors'!$B$4+D8*'CO2-emission factors'!$B$5+E8*'CO2-emission factors'!$B$6+F8*'CO2-emission factors'!$B$7+G8*'CO2-emission factors'!$B$8+H8*'CO2-emission factors'!$B$9+I8*'CO2-emission factors'!$B$10+J8*'CO2-emission factors'!$B$11+K8*'CO2-emission factors'!$B$12)+H8*'Key figures'!$H$102*'CO2-emission factors'!$B$14 -> 0
A9: =-($Y$9+$F$9+$G$9)/$O$9*'Key figures'!$I87 -> 0 | B9: =-($Y$9+$F$9+$G$9)/$O$9*'Key figures'!$I88 -> 0 | C9: =-($Y$9+$F$9+$G$9)/$O$9*'Key figures'!$I89 -> 0 | D9: =-($Y$9+$F$9+$G$9)/$O$9*'Key figures'!$I90 -> 0 | E9: =-($Y$9+$F$9+$G$9)/$O$9*'Key figures'!$I91 -> 0 | G9: =Y9*'Key figures'!I65*-1 -> 0 | H9: =-($Y$9+$F$9+$G$9)/$O$9*'Key figures'!$I92 -> 0 | I9: =Y9*'Key figures'!I51*-1 -> 0 | L9: 0 | M9: Heat Plants | N9: 0 | O9: ='Key figures'!I70 -> 0.0001 | Y9: =Y5*'Key figures'!I49 -> 0 | AA9: 0 | AB9: =-(1-'Key figures'!I103)*(A9*'CO2-emission factors'!$B$2+B9*'CO2-emission factors'!$B$3+C9*'CO2-emission factors'!$B$4+D9*'CO2-emission factors'!$B$5+E9*'CO2-emission factors'!$B$6+F9*'CO2-emission factors'!$B$7+G9*'CO2-emission factors'!$B$8+H9*'CO2-emission factors'!$B$9+I9*'CO2-emission factors'!$B$10+J9*'CO2-emission factors'!$B$11+K9*'CO2-emission factors'!$B$12)+H9*'Key figures'!$H$103*'CO2-emission factors'!$B$14 -> 0
B10: =-R10/O10 -> -6504969.391 | L10: -6504969.391 | M10: Oil refineries | N10: 65.04969391 | O10: ='Key figures'!I71 -> 1e-05 | R10: =-(C7+C8+C9+C11+C12) -> 65.04969391 | AA10: =-(N10+L10) -> 6504904.341 | AB10: =-((1-'Key figures'!I$98)*A10*'CO2-emission factors'!$B$2+B10*(1-'Key figures'!$I104)*'CO2-emission factors'!$B$3+C10*(1-'Key figures'!$I104)*'CO2-emission factors'!$B$4+D10*(1-'Key figures'!I$100)*'CO2-emission factors'!$B$5+E10*'CO2-emission factors'!$B$6+F10*'CO2-emission factors'!$B$7+G10*'CO2-emission factors'!$B$8+H10*(1-'Key figures'!I$101)*'CO2-emission factors'!$B$9+I10*'CO2-emission factors'!$B$10+J10*'CO2-emission factors'!$B$11+K10*'CO2-emission factors'!$B$12)+H10*'Key figures'!I$101*'CO2-emission factors'!B17 -> 0
A11: =L11*'Key figures'!I42 -> 0 | B11: =L11*'Key figures'!I44 -> 0 | C11: =L11*'Key figures'!I45 -> 0 | D11: =L11*'Key figures'!I43 -> 0 | H11: =L11*'Key figures'!I46 -> 0 | I11: =L11*'Key figures'!I40 -> -0.2208968412 | J11: =L11*'Key figures'!I41 -> 0 | L11: =L14*'Key figures'!I38 -> -0.2208968412 | M11: Energy Industry one use | N11: 0 | O11: 0 | AA11: =-(N11+L11) -> 0.2208968412 | AB11: =-((1-'Key figures'!I$98)*A11*'CO2-emission factors'!$B$2+B11*(1-'Key figures'!$I105)*'CO2-emission factors'!$B$3+C11*(1-'Key figures'!$I105)*'CO2-emission factors'!$B$4+D11*(1-'Key figures'!I$100)*'CO2-emission factors'!$B$5+E11*'CO2-emission factors'!$B$6+F11*'CO2-emission factors'!$B$7+G11*'CO2-emission factors'!$B$8+H11*(1-'Key figures'!I$101)*'CO2-emission factors'!$B$9+I11*'CO2-emission factors'!$B$10+J11*'CO2-emission factors'!$B$11+K11*'CO2-emission factors'!$B$12)+H11*'Key figures'!I$101*'CO2-emission factors'!B18 -> 0
C12: =-R12*1 -> -56.24515833 | I12: =-X12*(1+'Key figures'!I35) -> -14.11528413 | J12: =-Y12*(1+'Key figures'!I36) -> 0 | L12: -70.36044246 | M12: Transport electricity, district heating and oil products | N12: 68.09075665 | R12: =-C14 -> 56.24515833 | X12: =-I14 -> 11.84559832 | Y12: =-J14 -> 0 | AA12: =-(L12+N12) -> 2.269685809
L13: 0 | M13: Entry Off-Grid RE | N13: 0 | V13: =G14*-1 -> 0
A14: =SUM(A15:A19) -> -10.65492961 | B14: 0 | C14: -56.24515833 | D14: -4.003755246 | E14: 0 | F14: 0 | G14: 0 | H14: -417.2505585 | I14: =SUM(I15:I19) -> -11.84559832 | J14: 0 | K14: 0 | L14: ='Key figures'!I4 -> -500 | M14: Exit energy | N14: 407.575381 | Z14: =SUM(Z15:Z19) -> 407.575381 | AA14: =SUM(AA15:AA19) -> 92.42461895 | AB14: =SUM(AB15:AB19) -> 5.515064395
A15: =L15*'Key figures'!I10 -> -10.68588469 | B15: =L15*'Key figures'!I11 -> 0 | C15: =L15*'Key figures'!I12 -> -0.4417936824 | D15: =L15*'Key figures'!I13 -> -4.003755246 | G15: =L15*'Key figures'!I14 -> 0 | H15: =L15*'Key figures'!I15 -> -35.48155511 | I15: =L15*'Key figures'!I16 -> -4.086591562 | J15: =L15*'Key figures'!I17 -> 0 | L15: ='Key figures'!I6*L14 -> -54.6995803 | M15: Industry | N15: 41.02468522 | O15: 0.75 | Z15: =-L15*O15 -> 41.02468522 | AA15: =-(Z15+L15) -> 13.67489507 | AB15: =-(A15*'CO2-emission factors'!$B$2+B15*'CO2-emission factors'!$B$3+C15*'CO2-emission factors'!$B$4+D15*'CO2-emission factors'!$B$5+E15*'CO2-emission factors'!$B$6+F15*'CO2-emission factors'!$B$7+G15*'CO2-emission factors'!$B$8+H15*'CO2-emission factors'!$B$9+I15*'CO2-emission factors'!$B$10+J15*'CO2-emission factors'!$B$11+K15*'CO2-emission factors'!$B$12) -> 1.276949415
A16: =L16*'Key figures'!I19 -> 0 | C16: =L16*'Key figures'!I20 -> -51.03628231 | D16: =L16*'Key figures'!I21 -> 0 | G16: =L16*'Key figures'!I22 -> 0 | H16: =L16*'Key figures'!I23 -> 0 | I16: =L16*'Key figures'!I24 -> -0.5155180031 | J16: =L16*'Key figures'!I25 -> 0 | L16: ='Key figures'!I7*L14 -> -51.55180031 | M16: Transport | N16: 51.55180031 | Z16: =Z22*((SUM('Key figures'!I19:I23)/O18+'Key figures'!I24/'2050 e2g-balance'!O17)/((SUM('Key figures'!H19:H23)/O18+'Key figures'!H24/'2050 e2g-balance'!O17))) -> 51.55180031 | AA16: =-(Z16+L16) -> 0 | AB16: =-(A16*'CO2-emission factors'!$B$2+B16*'CO2-emission factors'!$B$3+C16*'CO2-emission factors'!$B$4+D16*'CO2-emission factors'!$B$5+E16*'CO2-emission factors'!$B$6+F16*'CO2-emission factors'!$B$7+G16*'CO2-emission factors'!$B$8+H16*'CO2-emission factors'!$B$9+I16*'CO2-emission factors'!$B$10+J16*'CO2-emission factors'!$B$11+K16*'CO2-emission factors'!$B$12) -> 3.878757455
M17: Electric car | O17: 0.9
M18: Combustion Engine | O18: 0.3
A19: =L19*'Key figures'!I27 -> 0.03095508014 | C19: =L19*'Key figures'!I28 -> -4.767082342 | D19: =L19*'Key figures'!I29 -> 0 | G19: =L19*'Key figures'!I30 -> 0 | H19: =L19*'Key figures'!I31 -> -381.7690034 | I19: =L19*'Key figures'!I32 -> -7.243488753 | J19: =L19*'Key figures'!I33 -> 0 | L19: =L14*'Key figures'!I8 -> -393.7486194 | M19: Other | N19: 314.9988955 | O19: 0.8 | Z19: =-L19*O19 -> 314.9988955 | AA19: 78.74972388 | AB19: =-(A19*'CO2-emission factors'!$B$2+B19*'CO2-emission factors'!$B$3+C19*'CO2-emission factors'!$B$4+D19*'CO2-emission factors'!$B$5+E19*'CO2-emission factors'!$B$6+F19*'CO2-emission factors'!$B$7+G19*'CO2-emission factors'!$B$8+H19*'CO2-emission factors'!$B$9+I19*'CO2-emission factors'!$B$10+J19*'CO2-emission factors'!$B$11+K19*'CO2-emission factors'!$B$12) -> 0.3593575254
L20: =L14 -> -500 | M20: Energy Services | N20: 407.575381 | O20: =Z20/L20*-1 -> 0.8151507621 | Z20: =Z14 -> 407.575381 | AA20: =-(N20+L20) -> 92.42461895
Z22: =-L16 -> 51.55180031

Sheet Data 1995 (hidden)
B1: Coal | C1: Crude oil | D1: Oil products | E1: Natural gas | F1: Nuclear | G1: Hydro | H1: Wind, solar, etc. | I1: Biofuels and waste | J1: Electricity | K1: Heat | L1: Total
A2: ktoe | B2: ktoe | C2: ktoe | D2: ktoe | E2: ktoe | F2: ktoe | G2: ktoe | H2: ktoe | I2: ktoe | J2: ktoe | K2: ktoe
A3: Production | B3: 27 | G3: 132 | I3: 9904 | L3: 10063
A4: Imports | B4: 1 | C4: 631 | D4: 441 | J4: 3 | L4: 1076
A5: Exports | D5: -29 | L5: -29
A6: International marine bunkers | D6: -22 | L6: -22
A7: International aviation bunkers | D7: -64 | L7: -64
A8: Stock changes
A9: TES | B9: 28 | C9: 631 | D9: 326 | G9: 132 | I9: 9904 | J9: 3 | L9: 11024
A10: Transfers
A11: Statistical differences | B11: -3 | D11: -90 | J11: -1 | L11: -95
A12: Electricity plants | B12: -22 | D12: -150 | G12: -132 | J12: 165 | L12: -138
A13: CHP plants
A14: Heat plants
A15: Gas works
A16: Oil refineries | C16: -631 | D16: 564 | L16: -68
A17: Coal transformation | B17: -1 | L17: -1
A18: Liquefication plants
A19: Other transformation | I19: -879 | L19: -879
A20: Energy industry own use | D20: -16 | J20: -6 | L20: -23
A21: Losses | J21: -21 | L21: -21
A22: Total final consumption | B22: 3 | D22: 633 | I22: 9025 | J22: 139 | L22: 9800
A23: Industry | B23: 3 | D23: 112 | I23: 872 | J23: 35 | L23: 1022
A24: Transport | D24: 296 | L24: 296
A25: Residential | D25: 169 | I25: 7374 | J25: 60 | L25: 7603
A26: Commercial and public services | J26: 34 | L26: 34
A27: Agriculture / forestry | D27: 40 | I27: 463 | J27: 6 | L27: 509
A28: Fishing
A29: Non-specified | I29: 316 | J29: 5 | L29: 321
A30: Non-energy use | D30: 15
A31: Other | L31: =SUM(L25:L29) -> 8467
B32: =SUM(B9,B10:B21,B22*-1) -> -1 | C32: =SUM(C9,C10:C21,C22*-1) -> 0 | D32: 1 | E32: 0 | F32: 0 | G32: 0 | H32: 0 | I32: 0 | J32: 1 | K32: 0 | L32: =SUM(L9,L10:L21,L22*-1) -> -1

Sheet Data 2000 (hidden)
B1: Coal | C1: Crude oil | D1: Oil products | E1: Natural gas | F1: Nuclear | G1: Hydro | H1: Wind, solar, etc. | I1: Biofuels and waste | J1: Electricity | K1: Heat | L1: Total
A2: ktoe | B2: ktoe | C2: ktoe | D2: ktoe | E2: ktoe | F2: ktoe | G2: ktoe | H2: ktoe | I2: ktoe | J2: ktoe | K2: ktoe
A3: Production | B3: 49 | G3: 184 | I3: 12461 | L3: 12693
A4: Imports | D4: 850 | J4: 5 | L4: 855
A5: Exports
A6: International marine bunkers | D6: -24 | L6: -24
A7: International aviation bunkers | D7: -60 | L7: -60
A8: Stock changes
A9: TES | B9: 49 | D9: 767 | G9: 184 | I9: 12461 | J9: 5 | L9: 13464
A10: Transfers
A11: Statistical differences | D11: 35 | J11: 2 | L11: 38
A12: Electricity plants | B12: -19 | D12: -80 | G12: -184 | J12: 213 | L12: -70
A13: CHP plants
A14: Heat plants
A15: Gas works
A16: Oil refineries
A17: Coal transformation
A18: Liquefication plants
A19: Other transformation | I19: -1298 | L19: -1298
A20: Energy industry own use | J20: -6 | L20: -6
A21: Losses | J21: -47 | L21: -47
A22: Total final consumption | B22: 30 | D22: 722 | I22: 11163 | J22: 167 | L22: 12081
A23: Industry | B23: 30 | D23: 109 | I23: 1055 | J23: 33 | L23: 1227
A24: Transport | D24: 479 | L24: 479
A25: Residential | D25: 94 | I25: 9165 | J25: 91 | L25: 9351
A26: Commercial and public services | J26: 32 | L26: 32
A27: Agriculture / forestry | D27: 22 | I27: 560 | J27: 6 | L27: 587
A28: Fishing
A29: Non-specified | I29: 382 | J29: 5 | L29: 387
A30: Non-energy use | D30: 17 | L30: 17
A31: Other | L31: =SUM(L25:L29) -> 10357
B32: =SUM(B9,B10:B21,B22*-1) -> 0 | C32: =SUM(C9,C10:C21,C22*-1) -> 0 | D32: 0 | E32: 0 | F32: 0 | G32: 0 | H32: 0 | I32: 0 | J32: 0 | K32: 0 | L32: 0

Sheet Data 2005 (hidden)
B1: Coal | C1: Crude oil | D1: Oil products | E1: Natural gas | F1: Nuclear | G1: Hydro | H1: Wind, solar, etc. | I1: Biofuels and waste | J1: Electricity | K1: Heat | L1: Total
A2: ktoe | B2: ktoe | C2: ktoe | D2: ktoe | E2: ktoe | F2: ktoe | G2: ktoe | H2: ktoe | I2: ktoe | J2: ktoe | K2: ktoe
A3: Production | B3: 19 | E3: 334 | G3: 153 | I3: 13506 | L3: 14013
A4: Imports | D4: 1489 | J4: 4 | L4: 1493
A5: Exports
A6: International marine bunkers | D6: -33 | L6: -33
A7: International aviation bunkers | D7: -52 | L7: -52
A8: Stock changes
A9: TES | B9: 19 | D9: 1404 | E9: 334 | G9: 153 | I9: 13506 | J9: 4 | L9: 15421
A10: Transfers
A11: Statistical differences | J11: -36 | L11: -36
A12: Electricity plants | B12: -12 | D12: -201 | E12: -280 | G12: -153 | J12: 306 | L12: -339
A13: CHP plants
A14: Heat plants
A15: Gas works
A16: Oil refineries
A17: Coal transformation
A18: Liquefication plants
A19: Other transformation | I19: -1530 | L19: -1530
A20: Energy industry own use | J20: -4 | L20: -4
A21: Losses | J21: -47 | L21: -47
A22: Total final consumption | B22: 7 | D22: 1203 | E22: 55 | I22: 11976 | J22: 224 | L22: 13465
A23: Industry | B23: 7 | D23: 90 | E23: 55 | I23: 1102 | J23: 62 | L23: 1316
A24: Transport | D24: 906 | L24: 906
A25: Residential | D25: 165 | I25: 9845 | J25: 83 | L25: 10093
A26: Commercial and public services | J26: 59 | L26: 59
A27: Agriculture / forestry | D27: 19 | I27: 630 | J27: 10 | L27: 659
A28: Fishing
A29: Non-specified | I29: 399 | J29: 9 | L29: 408
A30: Non-energy use | D30: 24 | L30: 24
A31: Other | L31: =SUM(L25:L29) -> 11219
B32: =SUM(B9,B10:B21,B22*-1) -> 0 | C32: =SUM(C9,C10:C21,C22*-1) -> 0 | D32: 0 | E32: -1 | F32: 0 | G32: 0 | H32: 0 | I32: 0 | J32: -1 | K32: 0 | L32: 0

Sheet Data 2010 (hidden)
B1: Coal | C1: Crude oil | D1: Oil products | E1: Natural gas | F1: Nuclear | G1: Hydro | H1: Wind, solar, etc. | I1: Biofuels and waste | J1: Electricity | K1: Heat | L1: Total
A2: ktoe | B2: ktoe | C2: ktoe | D2: ktoe | E2: ktoe | F2: ktoe | G2: ktoe | H2: ktoe | I2: ktoe | J2: ktoe | K2: ktoe
A3: Production | E3: 643 | G3: 232 | H3: 1 | I3: 14770 | L3: 15646
A4: Imports | D4: 1641 | J4: 5 | L4: 1646
A5: Exports
A6: International marine bunkers | D6: -42 | L6: -42
A7: International aviation bunkers | D7: -84 | L7: -84
A8: Stock changes
A9: TES | D9: 1514 | E9: 643 | G9: 232 | H9: 1 | I9: 14770 | J9: 5 | L9: 17166
A10: Transfers
A11: Statistical differences | E11: -2 | J11: -20 | L11: -23
A12: Electricity plants | D12: -63 | E12: -541 | G12: -232 | H12: -1 | I12: -30 | J12: 458 | L12: -409
A13: CHP plants
A14: Heat plants
A15: Gas works
A16: Oil refineries
A17: Coal transformation
A18: Liquefication plants
A19: Other transformation | I19: -1794 | L19: -1794
A20: Energy industry own use | J20: -1 | L20: -1
A21: Losses | J21: -90 | L21: -90
A22: Total final consumption | D22: 1451 | E22: 100 | I22: 12947 | J22: 352 | L22: 14850
A23: Industry | D23: 64 | E23: 100 | I23: 1159 | J23: 89 | L23: 1412
A24: Transport | D24: 1162 | L24: 1162
A25: Residential | D25: 175 | I25: 10655 | J25: 150 | L25: 10980
A26: Commercial and public services | J26: 85 | L26: 85
A27: Agriculture / forestry | D27: 17 | I27: 713 | J27: 15 | L27: 745
A28: Fishing
A29: Non-specified | I29: 420 | J29: 13 | L29: 433
A30: Non-energy use | D30: 33 | L30: 33
L31: =SUM(L25:L29) -> 12243
B32: =SUM(B9,B10:B21,B22*-1) -> 0 | C32: =SUM(C9,C10:C21,C22*-1) -> 0 | D32: 0 | E32: 0 | F32: 0 | G32: 0 | H32: 0 | I32: -1 | J32: 0 | K32: 0 | L32: -1

Sheet Data 2015 (hidden)
B1: Coal | C1: Crude oil | D1: Oil products | E1: Natural gas | F1: Nuclear | G1: Hydro | H1: Wind, solar, etc. | I1: Biofuels and waste | J1: Electricity | K1: Heat | L1: Total
A2: ktoe | B2: ktoe | C2: ktoe | D2: ktoe | E2: ktoe | F2: ktoe | G2: ktoe | H2: ktoe | I2: ktoe | J2: ktoe | K2: ktoe
A3: Production | B3: 158 | E3: 731 | G3: 181 | H3: 1 | I3: 16193 | L3: 17264
A4: Imports | D4: 2622 | J4: 6 | L4: 2628
A5: Exports
A6: International marine bunkers | D6: -54 | L6: -54
A7: International aviation bunkers | D7: -111 | L7: -111
A8: Stock changes
A9: TES | B9: 158 | D9: 2457 | E9: 731 | G9: 181 | H9: 1 | I9: 16193 | J9: 6 | L9: 19728
A10: Transfers
A11: Statistical differences | D11: 263 | J11: -39 | L11: 224
A12: Electricity plants | D12: -462 | E12: -593 | G12: -181 | H12: -1 | I12: -28 | J12: 582 | L12: -683
A13: CHP plants
A14: Heat plants
A15: Gas works
A16: Oil refineries
A17: Coal transformation
A18: Liquefication plants
A19: Other transformation | I19: -2088 | L19: -2088
A20: Energy industry own use | J20: -1 | L20: -1
A21: Losses | J21: -96 | L21: -96
A22: Total final consumption | B22: 158 | D22: 2258 | E22: 138 | I22: 14077 | J22: 451 | L22: 17083
A23: Industry | B23: 158 | D23: 186 | E23: 138 | I23: 1224 | J23: 117 | L23: 1824
A24: Transport | D24: 1899 | L24: 1899
A25: Residential | D25: 104 | I25: 11596 | J25: 204 | L25: 11904
A26: Commercial and public services | J26: 102 | L26: 102
A27: Agriculture / forestry | D27: 22 | I27: 814 | J27: 15 | L27: 851
A28: Fishing
A29: Non-specified | I29: 443 | J29: 13 | L29: 457
A30: Non-energy use | D30: 47 | L30: 4
L31: =SUM(L25:L29) -> 13314
B32: =SUM(B9,B10:B21,B22*-1) -> 0 | C32: =SUM(C9,C10:C21,C22*-1) -> 0 | D32: 0 | E32: 0 | F32: 0 | G32: 0 | H32: 0 | I32: 0 | J32: 1 | K32: 0 | L32: 1

Sheet Data 2018 (hidden)
B1: Coal | C1: Crude oil | D1: Oil products | E1: Natural gas | F1: Nuclear | G1: Hydro | H1: Wind, solar, etc. | I1: Biofuels and waste | J1: Electricity | K1: Heat | L1: Total
A2: ktoe | B2: ktoe | C2: ktoe | D2: ktoe | E2: ktoe | F2: ktoe | G2: ktoe | H2: ktoe | I2: ktoe | J2: ktoe | K2: ktoe
A3: Production | B3: 387 | E3: 622 | G3: 192 | H3: 8 | I3: 17271 | L3: 18480
A4: Imports | D4: 2583 | J4: 10 | L4: 2593
A5: Exports
A6: International marine bunkers | D6: -5 | L6: -5
A7: International aviation bunkers | D7: -139 | L7: -139
A8: Stock changes
A9: TES | B9: 387 | D9: 2439 | E9: 622 | G9: 192 | H9: 8 | I9: 17271 | J9: 10 | L9: 20929
A10: Transfers
A11: Statistical differences | D11: 61 | J11: 29 | L11: 90
A12: Electricity plants | D12: -382 | E12: -477 | G12: -192 | H12: -8 | I12: -31 | J12: 622 | L12: -468
A13: CHP plants
A14: Heat plants
A15: Gas works
A16: Oil refineries
A17: Coal transformation
A18: Liquefication plants
A19: Other transformation | I19: -2273 | L19: -2273
A20: Energy industry own use | J20: -8 | L20: -8
A21: Losses | J21: -105 | L21: -105
A22: Total final consumption | B22: 387 | D22: 2117 | E22: 145 | I22: 14967 | J22: 548 | L22: 18164
A23: Industry | B23: 387 | D23: 16 | E23: 145 | I23: 1285 | J23: 148 | L23: 1981
A24: Transport | D24: 1867 | L24: 1867
A25: Residential | D25: 154 | I25: 12333 | J25: 234 | L25: 12720
A26: Commercial and public services | J26: 140 | L26: 140
A27: Agriculture / forestry | D27: 24 | I27: 884 | J27: 14 | L27: 922
A28: Fishing
A29: Non-specified | I29: 465 | J29: 12 | L29: 478
A30: Non-energy use | D30: 56 | L30: 56
L31: =SUM(L25:L29) -> 14260
B32: =SUM(B9,B10:B21,B22*-1) -> 0 | C32: =SUM(C9,C10:C21,C22*-1) -> 0 | D32: 1 | E32: 0 | F32: 0 | G32: 0 | H32: 0 | I32: 0 | J32: 0 | K32: 0 | L32: 1

Sheet CO2-emission factors (hidden)
B1: mio. ton/PJ
A2: Coal | B2: 0.095
A3: Crude Oil | B3: 0
A4: Oil products | B4: 0.076
A5: Natual Gas | B5: 0.057
A6: Nuclear | B6: 0
A7: Hydro | B7: 0
A8: Geothermal, Solar, Wind, etc. | B8: 0
A9: Biofuels and Waste | B9: 0
A10: Electricity | B10: 0
A11: Heat | B11: 0
A12: Energy Services | B12: 0
A13: Import/export electricity | B13: 0.02
A14: Biomass clean | B14: 0.1
